{"text_format":"3","workbook":"xlsx","n_sheets":32,"sheets":["附件1","水利工程施工统计表","C001","C003-1","C004","C005-2","C006-1","C006-2","C007等菜北标","Y002","Y003","J001-2","J002-1","J002-2","J005-1","J005-2","J006-1","J007-1","J007-2 ","J008-1","J008-2","J009-1","J009-2","J010-1","J010-2","J011-2","H001","H002-1","H002-2","H003-1","H004","H005"],"not_rendered":{"defined_names":32},"read":"whole","date_system":"1900"}

{"sheet":"附件1","index":0,"n_rows":59,"n_cols":5,"rows_kept":59,"merged":[[1,0,1,4]]}
["附件1"]
["引江济淮工程2023年下半年施工合同履约考核得分统计表"]
["序号","合同名称","合同单位","考核得分（满分105分）","备注"]
["一、","排名前30%的共16个单位"]
[1,"施工J008-1标","中铁四局集团钢结构建筑有限公司",99]
[2,"引江济巢段X001-1凤凰颈泵站改造及巢湖闸鱼道工程总承包","安徽省水利水电勘测设计研究总院有限公司",98]
[3,"引江济淮二期工程合肥水源总承包标","安徽省水利水电勘测设计研究总院股份有限公司",97.9]
[4,"施工C001-2标（小港航道）","安徽省路港工程有限责任公司",97.5]
[5,"试验工程弃渣场临时用地土地复垦施工标","中国电建市政建设集团有限公司",97.1]
[6,"施工H004标（一标段：亳州城市供水）","中国水利水电第五工程局有限公司",97]
[7,"东淝河一线船闸改造","中交第二航务工程局有限公司",97]
[8,"施工J008-2土建及安装标","中国铁建大桥工程局集团有限公司",96.6]
[9,"施工J002市政桥梁（青龙桥、玉兰大道桥）标","中铁四局集团有限公司",96.3]
[10,"施工J006-1标","中国电建市政建设集团有限公司",96.2]
[11,"引江济淮蜀山复线船闸工程施工标","中交第四航务工程局有限公司",96]
[12,"施工Y002标（杭埠河倒虹吸）","中国葛洲坝集团第一工程有限公司",95.9]
[13,"数字引江济淮（一期）工程通信骨干网建设项目","中移建设有限公司联合体成员（联合体成员负责工程施工）",95.9]
[14,"施工J002市政桥梁（金寨南路桥）标","中铁四局集团有限公司",95.8]
[15,"施工Y001-2（白山船闸）标","中交第一航务工程局有限公司",95.6]
[16,"施工H002-1标（朱集站土建、安装工程）","上海市水利工程集团有限公司",95.5]
["二","排名中间的共32个单位"]
[17,"亳州城市供水调蓄水库护坡变更及管理区工程施工标","安徽省淮河河道工程有限公司",95.5]
[18,"枢纽管理用房（一期）等工程项目","中铁四局集团有限公司（运营管理部赋分）",94.8]
[19,"施工J005-2标","安徽水利开发股份有限公司（已更名为安徽水利开发有限公司）",94.8]
[20,"施工J007-2标","浙江省围海建设集团股份有限公司",94.8]
[21,"施工J007-1标","中铁五局集团有限公司",94.4]
[22,"施工J011-2(河渠)标","中国葛洲坝集团股份有限公司",94.4]
[23,"X001-2西河侧施工期围堰（拦污闸）施工标","安徽水安建设集团股份有限公司",94]
[24,"施工H005标（阜阳城市供水工程）","中国电建市政建设集团有限公司",94]
[25,"施工C001标（水运部分）","中建筑港集团有限公司（联合体成员）",93.8]
[26,"引江济淮二期工程蒙城站及蒙城、涡阳、利辛水厂分水口门工程项目工程总承包","中水淮河规划设计研究有限公司",93.7]
[27,"施工X002-1（兆河船闸）标","中建筑港集团有限公司",93.6]
[28,"施工C001标（水利公路部分）","安徽水安建设集团股份有限公司（评价联合体牵头人）",93.3]
[29,"施工Y003标","安徽水利开发股份有限公司（已更名为安徽水利开发有限公司）",93.3]
[30,"引江济淮二期工程（水利部分）颍上杨湖地表水厂取水口门工程","安徽水安建设集团股份有限公司",93.1]
[31,"施工J002-2标","中国葛洲坝集团股份有限公司",93.1]
[32,"施工J001-1标（派河口泵站枢纽施工准备导流导航工程）","安徽水利开发股份有限公司（已更名为安徽水利开发有限公司）",93]
[33,"施工J010-2标","中国水利水电第四工程局有限公司",93]
[34,"永久征地范围水土保持与绿化工程设计施工总承包（一标段 ）","上海市园林工程有限公司",92.7]
[35,"施工J001-2标","安徽水安建设集团股份有限公司",92.6]
[36,"施工C005-1标（引江济巢段铜铁路交叉先行建设河渠工程）","中铁十七局集团有限公司",92.5]
[37,"菜子湖湿地生态修复试验工程","中国水利水电第四工程局有限公司",92.4]
[38,"施工C005-2标工程","安徽水安建设集团股份有限公司",92]
[39,"施工J010-1标","安徽水安建设集团股份有限公司",91.8]
[40,"施工C003-1(河渠)标","中国水利水电第七工程局有限公司",91.6]
[41,"施工J009-2（河渠）标","中国水利水电第四工程局有限公司",90.3]
[42,"总承包施工标（截污导流水质保护黄陂湖节制闸工程）","安徽省水利水电勘测设计研究总院有限公司",90]
[43,"施工J005-1标（水利部分）","评价联合体成员中国水利水电第五工程局有限公司（不评价联合体牵头人中交第四航务工程局有限公司）",89.8]
[44,"永久征地范围水土保持与绿化工程设计施工总承包（二标段 ）","深圳文科园林股份有限公司",89.8]
[45,"施工J009-1（河渠）标","中国水利水电第十工程局有限公司",89.7]
[46,"施工J002-1（河渠）标","中国水电建设集团十五工程局有限公司",89.6]
[47,"施工H002-2标（二标段：西淝河朱集站～龙德站段河道工程）","中国水利水电第十一工程局有限公司",89]
[48,"施工C004标","中铁二局集团有限公司",88.7]
["三","排名后10%的共5个单位"]
[49,"施工H003-1（河渠）标","中国电建市政建设集团有限公司",87.3]
[50,"施工C006-2标","中铁二十局集团有限公司",86.1]
[51,"施工C007、C008、C009及Y001标（菜巢分水岭以北庐江境水利）","中国水利水电第十二工程局有限公司",85.6]
[52,"施工H001标","中国水利水电第十一工程局有限公司",83.5]
[53,"施工C006-1标（仅考核水利部分，公路桥梁部分合同主体工程已完成，不考核）","中铁十局集团有限公司",81.4]

{"sheet":"水利工程施工统计表","index":1,"n_rows":38,"n_cols":25,"rows_kept":38,"hidden":true,"merged":[[0,0,0,1],[1,0,1,21],[2,0,3,0],[2,1,3,1],[2,2,3,2],[2,3,3,3],[2,4,3,4],[2,5,3,5],[2,6,3,6],[2,7,3,7],[2,8,3,8],[2,9,3,9],[2,10,3,10],[2,11,2,12],[2,13,2,15],[2,16,3,16],[2,17,2,18],[2,19,3,19],[2,20,3,20],[2,21,3,21],[4,2,4,3]]}
["附件2："]
["引江济淮工程(工程）水利工程建设施工合同2020年上半年度履约考核汇总表"]
["序号","合同编号","合同名称","合同单位","项目概况","建管处","合同签订时间","合同额（万元）","等级","管理人员到位（10分）","机械设备到位（10分）","工程进度管理",null,"工程质量管理",null,null,"施工技术管理（15分）","劳务分包管理、农民工工资拖欠情况（10分）",null,"安全生产及文明施工（20分）","打分汇总","备注"]
[{"$nulls":11},"进度管理（5分）","实际进度（10分）","质量管理体系（5分）","工程质量行为（9分）","质量管理效果（6分）",null,"劳务分包管理","农民工工资拖欠情况"]
[null,null,"合计",{"$nulls":4},{"$f":"SUM(H6:H37)","v":{"v":2221781.937701,"d":"2221781.94"}}]
[1,"YJJH-YJJC-GC-20181102117","施工C001标（引江济巢段菜巢线枞阳枢纽）","评价联合体牵头人安徽水安建设集团股份有限公司（不评价联合体成员中建筑港集团有限公司）","桩号00+000～10+850，该标段总长10.85km。主要内容包括枞阳引江枢纽（含泵站、节制闸、船闸、过鱼设施、跨渠交通桥等）、4.94km河道疏浚及左右岸堤防加固、拆除重建跨河桥梁1座（S228长河大桥）、锚地、新建或加固交叉建筑物13座（堤涵共6座：含拆除重建2座，加固4 座；泵站1座；管护道路（水系连通）桥梁6座）、鱼类增殖站、水文监测站、供电工程、管理用房以及水土保持","安庆","2018-11-02",{"$f":"1652305509/10000","v":{"v":165230.5509,"d":"165230.55"}},"良好",{"$f":"'C001'!G6","v":9},{"$f":"'C001'!G7","v":9},{"$f":"'C001'!G8","v":5},{"$f":"'C001'!G9","v":8},{"$f":"'C001'!G10","v":5},{"$f":"'C001'!G11","v":9},{"$f":"'C001'!G12","v":4.5},{"$f":"'C001'!G13","v":12},{"$f":"'C001'!G14","v":7},null,{"$f":"'C001'!G15","v":17},{"$f":"SUM(J6:T6)","v":85.5},null,"1、抽查了节制闸主体结构综合劳务合同（安徽垚磊劳务有限公司164.480945万元），不能与所用人员劳动合同有效关联。\n2、抽查了桥梁主体模板脚手架建设工程施工专业分包合同（安徽垚磊劳务有限公司95.8125万元）含模板脚手架主材包工包料，按专业分包签订合同，只是向报监理报备。",null,"建管处打分10分"]
[2,"YJJH-YJJC-GC-20190408148","引江济巢段菜巢线C003-1(河渠)标","中国水利水电第七工程局有限公司",null,"安庆","2019-04-08",{"v":73255.1671,"d":"73255.17"},null,{"$f":"'C003-1'!G6","v":9},{"$f":"'C003-1'!G7","v":10},{"$f":"'C003-1'!G8","v":5},{"$f":"'C003-1'!G9","v":10},{"$f":"'C003-1'!G10","v":5},{"$f":"'C003-1'!G11","v":7},{"$f":"'C003-1'!G12","v":5},{"$f":"'C003-1'!G13","v":13},{"$f":"'C003-1'!G14","v":7},null,{"$f":"'C003-1'!G15","v":19},{"$f":"SUM(J7:T7)","v":90},null,"1、抽查了42+490-46+980、46+980-50+535、50+535-54+091土石方机械作业工程合同：合同价包含了机械、人员、材料（柴油采用三方合同，甲控乙供，分包合同包含此部分费用）、技术、质量等全部费用，与水利部（2016）420文要求有出入。机械设备仅有进场报验单，设备不能区分属于对应分包合同所有，设备也多为分包单位租赁。监理按分包合同标准对土石方机械作业工程合同进行审核，未报建管处审批。\n2、目前现场已施工的有护底、护坡砼、渠系交叉建筑物等施工，但未签订合同。\n3、分包合同均由项目部签订，项目启用章文件未明确可适用于签订合同。",null,"建管处打分10分"]
[3,"YJJH-YJJC-GC-20181026113","施工C004标（引江济巢段菜巢线）","中铁二局集团有限公司 ","C004标主要工程内容为河渠工程和跨河桥梁工程。其中河渠工程起止桩号54+091～67+050，标段总长约12.96km，主要工程内容包括河道土石方开挖、膨胀土与崩解岩边坡防护、边坡防护、新建管护道路、新建20座跌水和6座灌溉泵站、弃渣场水土保持工程等。跨河桥梁工程为夏庄桥等9座桥梁","庐江","2018-10-26",{"$f":"1760676582/10000","v":{"v":176067.6582,"d":"176067.66"}},"良好",{"$f":"'C004'!G6","v":5},{"$f":"'C004'!G7","v":10},{"$f":"'C004'!G8","v":5},{"$f":"'C004'!G9","v":8.4},{"$f":"'C004'!G10","v":5},{"$f":"'C004'!G11","v":7},{"$f":"'C004'!G12","v":3},{"$f":"'C004'!G13","v":13},{"$f":"'C004'!G14","v":10},null,{"$f":"'C004'!G15","v":16},82.4,{"$nulls":3},"建管处打分10分"]
[4,"YJJH-YJJC-GC-20171204026","施工C005-1标（引江济巢段庐铜铁路交叉先行建设河渠工程）","中铁十七局集团有限公司 ","庐铜铁路姚庄大桥防护加固工程：对已建庐铜铁路姚庄大桥（铁路桩号DK8+704.145～DK8+925.85处），1#、2#桥墩加设防撞保护设施，施工过程中对0#桥台、3#桥墩进行防护；河道工程：引江济淮工程引江济巢段（桩号K67+050～K67+450段）长度400m的河道土石方开挖、护砌工程，灌注桩工程、弃土整理和安全监测等；桥梁工程：引江济淮工程引江济巢段桩号K67+149m处新建桥梁，新建的殷桥为三跨变截面连续梁桥，跨径布置为72m+120m+72m连续梁，桥梁全长271m，道路等级为三级公路","庐江","2017-12-04",{"$f":"122042340/10000","v":{"v":12204.234,"d":"12204.23"}},"良好",{"$nulls":11},0]
[5,"YJJH-YJJC-GC-20180205042","施工C005-2标工程（引江济巢段菜巢线）","安徽水安建设集团股份有限公司   ","菜子湖线桩号67+450～72+240段长4.79km范围内的河道、渠系交叉建筑物、跨河桥梁及影响处理工程等。河道工程为河渠开挖、膨胀土及崩解岩边坡治理、边坡防护等；渠系交叉建筑物工程为新建小山跌水、姚庄跌水、瓦院跌水、桂岗跌水、三河跌水、三星墩跌水、周家院跌水、张冲跌水，共8座跌水；跨河桥梁工程为三担桥、王屯桥、杨村桥、黄庄桥、桂山岗桥、X065桥，共6座桥梁","庐江","2018-02-01",{"$f":"1262464127.66/10000","v":{"v":126246.412766,"d":"126246.41"}},"良好",{"$f":"'C005-2'!G6","v":7.5},{"$f":"'C005-2'!G7","v":10},{"$f":"'C005-2'!G8","v":5},{"$f":"'C005-2'!G9","v":10},{"$f":"'C005-2'!G10","v":3},{"$f":"'C005-2'!G11","v":7},{"$f":"'C005-2'!G12","v":4.5},{"$f":"'C005-2'!G13","v":14},{"$f":"'C005-2'!G14","v":7},null,{"$f":"'C005-2'!G15","v":18},86,null,"1、抽查施工专业分包合同（合同价190.2249万元）：合同为安徽水安集团与安徽垚磊劳务有限公司签订，未采用建设部示范文本，采用承包人内部统一文本，合同签订时间为2019年12月30日，合同费用为工程量清单单价和工程量计算、按月计量，包含了人员、管理、检测、材料、机械、利润、辅材、税金等全部费用，未经监理审批、未经项目法人批准，相关台账有监理、建管处确认。经现场咨询，存在大量类似专业分包合同未审批。\n2、抽查劳务分包合同（合同价11.4850万元）：合同为安徽水安集团与安徽鸿开劳务有限公司签订，未采用建设部示范文本，采用承包人内部统一文本，合同签订时间为2019年11月1日，合同费用为工程量清单单价和工程量计算，包含了人员、利润、辅材、税金等费用，未向经监理备案，相关台账有监理、建管处确认。\n3、抽查机械租赁作业合同（合同额197.2万元）：合同为安徽水安集团与宜昌永鸿建设工程有限公司签订，合同签订时间为2019年7月1日，合同计价为工程量清单单价和工程量计算，单价含油料，未向经监理备案，相关台账有监理、建管处确认，合同未对应现场机械。",null,"建管处打分10分"]
[6,"YJJH-YJJC-GC-20181030114","施工C006-1标（引江济巢段菜巢线）","中铁十局集团有限公司","C006-1标主要工程内容为河渠工程、舒庐干渠渡槽、庐南分干渠渡槽、G3合铜黄高速公路桥、临时保通道路、宋庄桥。其中河渠工程起止桩号72+240～75+240，标段总长约3.00km，主要工程内容包括河道土石方开挖、膨胀土及崩解岩边坡防护、新建管护道路、新建苏河跌水、弃渣场水土保持工程等。","庐江","2018-10-30",{"$f":"834061698/10000","v":{"v":83406.1698,"d":"83406.17"}},"良好",{"$f":"'C006-1'!G6","v":6},{"$f":"'C006-1'!G7","v":4},{"$f":"'C006-1'!G8","v":5},{"$f":"'C006-1'!G9","v":7.07},{"$f":"'C006-1'!G10","v":5},{"$f":"'C006-1'!G11","v":7},{"$f":"'C006-1'!G12","v":5},{"$f":"'C006-1'!G13","v":14},{"$f":"'C006-1'!G14","v":10},null,{"$f":"'C006-1'!G15","v":18},81.07,null,"1、抽查专业分包合同（合同价337.1720万元）：合同为中铁十局集团与安徽华川交通建设有限公司签订，该合同未经项目法人批准，仅报监理审批。\n2、抽查施工劳务分包合同（合同价1106.1994万元）：合同为中铁十局集团四川虹腾建筑劳务有限公司签订，未采用建设部示范文本，采用承包人内部统一文本，合同费用为工程量清单单价和工程量计算、按月计量，包含了人员、小型施工机械、水电气、利润、部分辅材、动力费用（燃油、电力）、税金等费用，监理已审批备案。",null,"建管处打分10分"]
[7,"YJJH-YJJC-GC-20180628082","施工C006-2标（引江济巢段菜巢线）","中铁二十局集团有限公司","桩号75+240～82+000，标段总长约6.76km，主要工程内容为河道土石方开挖、膨胀土及基岩边坡防护、新建管护道路、新建8座跌水、弃渣场水土保持工程等","庐江","2018-06-28",{"$f":"1018609544/10000","v":{"v":101860.9544,"d":"101860.95"}},"优秀",{"$f":"'C006-2'!G6","v":10},{"$f":"'C006-2'!G7","v":10},{"$f":"'C006-2'!G8","v":5},{"$f":"'C006-2'!G9","v":9.2},{"$f":"'C006-2'!G10","v":5},{"$f":"'C006-2'!G11","v":7.5},{"$f":"'C006-2'!G12","v":5},{"$f":"'C006-2'!G13","v":15},{"$f":"'C006-2'!G14","v":10},null,{"$f":"'C006-2'!G15","v":19},95.7,{"$nulls":3},"建管处打分7分"]
[8,"YJJH-JHGT-GC-20190130141","施工C007、C008、C009及Y001标（引江济巢段菜巢分水岭以北庐江境水利）","中国水利水电第十二工程局有限公司","C007水利工程位于引江济巢段菜巢线桩号82+000~85+500。主要内容包括庐江节制枢纽水利部分（含节制闸）、5座渠系交叉建筑物、输水河道等。\n   C008水利工程位于引江济巢段菜巢线桩号85+500~93+865。主要内容包括8.365km河渠扩挖、疏浚工程及两岸堤防加固、退建；沿线加固或拆除重建24座涵闸，新建排涝站1座，加固接长排涝站1座，新建管护道路桥梁4座等。\n    C009水利工程位于引江济巢段菜巢线桩号93+865~109+621。主要内容包括15.756km河渠扩挖、疏浚及两岸堤防加固、退建；沿线加固或拆除重建20座涵闸，加固、新建或拆除重建10座排涝站，新建9座管护道路桥梁等。\n    Y001水利工程位于引江济巢段菜巢线桩号109+445.5~109+969.6、小合分线桩号0+062.3~5+532。主要内容包括白山枢纽（水利部分）和小合分线河渠部分。白山枢纽（水利部分）主要包含节制闸、控制进水闸、输水河道及两岸防洪堤、交叉建筑物等。小合分线2+746~5+532段河道主要包含总长2.786km河渠，具体包含河道开挖、堤防填筑、护坡、3座跨河桥梁、两岸管护道路、1座穿堤涵、监测等。","庐江","2019-01-30",{"v":132999.3109,"d":"132999.31"},"优秀",{"$f":"'C007等菜北标'!G6","v":5},{"$f":"'C007等菜北标'!G7","v":8},{"$f":"'C007等菜北标'!G8","v":5},{"$f":"'C007等菜北标'!G9","v":8.51},{"$f":"'C007等菜北标'!G10","v":5},{"$f":"'C007等菜北标'!G11","v":7.5},{"$f":"'C007等菜北标'!G12","v":0},{"$f":"'C007等菜北标'!G13","v":15},{"$f":"'C007等菜北标'!G14","v":7},null,{"$f":"'C007等菜北标'!G15","v":17},78.01,null,"1、抽查劳务分包合同（合同价1111.6930万元）：合同为中国水利水电第十二工程局有限公司委托菜北水利标项目部与安徽省海骏建设工程有限公司签订，合同未采用建设部标准范本，劳务合同含大型机械设备、工程量清单计量，含管理费、含验收资料、含安全文明措施费、除水泥外主材、辅材及其他小型机具费用及其它税费。\n2、抽查施工土方运输分包合同（合同价5209.1529万元）：合同为中国水利水电第十二工程局有限公司委托菜北水利标项目部与江西省鹏盛建设工程有限公司签订，工程量清单计量，合同内容含乙方项目经理部机构描述（项目经理、技术负责人、核算负责人、质量安全负责人、环水保负责人等），合同费用为工程量清单单价和工程量计算、按月计量，包含了人员、机械、税金等费用，不含主燃油，监理已审批备案。",null,"建管处打分10分"]
[9,"YJJH-YJJC-GC-20190128138","施工Y002标（引江济巢段菜巢线杭埠河倒虹吸）","中国葛洲坝集团第一工程有限公司","小合分线桩号5+532～6+156 段。内容包括上述新建杭埠河倒虹吸工程所有土建工程，以及金属结构、电气等设备安装工程。","肥西","2019-01-28",{"v":31470.4915,"d":"31470.49"},"良好",{"$f":"'Y002'!G6","v":5},{"$f":"'Y002'!G7","v":10},{"$f":"'Y002'!G8","v":5},{"$f":"'Y002'!G9","v":10},{"$f":"'Y002'!G10","v":5},{"$f":"'Y002'!G11","v":6},{"$f":"'Y002'!G12","v":3},{"$f":"'Y002'!G13","v":12},{"$f":"'Y002'!G14","v":7},null,{"$f":"'Y002'!G15","v":17},80,null,"抽查了Y002防渗处理劳务分包合同：未采用建设部示范文本，合同工作内容包含了施工测量放线、便道修复、降尘、柴油发电机提供、全面负责质量安全、生产性试验等，合同费用为工程量清单单价和工程量计算，并包含了全部内容的费用，按2%的安全生产费，付款按期支付，未明确按月支付。抽查了上游土石方工程劳务合同：未采用建设部示范文本，合同工作内容包含了上游改线河道和老堤开挖、改堤河线填筑、倒虹吸基础开挖、拆除工程、混凝土、装饰、草皮、堤顶道路等，并全面负责质量安全等，并包含了全部内容的费用，合同费用为工程量清单单价和工程量计算，按2%的安全生产费。合同包含了土方大型机械等，柴油为甲控。",null,"建管处打分7分"]
[10,"YJJH-YJJC-GC-20180205041","施工Y003标（引江济巢段小合分线）","安徽水利开发股份有限公司","杭埠河倒虹吸至派河口泵站段，桩号6+156～20+848，长14.692km，包括河道开挖、堤防填筑、膨胀土治理、护坡、13 座跨河桥梁、2 座管护道路桥梁、两岸管护道路、板桩墙、3 座渡槽、1 座穿堤涵、1 座跌水、监测等","肥西","2018-02-01",{"$f":"841896287/10000","v":{"v":84189.6287,"d":"84189.63"}},"优秀",{"$f":"'Y003'!G6","v":9},{"$f":"'Y003'!G7","v":10},{"$f":"'Y003'!G8","v":5},{"$f":"'Y003'!G9","v":9.84},{"$f":"'Y003'!G10","v":5},{"$f":"'Y003'!G11","v":7.5},{"$f":"'Y003'!G12","v":3},{"$f":"'Y003'!G13","v":13},{"$f":"'Y003'!G14","v":7},null,{"$f":"'Y003'!G15","v":19},88.34,null,"抽查了Y003渠道衬砌工程四标段劳务分包合同：未采用建设部示范文本，合同工作内容包含了坡面修整、预制块生态护坡、瓜子片垫层、C20砼压顶、基脚、格埂、排水沟、坡顶截水沟等，合同费用为工程量清单单价和工程量计算，包含了人工、材料（主材为甲供）、机械费用、管理费、措施费、税金、保险等，付款按月支付；土方施工含自带机械设备。",null,"建管处打分10分"]
[11,"YJJH-JHGT-GC-20180918103","施工J001-2标（江淮沟通段）","安徽水安建设集团股份有限公司","派河口泵站枢纽位于引江济淮线路江淮沟通段起点派河口。派河口泵站设计流量295m3/s，根主要建筑物级别为1级，泵站进、出口渠道两侧堤防级别为1级。共装机组9台套（备用一台），单机功率2800kW，总装机容量25200kW。主要工程内容为新建派河口泵站土建工程（含堤防填筑），金属结构、水力机械、电气设备安装工程，安全监测工程、水土保持工程、施工期环境保护等","肥西","2018-09-18",{"$f":"249385648/10000","v":{"v":24938.5648,"d":"24938.56"}},"良好",{"$f":"'J001-2'!G6","v":5},{"$f":"'J001-2'!G7","v":10},{"$f":"'J001-2'!G8","v":5},{"$f":"'J001-2'!G9","v":8.63},{"$f":"'J001-2'!G10","v":5},{"$f":"'J001-2'!G11","v":6},{"$f":"'J001-2'!G12","v":4.5},{"$f":"'J001-2'!G13","v":14},{"$f":"'J001-2'!G14","v":7},null,{"$f":"'J001-2'!G15","v":17},82.13,null,"抽查了第1标段施工劳务分包合同：采用建设部示范文本，合同额631.70152万元，合同费用为工程量清单单价和工程量计算，按月支付，合同价包含了部分安全生产费；抽查了4标模板专业分包合同：采用建设部劳务示范文本，合同额1277.1万元，合同费用为工程量清单单价和工程量计算，按月支付，合同价包含了模板主材费。",null,"建管处打分10分"]
[12,"YJJH-JHGT-GC-20190731172 ","引江济淮工程（安徽段）江淮沟通段施工J002-1（河渠）标工程","中国水电建设集团十五工程局有限公司",null,"肥西","2019-07-31",{"v":62696.7396,"d":"62696.74"},null,{"$f":"'J002-1'!G6","v":5},{"$f":"'J002-1'!G7","v":10},{"$f":"'J002-1'!G8","v":5},{"$f":"'J002-1'!G9","v":7},{"$f":"'J002-1'!G10","v":5},{"$f":"'J002-1'!G11","v":7.5},{"$f":"'J002-1'!G12","v":4.5},{"$f":"'J002-1'!G13","v":13},null,{"$f":"'J002-1'!G14","v":7},{"$f":"'J002-1'!G15","v":17},81,{"$nulls":3},"建管处打分10分"]
[13,"YJJH-JHGT-GC-20181116119","施工J002-2标（江淮沟通段）","中国葛洲坝集团股份有限公司","桩号18+220~20+750、21+870~28+200两段，总长8.860km。河道开挖、膨胀土、崩解岩边坡防护、堤防填筑、护坡护岸、灌注桩直墙、管护道路、新建渠系交叉建筑物、蜀山闸下锚地港池开挖、弃渣场水土保持及汤口路主线桥坡面防护等","肥西","2018-11-16",{"$f":"913886791/10000","v":{"v":91388.6791,"d":"91388.68"}},"良好",{"$f":"'J002-2'!G6","v":6},{"$f":"'J002-2'!G7","v":10},{"$f":"'J002-2'!G8","v":5},{"$f":"'J002-2'!G9","v":7.96},{"$f":"'J002-2'!G10","v":5},{"$f":"'J002-2'!G11","v":7.5},{"$f":"'J002-2'!G12","v":4.5},{"$f":"'J002-2'!G13","v":12},null,{"$f":"'J002-2'!G14","v":7},{"$f":"'J002-2'!G15","v":18},82.96,null,null,"发生一起劳务纠纷。","建管处打分7分"]
[14,"YJJH-JHGT-GC-20181102116","施工J005-1标（江淮沟通段）","评价联合体成员中国水利水电第五工程局有限公司（不评价联合体牵头人中交第四航务工程局有限公司）","蜀山泵站枢纽（29+530～32+100）由引水泵站、船闸、泄水闸、连接渠道及两岸防洪堤等建筑物组成。蜀山泵站设计流量340m3/s，（设计引水流量290m3/s，船闸运行补水流量25m3/s，同时预留远期复线船闸运行耗水量25m3/s），共装机组8台套，单机功7500kW，总装机容量60000kW；船闸设计最大船舶吨级为2000t级，船闸闸室有效尺度为280x23x5.2m（长×宽×门槛水深）。蜀山泵站枢纽工程主要包括泵站土建工程、金属结构安装工程、水力机械安装工程、电气设备安装工程、安全监测工程、水土保持工程及蜀山船闸工程等","合肥","2018-11-02",{"$f":"1327192485/10000","v":{"v":132719.2485,"d":"132719.25"}},"良好",{"$f":"'J005-1'!G6","v":8},{"$f":"'J005-1'!G7","v":10},{"$f":"'J005-1'!G8","v":4},{"$f":"'J005-1'!G9","v":8.72},{"$f":"'J005-1'!G10","v":5},{"$f":"'J005-1'!G11","v":7.5},{"$f":"'J005-1'!G12","v":4.5},{"$f":"'J005-1'!G13","v":14},{"$f":"'J005-1'!G14","v":7},null,{"$f":"'J005-1'!G15","v":17},85.72,null,"水利部稽查发现分包不合规",null,"建管处打分10分"]
[15,"YJJH-JHGT-GC-20180320056","施工J005-2标（江淮沟通段）","安徽水利开发股份有限公司","江淮沟通段内桩号32+100～35+180处，该标段河渠总长3.080km，主要内容为河道土石方开挖、膨胀土与崩解岩边坡防护、堤防填筑、新建管护道路、新建河西、杨大郢、张公塘3座跌水涵及弃渣场水土保持等","合肥","2018-03-20",{"$f":"319565868/10000","v":{"v":31956.5868,"d":"31956.59"}},"良好",{"$f":"'J005-2'!G6","v":10},{"$f":"'J005-2'!G7","v":10},{"$f":"'J005-2'!G8","v":5},{"$f":"'J005-2'!G9","v":10},{"$f":"'J005-2'!G10","v":5},{"$f":"'J005-2'!G11","v":7.5},{"$f":"'J005-2'!G12","v":3},{"$f":"'J005-2'!G13","v":14},{"$f":"'J005-2'!G14","v":10},null,{"$f":"'J005-2'!G15","v":17},91.5,{"$nulls":3},"建管处打分10分"]
[16,"YJJH-JHGT-GC-20180627079","施工J006-1标（江淮沟通段）","中国电建市政建设集团有限公司","桩号35+180～40+181.7，标段总长约5km，主要工程内容为河道土石方开挖、膨胀土与崩解岩边坡防护、坡顶填筑、新建管护道路、新建秦大郢跌水涵、胡平堰跌井、堰滩跌水及弃渣场水土保持","合肥","2018-06-27",{"$f":"580020111/10000","v":{"v":58002.0111,"d":"58002.01"}},"良好",{"$f":"'J006-1'!G6","v":10},{"$f":"'J006-1'!G7","v":10},{"$f":"'J006-1'!G8","v":5},{"$f":"'J006-1'!G9","v":9.61},{"$f":"'J006-1'!G10","v":5},{"$f":"'J006-1'!G11","v":7.5},{"$f":"'J006-1'!G12","v":4.5},{"$f":"'J006-1'!G13","v":13},{"$f":"'J006-1'!G14","v":10},null,{"$f":"'J006-1'!G15","v":19},93.61,{"$nulls":3},"建管处打分10分"]
[17,"YJJH-JHGT-GC-20180628081","施工J007-1标（江淮沟通段）","中铁五局集团有限公司","主要工程内容为河渠工程、G312合六叶公路桥、保通线。其中河渠工程起止桩号41+681.7～43+600，总长约1.92Km，主要工程内容包括河道土石方开挖、膨胀土与崩解岩边坡防护、新建管护道路、新建余圩跌水、方大塘跌井、窦小郢跌井及弃渣场水土保持工程等；G312合六叶公路桥1座，结构形式为连续钢箱梁桥，跨径组合为（100+180+100）米；保通线位于G312合六叶公路北侧，长度约1.4公里","合肥","2018-06-28",{"$f":"747895156.56/10000","v":{"v":74789.515656,"d":"74789.52"}},"良好",{"$f":"'J007-1'!G6","v":10},{"$f":"'J007-1'!G7","v":10},{"$f":"'J007-1'!G8","v":5},{"$f":"'J007-1'!G9","v":8.95},{"$f":"'J007-1'!G10","v":5},{"$f":"'J007-1'!G11","v":7.5},{"$f":"'J007-1'!G12","v":1.5},{"$f":"'J007-1'!G13","v":14},{"$f":"'J007-1'!G14","v":10},null,{"$f":"'J007-1'!G15","v":18},89.95,{"$nulls":3},"建管处打分10分"]
[18,"YJJH-JHGT-GC-20180627080","施工J007-2标（江淮沟通段）","浙江省围海建设集团股份有限公司","标段总长约2.4km，主要工程内容为河道土石方开挖、膨胀土与崩解岩边坡防护、新建管护道路、新建小蜀山分干渠连通渠及控制闸、弃渣场水土保持工程","合肥","2018-06-27",{"$f":"898143288/10000","v":{"v":89814.3288,"d":"89814.33"}},"优秀",{"$f":"'J007-2 '!G6","v":10},{"$f":"'J007-2 '!G7","v":10},{"$f":"'J007-2 '!G8","v":5},{"$f":"'J007-2 '!G9","v":10},{"$f":"'J007-2 '!G10","v":5},{"$f":"'J007-2 '!G11","v":7.5},{"$f":"'J007-2 '!G12","v":5},{"$f":"'J007-2 '!G13","v":13},{"$f":"'J007-2 '!G14","v":10},null,{"$f":"'J007-2 '!G15","v":18},93.5,{"$nulls":3},"建管处打分10分"]
[19,"YJJH-JHGT-GC-20181227124","施工J008-1标（江淮沟通段）","中铁四局集团钢结构建筑有限公司",null,"合肥","2018-12-27",{"v":34866.2083,"d":"34866.21"},null,{"$f":"'J008-1'!G6","v":10},{"$f":"'J008-1'!G7","v":10},{"$f":"'J008-1'!G8","v":5},{"$f":"'J008-1'!G9","v":10},{"$f":"'J008-1'!G10","v":5},{"$f":"'J008-1'!G11","v":7.5},{"$f":"'J008-1'!G12","v":3},{"$f":"'J008-1'!G13","v":13},null,{"$f":"'J008-1'!G14","v":7},{"$f":"'J008-1'!G15","v":18},88.5]
[20,"YJJH-JHGT-GC-20190123133","施工J008-2土建及安装标（江淮沟通段）","中国铁建大桥工程局集团有限公司","主要工程内容包括：（1）河渠部分，河渠部分起止桩号46+000～48+000，标段总长约2km，主要内容为：河道开挖、膨胀土及崩解岩边坡防护、堤防填筑、护坡、管护道路、连接及下穿渡槽道路、新建聂夹弄跌井、弃渣场水土保持等。（2）渡槽水工结构部分，主要内容为：渡槽进、出口段（包括干渠改线新筑堤防、分流岛及护底、翼墙、闸室、混凝土渡槽）、光荣坝渠下涵拆除重建、王小圩放水涵拆除重建、权老家放水涵拆除重建、安全监测工程等。（3）渡槽钢结构部分（土建），钢结构渡槽的主墩（含墩身、承台、桩基等）、钢结构渡槽的过渡墩（含承台、桩基等）、主墩固定式CRF防撞护舷采购及安装、钢桥面铺装、供承台施工局部超河渠断面部分的开挖、承台基坑的局部回填。（4）交通桥，桥梁总体布置：3.5m（桥台）+30m（现浇箱梁）+（65+110+65）m（连续刚构）+30m（现浇箱梁）+3.5m（桥台），桥梁全长307m。","合肥","2019-01-23",{"v":91249.394591,"d":"91249.39"},"优秀",{"$f":"'J008-2'!G6","v":10},{"$f":"'J008-2'!G7","v":10},{"$f":"'J008-2'!G8","v":5},{"$f":"'J008-2'!G9","v":10},{"$f":"'J008-2'!G10","v":5},{"$f":"'J008-2'!G11","v":7.5},{"$f":"'J008-2'!G12","v":3},{"$f":"'J008-2'!G13","v":13},{"$f":"'J008-2'!G14","v":7},null,{"$f":"'J008-2'!G15","v":19},89.5,null,"抽查了J008-2桥涵劳务分包合同：未采用建设部示范文本，未备案；劳务分包合同内容包含测量费、分包管理费，清单工程量计价。",null,"建管处打分10分"]
[21,"YJJH-JHGT-GC-20190528156","江淮沟通段J009-1（河渠）标","中国水利水电第十工程局有限公司",null,"合肥","2019-05-28",{"v":79651.6047,"d":"79651.60"},null,{"$f":"'J009-1'!G6","v":6},{"$f":"'J009-1'!G7","v":10},{"$f":"'J009-1'!G8","v":5},{"$f":"'J009-1'!G9","v":10},{"$f":"'J009-1'!G10","v":5},{"$f":"'J009-1'!G11","v":7.5},{"$f":"'J009-1'!G12","v":6},{"$f":"'J009-1'!G13","v":12},{"$f":"'J009-1'!G14","v":7},null,{"$f":"'J009-1'!G15","v":18},86.5,null,"抽查了第2标段劳务分包合同：采用承包人内部统一文本，合同额1983.817559万元（含暂估甲供材费用13029.100642元），合同服务包含工程维修责任、完整的原始技术经济资料、配合承包人办理交工验收等，合同费用为工程量清单单价和工程量计算，实际发生约2%的安全生产费为按实报销，分包人承担。与水利部（2016）420文要求有出入。",null,"建管处打分10分"]
[22,"YJJH-JHGT-GC-20190606159","江淮沟通段J009-2（河渠）标","中国水利水电第四工程局有限公司",null,"合肥","2019-06-06",{"v":95052.798,"d":"95052.80"},null,{"$f":"'J009-2'!G6","v":8},{"$f":"'J009-2'!G7","v":10},{"$f":"'J009-2'!G8","v":5},{"$f":"'J009-2'!G9","v":10},{"$f":"'J009-2'!G10","v":5},{"$f":"'J009-2'!G11","v":9},{"$f":"'J009-2'!G12","v":4.5},{"$f":"'J009-2'!G13","v":13},null,{"$f":"'J009-2'!G14","v":0},{"$f":"'J009-2'!G15","v":18},82.5,null,"抽查了第5标段劳务分包合同：采用承包人内部统一文本，合同额21164.3130元（含暂估甲供材费用13029.100642元），合同服务包含工程维修责任、完整的原始技术经济资料、配合承包人办理交工验收等，合同费用为工程量清单单价和工程量计算，合同价包含了2%的安全生产费，4%水泥改性土含场拌、摊铺、压实等，部分清单含土工布采购和安装等，与水利部（2016）420文要求有出入。","张志宏举报安徽垚威建筑劳务国内公司层层转包，拖欠农民工工资","建管处打分10分"]
[23,"YJJH-JHGT-GC-20180930110","施工J010-1标（江淮沟通段）","安徽水安建设集团股份有限公司","施工J010-1标段位于江淮沟通段内，桩号J61+570～77+070处，本标段主要内容为：河道土石方开挖、膨胀土边坡防护、新建管护道路及跨沟桥涵、新（重）建或加固交叉建筑物、水土保持工程等，其中输水渠道总长15.50km，包括输水渠道工程和交叉建筑物两部分。","淮南","2018-09-30",{"$f":"971420766/10000","v":{"v":97142.0766,"d":"97142.08"}},"优秀",{"$f":"'J010-1'!G6","v":5},{"$f":"'J010-1'!G7","v":10},{"$f":"'J010-1'!G8","v":4},{"$f":"'J010-1'!G9","v":10},{"$f":"'J010-1'!G10","v":3},{"$f":"'J010-1'!G11","v":7.5},{"$f":"'J010-1'!G12","v":6},{"$f":"'J010-1'!G13","v":13},{"$f":"'J010-1'!G14","v":7},null,{"$f":"'J010-1'!G15","v":16},81.5,null,"2、抽查J010-1设备租赁合同（安徽水安助理有限公司）分包合同含油料，机械设备不能区分属于对应分包合同所有。\n3、抽查了J010-1一工区劳务分包合同：未采用建设部示范文本，劳务分包合同内容包含了措施费（基坑排水、便道修建）、油料等，合同费用为工程量清单单价和工程量计算，包含了人工、材料、机械费用、管理费、措施费、税金、保险等，付款按月支付；土方施工含自带机械设备。\n3、抽查了J010-1钢便桥工程专业分包合同：合同工作内容包括了钢便桥除混凝土承台及预埋件外全部工程施工、安装，合同费用为工程量清单单价和工程量计算，包含了全部人工、辅材、机械费用、管理费、措施费、安全文明经费、税金、保险等，付款按月支付。但按采购合同备案，未作专业分包审批。","部分劳务单位与农民工签订劳动合同不全","建管处打分7分"]
[24,"YJJH-JHGT-GC-20180930111","施工J010-2标（江淮沟通段）","中国水利水电第四工程局有限公司","施工J010-2标段位于江淮沟通段内，桩号J77+070~97+505处（茶庵镇至瓦埠湖段），本标段主要内容为：河道土石方开挖、水下疏挖、边坡防护、新建管护道路及跨沟桥涵、新（重）建或加固交叉建筑物、水土保持工程等。","淮南","2018-09-30",{"$f":"862071159/10000","v":{"v":86207.1159,"d":"86207.12"}},"优秀",{"$f":"'J010-2'!G6","v":10},{"$f":"'J010-2'!G7","v":10},{"$f":"'J010-2'!G8","v":4},{"$f":"'J010-2'!G9","v":9.02},{"$f":"'J010-2'!G10","v":5},{"$f":"'J010-2'!G11","v":7.5},{"$f":"'J010-2'!G12","v":6},{"$f":"'J010-2'!G13","v":13},{"$f":"'J010-2'!G14","v":7},null,{"$f":"'J010-2'!G15","v":18},89.52,{"$nulls":3},"建管处打分10分"]
[25,"YJJH-JHGT-GC-20191227249","江淮沟通段J011-2(河渠)标","中国葛洲坝集团股份有限公司",null,"淮南","2019-12-27",{"v":24136.773,"d":"24136.77"},null,{"$f":"'J011-2'!G6","v":8},{"$f":"'J011-2'!G7","v":10},{"$f":"'J011-2'!G8","v":5},{"$f":"'J011-2'!G9","v":10},{"$f":"'J011-2'!G10","v":5},{"$f":"'J011-2'!G11","v":9},{"$f":"'J011-2'!G12","v":6},{"$f":"'J011-2'!G13","v":15},{"$f":"'J011-2'!G14","v":7},null,{"$f":"'J011-2'!G15","v":18},93,null,"1、抽查1标段土建工程劳务分包合同（1877.5518万元）：未采用建设部示范文本，未见核验劳务分包人与所用劳务人员的劳动用工合同记录，合同费用为工程量清单单价和工程量计算，并含分包合同额的2%安全费用，分包人承担工程测量任务，承担施工道路、主接口下供水供电，承担完整的原始技术经济资料。\n2、抽查了机械设备租赁合同（1199.2817万元）：合同价包含了机械进出场费、设备保养维修费、操作人员工资、税费、利润等。机械设备不能区分属于对应分包合同单位所有，合同分包支付存有风险，合同明确柴油承包人提供，实际为分包人自购。\n3、暂无专业工程分包合同。\n4、分包合同部分由集团公司项目部签订，关于成立项目部的通知（中葛股编（2020）9号）规定“严禁未经公司授权或审批签署合同”，有集团公司市政工程有限公司内部审批程序，无集团公司授权市政工程公司的文件。",null,"建管处打分10分"]
[26,"YJJH-JSBS-GC-20191011205","施工H001标（江水北送段（二标段）西淝河朱集站～龙德站段河道工程）","中国水利水电第十一工程局有限公司（未开展第三季度考核）","河道工程总长42.80km：芦草沟～龙德闸河道桩号（155+015～132+500）段，长22.515km河道开挖；河道防冲刷混凝土防护，河道桩号（155+015～132+500）段，长22.515km；新建支流沟口水土保持防渗毯约3.42万m2；新建、重建和维修支流建筑物11座；改建、加固桥梁4座；新建防护拦5.2km","江水北送","2019-10-11",{"v":38080.128888,"d":"38080.13"},null,{"$f":"'H001'!G6","v":3},{"$f":"'H001'!G7","v":9},{"$f":"'H001'!G8","v":4},{"$f":"'H001'!G9","v":9.35},{"$f":"'H001'!G10","v":5},{"$f":"'H001'!G11","v":7.5},{"$f":"'H001'!G12","v":4.5},{"$f":"'H001'!G13","v":13},{"$f":"'H001'!G14","v":7},null,{"$f":"'H001'!G15","v":19},81.35,null,"1、合同4.4条合同价格包含人工、零星材料、小型工具、施工水电油、基坑排水、村民阻工补偿、技术措施、综合管理、安全文明、扬尘降噪、临时设施、相关施工及许可证办理、协调外部关系等费用；\n2、合同5.2.25分包提供原始、竣工验收资料等全部资料；\n3、合同6.1条施工用水及水源分包人自行解决；合同6.2条施工用电从二级配电以下自行解决；合同6.3条施工用风分包人自备；合同6.4条施工道路承包人负责；\n4、合同8条混凝土运输设备由承包人自备；\n5、合同17.3条月付款扣留质量保证金3%、履约保证金10%、安全生产保证金5%、农民工工资保证金2%；\n6、分包合同未附劳动合同，未采用建设部示范文本，采用承包人内部统一文本。","1、抽查了承包人正在办理签订流程的钢梁预制梁工程施工协议书分包合同：合同费用为工程量清单单价和工程量计算，合同为承包人项目部和阜阳市洪达路桥工程有限公司签订，未采用建设部示范文本，采用承包人内部统一文本，合同额315.17873万元；合同服务包含桥梁预制梁的制作、运输（含装卸）、安装（含调试）工程，综合单价含人工费、材料费、机械费（含单班或双班时间及机械用油）、管理费、利润、税金等一切费用，含C50混凝土、压浆的主材费用；合同内容还包括向承包人提供施工技术方案、施工报表、施工原始资料、竣工验收资料等相关资料和箱梁的主材检测、预埋件等所有涉及的试验报告及费用；乙方还提供门式起重机、通用桥式起重机等所有设备；分包合同未报监理及发包人审核；未核验劳务分包人与所用劳务人员的劳动用工合同，与水利部（2016）420文要求有出入。\n2、抽查了阚疃南站土方开挖及填筑工程施工协议书分包合同，合同费用为工程量清单单价和工程量计算，合同为承包人项目部与安徽光富建设工程有限公司签订，签约价为771.4613万元，合同综合单位包括人工费、材料费、机械费（含单班或双班司机及机械用油）、管理费、利润、税金等一切费用；合同内容还包括向承包人提供施工技术措施、施工报表、施工原始资料、竣工验收资料等相关资料；机械设备不能区分自有和租赁，应加强设备租赁履约风险管理；分包合同未报监理及发包人审核，与水利部（2016）420文要求有出入。","建管处打分10分"]
[27,"YJJH-JSBS-GC-20171108022 ","施工H002-1标（江水北送朱集站土建、安装工程）","上海市水利工程集团有限公司","朱集站设计调水流量为55m3/s。泵站安装2350ZLQ18.3-4.2型立式轴流泵机组4台，其中备机1台，叶轮直径2350mm，设计净扬程为3.53m，单机流量为18.33m³/s，配额定功率为1500kW的同步电机，总装机6000kW。建筑物包含主泵房、副厂房、安装间、变压器房、前池、进水池及出水池、进水渠、出水渠、清污机闸、交通桥、枢纽区和管理区道路等","江水北送","2017-11-08",{"$f":"85316000/10000","v":{"v":8531.6,"d":"8531.60"}},"良好",{"$f":"'H002-1'!G6","v":4},{"$f":"'H002-1'!G7","v":8},{"$f":"'H002-1'!G8","v":4},{"$f":"'H002-1'!G9","v":7.21},{"$f":"'H002-1'!G10","v":5},{"$f":"'H002-1'!G11","v":7.5},{"$f":"'H002-1'!G12","v":3},{"$f":"'H002-1'!G13","v":13},null,{"$f":"'H002-1'!G14","v":10},{"$f":"'H002-1'!G15","v":17},78.71,{"$nulls":3},"建管处打分10分"]
[28,"YJJH-JSBS-GC-20180126034","施工H002-2标（江水北送段（二标段）西淝河朱集站～龙德站段河道工程）","中国水利水电第十一工程局有限公司（未开展第三季度考核）","河道工程总长42.80km：芦草沟～龙德闸河道桩号（155+015～132+500）段，长22.515km河道开挖；河道防冲刷混凝土防护，河道桩号（155+015～132+500）段，长22.515km；新建支流沟口水土保持防渗毯约3.42万m2；新建、重建和维修支流建筑物11座；改建、加固桥梁4座；新建防护拦5.2km","江水北送","2018-01-26",{"$f":"240725624/10000","v":{"v":24072.5624,"d":"24072.56"}},"优秀",{"$f":"'H002-2'!G6","v":0},{"$f":"'H002-2'!G7","v":9},{"$f":"'H002-2'!G8","v":5},{"$f":"'H002-2'!G9","v":9.98},{"$f":"'H002-2'!G10","v":5},{"$f":"'H002-2'!G11","v":6},{"$f":"'H002-2'!G12","v":3},{"$f":"'H002-2'!G13","v":12.5},null,{"$f":"'H002-2'!G14","v":7},{"$f":"'H002-2'!G15","v":17},74.48,null,"闸涵工程分包合同内容包括了施工单位承担的质量、安全等管理工作，还包括施工单位承担的技术、原始及竣工等全部资料服务；劳务作业分包单位除计取劳务作业费用外，还计取大中型机械设备费用的；过程未向监理审核、发包人批准；不符合水利部关于印发《水利工程施工转包违法分包等违法行为认定查处管理暂行办法》的通知（水建管〔2016〕420号）第七条规定。",null,"建管处打分10分"]
[29,"YJJH-JSBS-GC-20191202239","江水北送段H003-1（河渠）标","中国电建市政建设集团有限公司",null,"江水北送","2019-12-02",{"v":31177.342,"d":"31177.34"},null,{"$f":"'H003-1'!G6","v":7},{"$f":"'H003-1'!G7","v":9},{"$f":"'H003-1'!G8","v":4},{"$f":"'H003-1'!G9","v":9.93},{"$f":"'H003-1'!G10","v":5},{"$f":"'H003-1'!G11","v":7.5},{"$f":"'H003-1'!G12","v":4.5},{"$f":"'H003-1'!G13","v":12},null,{"$f":"'H003-1'!G14","v":10},{"$f":"'H003-1'!G15","v":18},86.93,null,"1、抽查了项目部与永城市承安建筑劳务有限公司签订的施工劳务分包合同，合同额487.339061万元，采用固定综合单价，合同费用为工程量清单单价和工程量计算，有集团公司授权文件（公司干（2019）190号）；采用承包人内部统一文本，未采用建设部示范文本；付款周期为每阶段根据形象进度支付完成进度的80%表述不明确，未能体现按月支付；合同服务包含分包人提供生产生活全部设施、提供工程质量保修等，未见核验劳务分包人与所用劳务人员的劳动用工合同记录，与水利部（2016）420文要求有出入，监理有签署备案记录。\n2、机械租赁合同正在集团公司审批，目前进场有50多台设备施工，合同价包含了机械、人员、材料（含主材柴油）、利润、税金等全部费用，合同有机械数量计划表，机械设备不能区分自有或租赁公司租赁，应加强设备租赁履约风险管理。",null,"建管处打分10分"]
[30,"YJJH-JSBS-GC-20180131035","施工H004标（江水北送段（一标段）亳州城市供水）","中国水利水电第五工程局有限公司","新建加压泵站，设计流量5.0m³/s；西淝河向亳州城区供水管道安装；新建调蓄水库，总库容493万m³，调蓄库容460万m³","江水北送","2018-01-31",{"$f":"302195462/10000","v":{"v":30219.5462,"d":"30219.55"}},"良好",{"$f":"'H004'!G6","v":8},{"$f":"'H004'!G7","v":10},{"$f":"'H004'!G8","v":4},{"$f":"'H004'!G9","v":10},{"$f":"'H004'!G10","v":5},{"$f":"'H004'!G11","v":7.5},{"$f":"'H004'!G12","v":3},{"$f":"'H004'!G13","v":13},{"$f":"'H004'!G14","v":7},null,{"$f":"'H004'!G15","v":16},83.5,null,"1、抽查了沥青混凝土工程分包合同（合同价1922.777889万元）：合同为水电五局集团与安徽新干线路桥工程有限公司签订，合同签订时间为2019年12月24日，合同费用为工程量清单单价和工程量计算，包含了人员、主要材料、施工机械、利润、风险、税金等全部费用，监理已审批，审批单见中国水电五局（2019）报告161号，未见报建管处或集团公司审核程序。\n2、抽查了调蓄水库工程及弃土消纳工程劳务分包合同：合同为水电五局集团与江西建工第三建筑有限责任公司签订，未采用建设部示范文本，采用承包人内部统一文本，合同额1648.14705万元，合同签订时间为2018年12月15日，合同服务包含工程资料编制（质量检验、评定资料、工程量签证等资料）、配置人员（项目经理、技术负责人、质检负责人、安全负责人、合同管理、现场管理、劳动人员）、配合承包人办理交工验收等，合同费用为工程量清单单价和工程量计算。与水利部（2016）420文要求有出入。\n3、抽查了金结、机电设备采购及安装工程，中水五局集团采购的钢管、启闭机、电缆等设备采购合同的签约主体为中水五局亳州供水工程机电安装项目部，未见中水五局集团授权签约事宜的文件。",null,"建管处打分10分"]
[31,"YJJH-JSBS-GC-20190125137","施工H005标（江水北送段阜阳城市供水工程）","中国电建市政建设集团有限公司","所有土建工程，以及水机、金属结构、电气等专业的安装工程等。主要工程内容包括但不限于：（1）土方明挖工程；（2）地基与基础工程；（3）土石方填筑工程；（4）混凝土及钢筋混凝土工程；（5）房屋建筑工程；（6）道路工程；（7）水泵机组、阀门、辅机、钢管、电气元件的安装及起重设备的采购与安装工程；（8）金属结构安装工程；（9）电气设备采购与安装工程；（10）安全监测工程；（11）输水管（PCCP+JPCCP）安装工程，钢管的采购和安装工程；（12）压力钢管制作与安装工程；（13）拆除工程；（14）管理设施工程；（15）砌体工程；（16）水土保持工程等。","江水北送","2019-01-25",{"v":19020.6145,"d":"19020.61"},"良好",{"$f":"'H005'!G6","v":3},{"$f":"'H005'!G7","v":10},{"$f":"'H005'!G8","v":4},{"$f":"'H005'!G9","v":8.97},{"$f":"'H005'!G10","v":5},{"$f":"'H005'!G11","v":7.5},{"$f":"'H005'!G12","v":3},{"$f":"'H005'!G13","v":13},{"$f":"'H005'!G14","v":7},null,{"$f":"'H005'!G15","v":18},79.47,null,"1、抽查了插花站钢筋混凝土工程施工分包合同：合同费用为工程量清单单价和工程量计算，合同为承包人项目部和故城县兴安建筑劳务分包有限公司签订，未采用建设部示范文本，采用承包人内部统一文本，合同额863.794236万元；合同服务包含人工费、机械费（含进出场费）、辅助材料费、管理费、利润、税金等一切费用；合同内容还包括向承包人提供施工技术方案、施工报表、施工原始资料、竣工验收资料等相关资料，还包括施工测量工作、质检资料归集整理工作（包括按规定填报资料）；合同费用包含2%安全生产费用；分包合同未报监理及发包人审核；未核验劳务分包人与所用劳务人员的劳动用工合同，与水利部（2016）420文要求有出入。\n2、抽查了土方开挖回填设备租赁合同，合同费用为月租单价，合同为承包人项目部与巨野巨鑫水利工程有限公司签订，签约价为878.9万元；机械设备不能区分自有和租赁，应加强设备租赁履约风险管理；分包合同未报监理备案。",null,"建管处打分10分"]
[24,"YJJH-ZT-GC-20170104013","施工J001-1标（江淮沟通段派河口泵站枢纽施工准备导流导航工程）","安徽水利开发股份有限公司（未开展第三季度考核）","派河口泵站枢纽节制闸土建工程，节制闸电气设备及金属结构安装工程；节制闸上下游引河开挖工程及上游引航道疏浚工程，起讫桩号0+330～2+932；派河左岸堤防退建及护坡工程，起讫桩号0+330～2+932；庄房郢站土建工程及其电气设备及金属结构安装工程；闸上左岸锚地工程，起讫桩号2+225～2+650；节制闸与船闸之间的分流岛左侧边坡护砌工程，起讫桩号0+600～1+680","肥西","2016-12-22",{"$f":"91379200/10000","v":9137.92},null,"施工J001-1标（江淮沟通段派河口泵站枢纽施工准备导流导航工程）2019年5月20日工程施工已阶段完成，下半年未施工，9月29日已组织阶段验收，本次不参与履行评价"]
[null,null,"施工J002-3标（江淮沟通段）","中国铁建大桥工程局集团有限公司",{"$nulls":16},{"$f":"SUM(J38:T38)","v":0},null,null,"发生一起劳务纠纷。"]

{"sheet":"C001","index":2,"n_rows":15,"n_cols":9,"rows_kept":15,"hidden":true,"merged":[[1,0,1,7],[2,0,2,7],[4,0,4,2],[7,1,8,1],[9,1,11,1]]}
[null,"附件2："]
["安徽省水利工程建设施工合同履行评价评分表"]
["合同名称：引江济淮工程（安徽段）引江济巢段菜巢线施工 C001标                                合同单位： 安徽水安建设集团股份有限公司"]
["序号","评价指标","参考标准","满分","建管处一、二季度打分最低项统计","建管处扣分依据","集团公司半年度打分","集团公司扣分依据","打分部门"]
["得分合计",null,null,100,{"$f":"SUM(E6:E15)","v":91},null,{"$f":"SUM(G6:G15)","v":85.5}]
[1,"管理人员到位（10分）","项目经理或技术负责人未按投标承诺或合同约定到位的，扣10分；其他管理人员未按投标承诺或合同约定到位的，按每人扣1分，最多扣5分。",10,10,null,9,"人员进场计划滞后、投标人员比例低，补充人员未进行证件资质报备核验；投标安全员3人、质检员3人，现场已进入建设高峰期，但人员分别仅1人，投入不足；","合同管理部"]
[2,"机械设备到位（10分）","因施工机械、设备不到位影响工期或工程质量的，扣0~10分。",10,9,"因土建原因影响工期",9,"桩基设备不及时到位，影响工期","建设管理部"]
[3,"工程进度管理（15分）","进度管理（5分）：进度计划报批手续不齐全或施工进度管理不到位的，扣0~5分。",5,5,null,5,null,"建设管理部"]
[4,null,"实际进度（10分）:因施工企业原因，造成工期延误的，扣0~10分；因施工企业原因，造成阶段目标和总体进度严重滞后的，扣10分。",10,8,"泵站工期滞后",8,"枞阳泵站进度与实施性施组相比，滞后约1年","建设管理部"]
[5,"工程质量管理（20分）","质量管理体系（5分）：1、设立专门的质量管理机构或建立健全质量保证体系；2、配备质量管理人员；3、制定并落实质量管理制度。\n以上如有不满足的，按2分/条扣分，最多扣5分。",5,5,null,5,"根据集团公司2020年1-6月份检查、巡查反应，该标段质量管理体系基本健全。","质量安全管理部"]
[6,null,"工程质量行为（9分）：1、按照设计图纸和施工技术标准施工；2、原材料、中间产品、构配件等按规定检验及报验；3、涉及工程结构安全的试块、试件及有关材料按规定见证取样和送检；4、单元工程及工序质量检验和报验，隐蔽工程和关键部位的验收符合要求；5、试验仪器及设备按规定和合同到位，满足施工要求；6、制定并落实计划，按规范进行工艺试验确定施工参数，满足施工要求。以上如有不满足的，按1.5分/条扣分，最多扣9分。",9,6,"原材料、中间产品及报验不及时。\n单元工程工序检验报验不及时",9,"根据集团公司2020年1-6月份检查、巡查反应，该标段质量管理行为存在原材料、中间产品及报验不及时，\n单元工程工序检验报验不及时等问题","质量安全管理部"]
[7,null,"质量管理效果（6分）：\n1、分部工程及单位工程验收情况；2、历次质量检查和抽检情况；3、工程外观质量情况；4、过程及竣工检测等各类检测。\n以上如有不满足规范和设计要求的，按1.5分/条扣分，最多扣6分。",6,6,null,4.5,"根据集团公司2020年1-6月份检查、巡查反应，该标段检查中发现该标段存在堤防填筑、钢筋制安、混凝土浇筑以及止水安装保护等质量问题。","质量安全管理部"]
[8,"施工技术管理（15分）","1、单项工程施工组织设计和分部工程、单位工程施工组织方案齐全并具有针对性；2、及时履行各类报验手续；3、施工记录完整；4、及时回复监理工程师通知；5、工程签证齐全、签字手续完备；6、归档资料及时、真实、规范、完整。以上如有不满足的，按1~3分/条扣分，最多扣15分。",15,12,"监理通知回复不及时",12,"监理通知回复不及时","建设管理部"]
[9,"劳务分包管理及农民工工资拖欠情况（10分）","未按规定签订劳务分包协议、未与农民工签订合法劳务合同的，扣3分；因施工企业原因，发生农民工向项目法人单位讨要拖欠工资的，每次扣3分，最多扣10分；因施工企业原因，发生农民工向政府部门讨要拖欠工资或因拖欠民工工资引发群体性事件的，直接扣10分。",10,10,null,7,"合同专项检查：节制闸主体结构综合劳务合同（安徽垚磊劳务有限公司164.480945万元），不能与所用人员劳动合同有效关联。","建设管理部、合同管理部"]
[10,"安全生产及文明施工（20分）","1、安全生产管理体系和保证措施的建立情况；2、安全生产专项方案的编制情况；3、专职安全员的配备情况；4、安全生产经费和保障措施的落实情况；5、文明施工的计划与落实情况；6、施工企业与建设、监理、设计单位的协作情况。以上如有不满足规范和有关要求的，按1~4分/条扣分，最多扣20分；出现安全事故的，直接扣20分。",20,20,null,17,null,"质量安全管理部"]

{"sheet":"C003-1","index":3,"n_rows":15,"n_cols":9,"rows_kept":15,"hidden":true,"merged":[[1,0,1,7],[2,0,2,7],[4,0,4,2],[7,1,8,1],[9,1,11,1]]}
[null,"附件2："]
["安徽省水利工程建设施工合同履行评价评分表"]
["合同名称：引江济淮工程（安徽段）引江济巢段菜巢线施工C003-1(河渠)标                                合同单位： 中国水利水电第七工程局有限公司"]
["序号","评价指标","参考标准","满分","建管处一、二季度打分最低项统计","建管处扣分依据","集团公司半年度打分","集团公司扣分依据","打分部门"]
["得分合计",null,null,100,{"$f":"SUM(E6:E15)","v":90.5},null,{"$f":"SUM(G6:G15)","v":90}]
[1,"管理人员到位（10分）","项目经理或技术负责人未按投标承诺或合同约定到位的，扣10分；其他管理人员未按投标承诺或合同约定到位的，按每人扣1分，最多扣5分。",10,9,"请假不及时",9,"部分管理人员出差或缺勤未办理请假手续（3月王国战缺勤4天），现场考勤记录存在多人雷同","合同管理部"]
[2,"机械设备到位（10分）","因施工机械、设备不到位影响工期或工程质量的，扣0~10分。",10,10,null,10,null,"建设管理部"]
[3,"工程进度管理（15分）","进度管理（5分）：进度计划报批手续不齐全或施工进度管理不到位的，扣0~5分。",5,5,null,5,null,"建设管理部"]
[4,null,"实际进度（10分）:因施工企业原因，造成工期延误的，扣0~10分；因施工企业原因，造成阶段目标和总体进度严重滞后的，扣10分。",10,9,"疫情影响工期延误",10,null,"建设管理部"]
[5,"工程质量管理（20分）","质量管理体系（5分）：1、设立专门的质量管理机构或建立健全质量保证体系；2、配备质量管理人员；3、制定并落实质量管理制度。\n以上如有不满足的，按2分/条扣分，最多扣5分。",5,5,null,5,"根据集团公司2020年1-6月份检查、巡查反应，该标段质量管理体系基本健全。","质量安全管理部"]
[6,null,"工程质量行为（9分）：1、按照设计图纸和施工技术标准施工；2、原材料、中间产品、构配件等按规定检验及报验；3、涉及工程结构安全的试块、试件及有关材料按规定见证取样和送检；4、单元工程及工序质量检验和报验，隐蔽工程和关键部位的验收符合要求；5、试验仪器及设备按规定和合同到位，满足施工要求；6、制定并落实计划，按规范进行工艺试验确定施工参数，满足施工要求。以上如有不满足的，按1.5分/条扣分，最多扣9分。",9,7.5,"工序报验不及时",7,"根据集团公司2020年1-6月份检查、巡查反应，该标段质量管理行为存在工序检验报验不及时等问题","质量安全管理部"]
[7,null,"质量管理效果（6分）：\n1、分部工程及单位工程验收情况；2、历次质量检查和抽检情况；3、工程外观质量情况；4、过程及竣工检测等各类检测。\n以上如有不满足规范和设计要求的，按1.5分/条扣分，最多扣6分。",6,5,"外观质量存在整改部位",5,"根据集团公司2020年1-6月份检查、巡查反应，该标段质量管理效果能满足设计和规范要求，但部分实体工程外观存在缺陷。","质量安全管理部"]
[8,"施工技术管理（15分）","1、单项工程施工组织设计和分部工程、单位工程施工组织方案齐全并具有针对性；2、及时履行各类报验手续；3、施工记录完整；4、及时回复监理工程师通知；5、工程签证齐全、签字手续完备；6、归档资料及时、真实、规范、完整。以上如有不满足的，按1~3分/条扣分，最多扣15分。",15,13,"监理通知单回复不及时",13,"监理通知单回复不及时，变更办理不及时","建设管理部"]
[9,"劳务分包管理及农民工工资拖欠情况（10分）","未按规定签订劳务分包协议、未与农民工签订合法劳务合同的，扣3分；因施工企业原因，发生农民工向项目法人单位讨要拖欠工资的，每次扣3分，最多扣10分；因施工企业原因，发生农民工向政府部门讨要拖欠工资或因拖欠民工工资引发群体性事件的，直接扣10分。",10,7,"分包农民工工资管理不到位",7,"建管处结合水利部稽查进行全面排查，劳务合同含主材、机械、技术服务、质量服务等","建设管理部、合同管理部"]
[10,"安全生产及文明施工（20分）","1、安全生产管理体系和保证措施的建立情况；2、安全生产专项方案的编制情况；3、专职安全员的配备情况；4、安全生产经费和保障措施的落实情况；5、文明施工的计划与落实情况；6、施工企业与建设、监理、设计单位的协作情况。以上如有不满足规范和有关要求的，按1~4分/条扣分，最多扣20分；出现安全事故的，直接扣20分。",20,20,null,19,null,"质量安全管理部"]

{"sheet":"C004","index":4,"n_rows":15,"n_cols":9,"rows_kept":15,"hidden":true,"merged":[[1,0,1,7],[2,0,2,7],[4,0,4,2],[7,1,8,1],[9,1,11,1]]}
[null,"附件2："]
["安徽省水利工程建设施工合同履行评价评分表"]
["合同名称：引江济淮工程（安徽段）引江济巢段菜巢线施工C004标                  合同单位：中铁二局集团有限公司"]
["序号","评价指标","参考标准","满分","建管处一、二季度打分最低项统计","建管处扣分依据","集团公司半年度打分","集团公司扣分依据","打分部门"]
["得分合计",null,null,100,{"$f":"SUM(E6:E15)","v":90.5},null,{"$f":"SUM(G6:G15)","v":82.4}]
[1,"管理人员到位（10分）","项目经理或技术负责人未按投标承诺或合同约定到位的，扣10分；其他管理人员未按投标承诺或合同约定到位的，按每人扣1分，最多扣5分。",10,8,"投标造价人员丁磊、质检员陈胜文未到位",5,"现场抽查邓国文、倪洪亮、欧阳霈、宋建虎、肖华、谢直兰、杨晟，均未到场且无请销假手续。钉钉3月仅1人考勤正常，4月仅3人考勤正常，5月仅12人考勤正常，其余人员请销假手续不全，异常情况报告单监理未批。广域网苟天胜5月份办理人员变更 ，但3、4、5月份均无考勤记录。检查当日周碧强、林勇请假。投标人员50人，按计划应进场50人，实际进场32人","合同管理部"]
[2,"机械设备到位（10分）","因施工机械、设备不到位影响工期或工程质量的，扣0~10分。",10,10,null,10,null,"建设管理部"]
[3,"工程进度管理（15分）","进度管理（5分）：进度计划报批手续不齐全或施工进度管理不到位的，扣0~5分。",5,5,null,5,null,"建设管理部"]
[4,null,"实际进度（10分）:因施工企业原因，造成工期延误的，扣0~10分；因施工企业原因，造成阶段目标和总体进度严重滞后的，扣10分。",10,8,"虽然受疫情影响，但一季度是进度总体滞后",8.4,"上半年投资完成率84%","建设管理部"]
[5,"工程质量管理（20分）","质量管理体系（5分）：1、设立专门的质量管理机构或建立健全质量保证体系；2、配备质量管理人员；3、制定并落实质量管理制度。\n以上如有不满足的，按2分/条扣分，最多扣5分。",5,5,null,5,"根据集团公司2020年1-6月份检查、巡查反应，该标段质量管理体系基本健全。","质量安全管理部"]
[6,null,"工程质量行为（9分）：1、按照设计图纸和施工技术标准施工；2、原材料、中间产品、构配件等按规定检验及报验；3、涉及工程结构安全的试块、试件及有关材料按规定见证取样和送检；4、单元工程及工序质量检验和报验，隐蔽工程和关键部位的验收符合要求；5、试验仪器及设备按规定和合同到位，满足施工要求；6、制定并落实计划，按规范进行工艺试验确定施工参数，满足施工要求。以上如有不满足的，按1.5分/条扣分，最多扣9分。",9,9,null,7,"根据集团公司2020年1-6月份检查、巡查反应，该标段质量管理行为存在工序检验报验不及时、评定不及时等问题","质量安全管理部"]
[7,null,"质量管理效果（6分）：\n1、分部工程及单位工程验收情况；2、历次质量检查和抽检情况；3、工程外观质量情况；4、过程及竣工检测等各类检测。\n以上如有不满足规范和设计要求的，按1.5分/条扣分，最多扣6分。",6,4.5,null,3,"根据集团公司2020年1-6月份检查、巡查反应，该标段检查中发现该标段存在堤防填筑、钢筋制安、混凝土浇筑质量问题。","质量安全管理部"]
[8,"施工技术管理（15分）","1、单项工程施工组织设计和分部工程、单位工程施工组织方案齐全并具有针对性；2、及时履行各类报验手续；3、施工记录完整；4、及时回复监理工程师通知；5、工程签证齐全、签字手续完备；6、归档资料及时、真实、规范、完整。以上如有不满足的，按1~3分/条扣分，最多扣15分。",15,13,null,13,"设计变更办理不及时","建设管理部"]
[9,"劳务分包管理及农民工工资拖欠情况（10分）","未按规定签订劳务分包协议、未与农民工签订合法劳务合同的，扣3分；因施工企业原因，发生农民工向项目法人单位讨要拖欠工资的，每次扣3分，最多扣10分；因施工企业原因，发生农民工向政府部门讨要拖欠工资或因拖欠民工工资引发群体性事件的，直接扣10分。",10,10,null,10,null,"建设管理部、合同管理部"]
[10,"安全生产及文明施工（20分）","1、安全生产管理体系和保证措施的建立情况；2、安全生产专项方案的编制情况；3、专职安全员的配备情况；4、安全生产经费和保障措施的落实情况；5、文明施工的计划与落实情况；6、施工企业与建设、监理、设计单位的协作情况。以上如有不满足规范和有关要求的，按1~4分/条扣分，最多扣20分；出现安全事故的，直接扣20分。",20,18,null,16,null,"质量安全管理部"]

{"sheet":"C005-2","index":5,"n_rows":15,"n_cols":9,"rows_kept":15,"hidden":true,"merged":[[1,0,1,7],[2,0,2,7],[4,0,4,2],[7,1,8,1],[9,1,11,1]]}
[null,"附件2："]
["安徽省水利工程建设施工合同履行评价评分表"]
["合同名称：引江济淮工程（安徽段）引江济巢段菜巢线施工C005标        合同单位：安徽水安建设集团股份有限公司 "]
["序号","评价指标","参考标准","满分","建管处一、二季度打分最低项统计","建管处扣分依据","集团公司半年度打分","集团公司扣分依据","打分部门"]
["得分合计",null,null,100,{"$f":"SUM(E6:E15)","v":86.5},null,{"$f":"SUM(G6:G15)","v":86}]
[1,"管理人员到位（10分）","项目经理或技术负责人未按投标承诺或合同约定到位的，扣10分；其他管理人员未按投标承诺或合同约定到位的，按每人扣1分，最多扣5分。",10,3,null,7.5,"现场抽查陈惠全（不在现场未请假）；钉钉3、4、5月赵文旭、周琼2人考勤异常（离职）且无请销假手续，也无变更手续","合同管理部"]
[2,"机械设备到位（10分）","因施工机械、设备不到位影响工期或工程质量的，扣0~10分。",10,10,null,10,null,"建设管理部"]
[3,"工程进度管理（15分）","进度管理（5分）：进度计划报批手续不齐全或施工进度管理不到位的，扣0~5分。",5,5,null,5,null,"建设管理部"]
[4,null,"实际进度（10分）:因施工企业原因，造成工期延误的，扣0~10分；因施工企业原因，造成阶段目标和总体进度严重滞后的，扣10分。",10,10,null,10,null,"建设管理部"]
[5,"工程质量管理（20分）","质量管理体系（5分）：1、设立专门的质量管理机构或建立健全质量保证体系；2、配备质量管理人员；3、制定并落实质量管理制度。\n以上如有不满足的，按2分/条扣分，最多扣5分。",5,3,"质量负责人已离职，未及时履行变更手续",3,"根据集团公司2020年1-6月份检查、巡查反应，该标段质量管理体系基本健全，但质量负责人已离职，未及时履行变更手续的问题。","质量安全管理部"]
[6,null,"工程质量行为（9分）：1、按照设计图纸和施工技术标准施工；2、原材料、中间产品、构配件等按规定检验及报验；3、涉及工程结构安全的试块、试件及有关材料按规定见证取样和送检；4、单元工程及工序质量检验和报验，隐蔽工程和关键部位的验收符合要求；5、试验仪器及设备按规定和合同到位，满足施工要求；6、制定并落实计划，按规范进行工艺试验确定施工参数，满足施工要求。以上如有不满足的，按1.5分/条扣分，最多扣9分。",9,7.5,"评定、报验不及时",7,"根据集团公司2020年1-6月份检查、巡查反应，该标段质量管理行为存在工序检验报验不及时、评定不及时等问题","质量安全管理部"]
[7,null,"质量管理效果（6分）：\n1、分部工程及单位工程验收情况；2、历次质量检查和抽检情况；3、工程外观质量情况；4、过程及竣工检测等各类检测。\n以上如有不满足规范和设计要求的，按1.5分/条扣分，最多扣6分。",6,6,null,4.5,"根据集团公司2020年1-6月份检查、巡查反应，该标段检查中发现该标段存在钢筋制安、混凝土浇筑质量问题。","质量安全管理部"]
[8,"施工技术管理（15分）","1、单项工程施工组织设计和分部工程、单位工程施工组织方案齐全并具有针对性；2、及时履行各类报验手续；3、施工记录完整；4、及时回复监理工程师通知；5、工程签证齐全、签字手续完备；6、归档资料及时、真实、规范、完整。以上如有不满足的，按1~3分/条扣分，最多扣15分。",15,14,"资料归档不及时",14,"资料归档不及时","建设管理部"]
[9,"劳务分包管理及农民工工资拖欠情况（10分）","未按规定签订劳务分包协议、未与农民工签订合法劳务合同的，扣3分；因施工企业原因，发生农民工向项目法人单位讨要拖欠工资的，每次扣3分，最多扣10分；因施工企业原因，发生农民工向政府部门讨要拖欠工资或因拖欠民工工资引发群体性事件的，直接扣10分。",10,10,null,7,"建管处结合水利部稽查进行全面排查，部分劳务合同未向监理备案","建设管理部、合同管理部"]
[10,"安全生产及文明施工（20分）","1、安全生产管理体系和保证措施的建立情况；2、安全生产专项方案的编制情况；3、专职安全员的配备情况；4、安全生产经费和保障措施的落实情况；5、文明施工的计划与落实情况；6、施工企业与建设、监理、设计单位的协作情况。以上如有不满足规范和有关要求的，按1~4分/条扣分，最多扣20分；出现安全事故的，直接扣20分。",20,18,null,18,null,"质量安全管理部"]

{"sheet":"C006-1","index":6,"n_rows":15,"n_cols":9,"rows_kept":15,"hidden":true,"merged":[[1,0,1,7],[2,0,2,7],[4,0,4,2],[7,1,8,1],[9,1,11,1]]}
[null,"附件2："]
["安徽省水利工程建设施工合同履行评价评分表"]
["合同名称：引江济淮工程（安徽段）引江济巢段菜巢线施工C006-1标                  合同单位：中铁十局集团有限公司"]
["序号","评价指标","参考标准","满分","建管处一、二季度打分最低项统计","建管处扣分依据","集团公司半年度打分","集团公司扣分依据","打分部门"]
["得分合计",null,null,100,{"$f":"SUM(E6:E15)","v":86.5},null,{"$f":"SUM(G6:G15)","v":81.07}]
[1,"管理人员到位（10分）","项目经理或技术负责人未按投标承诺或合同约定到位的，扣10分；其他管理人员未按投标承诺或合同约定到位的，按每人扣1分，最多扣5分。",10,10,null,6,"钉钉考勤卢昌茂3、4、5月，汪葛庆3、4月，王宁宁3月未考勤、无请销假手续且无书面情况说明。\n广域网考勤陈哓涛5月份缺勤12天，已变更为张阿龙。","合同管理部"]
[2,"机械设备到位（10分）","因施工机械、设备不到位影响工期或工程质量的，扣0~10分。",10,4,null,4,null,"建设管理部"]
[3,"工程进度管理（15分）","进度管理（5分）：进度计划报批手续不齐全或施工进度管理不到位的，扣0~5分。",5,5,null,5,null,"建设管理部"]
[4,null,"实际进度（10分）:因施工企业原因，造成工期延误的，扣0~10分；因施工企业原因，造成阶段目标和总体进度严重滞后的，扣10分。",10,9,null,7.07,null,"建设管理部"]
[5,"工程质量管理（20分）","质量管理体系（5分）：1、设立专门的质量管理机构或建立健全质量保证体系；2、配备质量管理人员；3、制定并落实质量管理制度。\n以上如有不满足的，按2分/条扣分，最多扣5分。",5,3,"质量台账无记录",5,"根据集团公司2020年1-6月份检查、巡查反应，该标段质量管理体系基本健全，但存在质量管理台帐不完善等问题。","质量安全管理部"]
[6,null,"工程质量行为（9分）：1、按照设计图纸和施工技术标准施工；2、原材料、中间产品、构配件等按规定检验及报验；3、涉及工程结构安全的试块、试件及有关材料按规定见证取样和送检；4、单元工程及工序质量检验和报验，隐蔽工程和关键部位的验收符合要求；5、试验仪器及设备按规定和合同到位，满足施工要求；6、制定并落实计划，按规范进行工艺试验确定施工参数，满足施工要求。以上如有不满足的，按1.5分/条扣分，最多扣9分。",9,7.5,null,7,"根据集团公司2020年1-6月份检查、巡查反应，该标段质量管理行为存在原材料、中间产品及报验不及时，\n单元工程工序检验报验不及时等问题","质量安全管理部"]
[7,null,"质量管理效果（6分）：\n1、分部工程及单位工程验收情况；2、历次质量检查和抽检情况；3、工程外观质量情况；4、过程及竣工检测等各类检测。\n以上如有不满足规范和设计要求的，按1.5分/条扣分，最多扣6分。",6,6,null,5,"根据集团公司2020年1-6月份检查、巡查反应，该标段检查中发现该标段存在钢筋制安、混凝土浇筑质量问题。","质量安全管理部"]
[8,"施工技术管理（15分）","1、单项工程施工组织设计和分部工程、单位工程施工组织方案齐全并具有针对性；2、及时履行各类报验手续；3、施工记录完整；4、及时回复监理工程师通知；5、工程签证齐全、签字手续完备；6、归档资料及时、真实、规范、完整。以上如有不满足的，按1~3分/条扣分，最多扣15分。",15,14,null,14,null,"建设管理部"]
[9,"劳务分包管理及农民工工资拖欠情况（10分）","未按规定签订劳务分包协议、未与农民工签订合法劳务合同的，扣3分；因施工企业原因，发生农民工向项目法人单位讨要拖欠工资的，每次扣3分，最多扣10分；因施工企业原因，发生农民工向政府部门讨要拖欠工资或因拖欠民工工资引发群体性事件的，直接扣10分。",10,10,null,10,null,"建设管理部、合同管理部"]
[10,"安全生产及文明施工（20分）","1、安全生产管理体系和保证措施的建立情况；2、安全生产专项方案的编制情况；3、专职安全员的配备情况；4、安全生产经费和保障措施的落实情况；5、文明施工的计划与落实情况；6、施工企业与建设、监理、设计单位的协作情况。以上如有不满足规范和有关要求的，按1~4分/条扣分，最多扣20分；出现安全事故的，直接扣20分。",20,18,null,18,null,"质量安全管理部"]

{"sheet":"C006-2","index":7,"n_rows":15,"n_cols":9,"rows_kept":15,"hidden":true,"merged":[[1,0,1,7],[2,0,2,7],[4,0,4,2],[7,1,8,1],[9,1,11,1]]}
[null,"附件2："]
["安徽省水利工程建设施工合同履行评价评分表"]
["合同名称：引江济淮工程（安徽段）引江济巢段菜巢线施工C006-2标                  合同单位：中铁二十局集团有限公司"]
["序号","评价指标","参考标准","满分","建管处一、二季度打分最低项统计","建管处扣分依据","集团公司半年度打分","集团公司扣分依据","打分部门"]
["得分合计",null,null,100,{"$f":"SUM(E6:E15)","v":93},null,{"$f":"SUM(G6:G15)","v":95.7}]
[1,"管理人员到位（10分）","项目经理或技术负责人未按投标承诺或合同约定到位的，扣10分；其他管理人员未按投标承诺或合同约定到位的，按每人扣1分，最多扣5分。",10,10,null,10,null,"合同管理部"]
[2,"机械设备到位（10分）","因施工机械、设备不到位影响工期或工程质量的，扣0~10分。",10,10,null,10,null,"建设管理部"]
[3,"工程进度管理（15分）","进度管理（5分）：进度计划报批手续不齐全或施工进度管理不到位的，扣0~5分。",5,5,null,5,null,"建设管理部"]
[4,null,"实际进度（10分）:因施工企业原因，造成工期延误的，扣0~10分；因施工企业原因，造成阶段目标和总体进度严重滞后的，扣10分。",10,10,null,9.2,null,"建设管理部"]
[5,"工程质量管理（20分）","质量管理体系（5分）：1、设立专门的质量管理机构或建立健全质量保证体系；2、配备质量管理人员；3、制定并落实质量管理制度。\n以上如有不满足的，按2分/条扣分，最多扣5分。",5,5,null,5,"根据集团公司2020年1-6月份检查、巡查反应，该标段质量管理体系基本健全。","质量安全管理部"]
[6,null,"工程质量行为（9分）：1、按照设计图纸和施工技术标准施工；2、原材料、中间产品、构配件等按规定检验及报验；3、涉及工程结构安全的试块、试件及有关材料按规定见证取样和送检；4、单元工程及工序质量检验和报验，隐蔽工程和关键部位的验收符合要求；5、试验仪器及设备按规定和合同到位，满足施工要求；6、制定并落实计划，按规范进行工艺试验确定施工参数，满足施工要求。以上如有不满足的，按1.5分/条扣分，最多扣9分。",9,12,null,7.5,"根据集团公司2020年1-6月份检查、巡查反应，该标段质量管理行为存在工程工序检验报验不及时等问题。","质量安全管理部"]
[7,null,"质量管理效果（6分）：\n1、分部工程及单位工程验收情况；2、历次质量检查和抽检情况；3、工程外观质量情况；4、过程及竣工检测等各类检测。\n以上如有不满足规范和设计要求的，按1.5分/条扣分，最多扣6分。",6,null,null,5,"根据集团公司2020年1-6月份检查、巡查反应，该标段检查中发现该标段存在钢筋制安、混凝土浇筑质量问题。","质量安全管理部"]
[8,"施工技术管理（15分）","1、单项工程施工组织设计和分部工程、单位工程施工组织方案齐全并具有针对性；2、及时履行各类报验手续；3、施工记录完整；4、及时回复监理工程师通知；5、工程签证齐全、签字手续完备；6、归档资料及时、真实、规范、完整。以上如有不满足的，按1~3分/条扣分，最多扣15分。",15,15,null,15,null,"建设管理部"]
[9,"劳务分包管理及农民工工资拖欠情况（10分）","未按规定签订劳务分包协议、未与农民工签订合法劳务合同的，扣3分；因施工企业原因，发生农民工向项目法人单位讨要拖欠工资的，每次扣3分，最多扣10分；因施工企业原因，发生农民工向政府部门讨要拖欠工资或因拖欠民工工资引发群体性事件的，直接扣10分。",10,7,"有讨薪",10,null,"建设管理部、合同管理部"]
[10,"安全生产及文明施工（20分）","1、安全生产管理体系和保证措施的建立情况；2、安全生产专项方案的编制情况；3、专职安全员的配备情况；4、安全生产经费和保障措施的落实情况；5、文明施工的计划与落实情况；6、施工企业与建设、监理、设计单位的协作情况。以上如有不满足规范和有关要求的，按1~4分/条扣分，最多扣20分；出现安全事故的，直接扣20分。",20,19,null,19,null,"质量安全管理部"]

{"sheet":"C007等菜北标","index":8,"n_rows":15,"n_cols":9,"rows_kept":15,"hidden":true,"merged":[[1,0,1,7],[2,0,2,7],[4,0,4,2],[7,1,8,1],[9,1,11,1]]}
[null,"附件2："]
["安徽省水利工程建设施工合同履行评价评分表"]
["合同名称：引江济淮工程（安徽段）引江济巢段菜巢分水岭以北庐江境水利工程施工标          合同单位：中国水利水电第十二局有限公司"]
["序号","评价指标","参考标准","满分","建管处一、二季度打分最低项统计","建管处扣分依据","集团公司半年度打分","集团公司扣分依据","打分部门"]
["得分合计",null,null,100,{"$f":"SUM(E6:E15)","v":85},null,{"$f":"SUM(G6:G15)","v":78.01}]
[1,"管理人员到位（10分）","项目经理或技术负责人未按投标承诺或合同约定到位的，扣10分；其他管理人员未按投标承诺或合同约定到位的，按每人扣1分，最多扣5分。",10,10,null,5,"4月陈兵、宋海超、丁可、毛俊、孙莉、张深垒、郑维缺勤，无请销假记录且无情况说明；\n广域网4月龚灿缺勤2天，无请销假记录且无情况说明（龚灿3月考勤异常说明报告已报建管处审批，未见4月材料）\n","合同管理部"]
[2,"机械设备到位（10分）","因施工机械、设备不到位影响工期或工程质量的，扣0~10分。",10,8,null,8,null,"建设管理部"]
[3,"工程进度管理（15分）","进度管理（5分）：进度计划报批手续不齐全或施工进度管理不到位的，扣0~5分。",5,5,null,5,null,"建设管理部"]
[4,null,"实际进度（10分）:因施工企业原因，造成工期延误的，扣0~10分；因施工企业原因，造成阶段目标和总体进度严重滞后的，扣10分。",10,8,null,8.51,null,"建设管理部"]
[5,"工程质量管理（20分）","质量管理体系（5分）：1、设立专门的质量管理机构或建立健全质量保证体系；2、配备质量管理人员；3、制定并落实质量管理制度。\n以上如有不满足的，按2分/条扣分，最多扣5分。",5,5,null,5,"根据集团公司2020年1-6月份检查、巡查反应，该标段质量管理体系基本健全。","质量安全管理部"]
[6,null,"工程质量行为（9分）：1、按照设计图纸和施工技术标准施工；2、原材料、中间产品、构配件等按规定检验及报验；3、涉及工程结构安全的试块、试件及有关材料按规定见证取样和送检；4、单元工程及工序质量检验和报验，隐蔽工程和关键部位的验收符合要求；5、试验仪器及设备按规定和合同到位，满足施工要求；6、制定并落实计划，按规范进行工艺试验确定施工参数，满足施工要求。以上如有不满足的，按1.5分/条扣分，最多扣9分。",9,9,null,7.5,"根据集团公司2020年1-6月份检查、巡查反应，该标段质量管理行为存在工程工序检验报验不及时等问题。","质量安全管理部"]
[7,null,"质量管理效果（6分）：\n1、分部工程及单位工程验收情况；2、历次质量检查和抽检情况；3、工程外观质量情况；4、过程及竣工检测等各类检测。\n以上如有不满足规范和设计要求的，按1.5分/条扣分，最多扣6分。",6,0,"质量违约处罚",0,"根据集团公司2020年1-6月份检查、巡查反应，该标段质量管理效果较差，检查中多次发现该标段存在堤防填筑、钢筋制安、混凝土浇筑以及止水安装保护等质量问题。","质量安全管理部"]
[8,"施工技术管理（15分）","1、单项工程施工组织设计和分部工程、单位工程施工组织方案齐全并具有针对性；2、及时履行各类报验手续；3、施工记录完整；4、及时回复监理工程师通知；5、工程签证齐全、签字手续完备；6、归档资料及时、真实、规范、完整。以上如有不满足的，按1~3分/条扣分，最多扣15分。",15,15,null,15,null,"建设管理部"]
[9,"劳务分包管理及农民工工资拖欠情况（10分）","未按规定签订劳务分包协议、未与农民工签订合法劳务合同的，扣3分；因施工企业原因，发生农民工向项目法人单位讨要拖欠工资的，每次扣3分，最多扣10分；因施工企业原因，发生农民工向政府部门讨要拖欠工资或因拖欠民工工资引发群体性事件的，直接扣10分。",10,10,null,7,"合同专项检查，抽查劳务分包合同（合同价1111.6930万元）：合同为中国水利水电第十二工程局有限公司委托菜北水利标项目部与安徽省海骏建设工程有限公司签订，合同未采用建设部标准范本，劳务合同含大型机械设备、工程量清单计量，含管理费、含验收资料、含安全文明措施费、除水泥外主材、辅材及其他小型机具费用及其它税费。","建设管理部、合同管理部"]
[10,"安全生产及文明施工（20分）","1、安全生产管理体系和保证措施的建立情况；2、安全生产专项方案的编制情况；3、专职安全员的配备情况；4、安全生产经费和保障措施的落实情况；5、文明施工的计划与落实情况；6、施工企业与建设、监理、设计单位的协作情况。以上如有不满足规范和有关要求的，按1~4分/条扣分，最多扣20分；出现安全事故的，直接扣20分。",20,15,null,17,null,"质量安全管理部"]

{"sheet":"Y002","index":9,"n_rows":15,"n_cols":9,"rows_kept":15,"hidden":true,"merged":[[1,0,1,7],[2,0,2,7],[4,0,4,2],[7,1,8,1],[9,1,11,1]]}
[null,"附件2："]
["安徽省水利工程建设施工合同履行评价评分表"]
["合同名称：施工Y002标（引江济巢段）  合同单位：中国葛洲坝集团第一工程有限公司"]
["序号","评价指标","参考标准","满分","建管处一、二季度打分最低项统计","建管处扣分依据","集团公司半年度打分","集团公司扣分依据","打分部门"]
["得分合计",null,null,100,{"$f":"SUM(E6:E15)","v":73.5},null,{"$f":"SUM(G6:G15)","v":80}]
[1,"管理人员到位（10分）","项目经理或技术负责人未按投标承诺或合同约定到位的，扣10分；其他管理人员未按投标承诺或合同约定到位的，按每人扣1分，最多扣5分。",10,5,null,5,"该单位总部位于湖北，因疫情影响，4月8日解封后，4月仍有共22人缺勤或未到岗，至检查当日尚无请销假手续。","合同管理部"]
[2,"机械设备到位（10分）","因施工机械、设备不到位影响工期或工程质量的，扣0~10分。",10,10,null,10,null,"建设管理部"]
[3,"工程进度管理（15分）","进度管理（5分）：进度计划报批手续不齐全或施工进度管理不到位的，扣0~5分。",5,5,null,5,null,"建设管理部"]
[4,null,"实际进度（10分）:因施工企业原因，造成工期延误的，扣0~10分；因施工企业原因，造成阶段目标和总体进度严重滞后的，扣10分。",10,10,null,10,null,"建设管理部"]
[5,"工程质量管理（20分）","质量管理体系（5分）：1、设立专门的质量管理机构或建立健全质量保证体系；2、配备质量管理人员；3、制定并落实质量管理制度。\n以上如有不满足的，按2分/条扣分，最多扣5分。",5,5,null,5,"根据集团公司2020年1-6月份检查、巡查反应，该标段质量管理体系基本健全。","质量安全管理部"]
[6,null,"工程质量行为（9分）：1、按照设计图纸和施工技术标准施工；2、原材料、中间产品、构配件等按规定检验及报验；3、涉及工程结构安全的试块、试件及有关材料按规定见证取样和送检；4、单元工程及工序质量检验和报验，隐蔽工程和关键部位的验收符合要求；5、试验仪器及设备按规定和合同到位，满足施工要求；6、制定并落实计划，按规范进行工艺试验确定施工参数，满足施工要求。以上如有不满足的，按1.5分/条扣分，最多扣9分。",9,4.5,"1.左堤碾压层间结合面存在风干等现象；\n2.部分钢筋焊缝存在不饱满现象；\n3.橡胶止止水存在质量问题。\n",6,"根据集团公司2020年1-6月份检查、巡查反应，该标段质量管理行为存在原材料、中间产品及报验不及时，单元工程工序检验报验不及时等问题。","质量安全管理部"]
[7,null,"质量管理效果（6分）：\n1、分部工程及单位工程验收情况；2、历次质量检查和抽检情况；3、工程外观质量情况；4、过程及竣工检测等各类检测。\n以上如有不满足规范和设计要求的，按1.5分/条扣分，最多扣6分。",6,3,"1.部分混凝土存在养护不到位现象；\n2.部分混凝土面浇筑收仓面存在不平整现象。\n",3,"根据集团公司2020年1-6月份检查、巡查反应，该标段质量管理效果较差，检查中多次发现该标段存在堤防填筑、钢筋制安、混凝土浇筑以及止水安装保护等质量问题。","质量安全管理部"]
[8,"施工技术管理（15分）","1、单项工程施工组织设计和分部工程、单位工程施工组织方案齐全并具有针对性；2、及时履行各类报验手续；3、施工记录完整；4、及时回复监理工程师通知；5、工程签证齐全、签字手续完备；6、归档资料及时、真实、规范、完整。以上如有不满足的，按1~3分/条扣分，最多扣15分。",15,12,"1.施工记录不规范；\n2.资料归档不规范、不及时。",12,"1.施工记录不规范；\n2.资料归档不规范、不及时。","建设管理部"]
[9,"劳务分包管理及农民工工资拖欠情况（10分）","未按规定签订劳务分包协议、未与农民工签订合法劳务合同的，扣3分；因施工企业原因，发生农民工向项目法人单位讨要拖欠工资的，每次扣3分，最多扣10分；因施工企业原因，发生农民工向政府部门讨要拖欠工资或因拖欠民工工资引发群体性事件的，直接扣10分。",10,7,"截渗墙分包不符合合同要求。",7,"合同专项检查，抽查了Y002防渗处理劳务分包合同：未采用建设部示范文本，合同工作内容包含了施工测量放线、便道修复、降尘、柴油发电机提供、全面负责质量安全、生产性试验等，合同费用为工程量清单单价和工程量计算，并包含了全部内容的费用，按2%的安全生产费，付款按期支付，未明确按月支付。抽查了上游土石方工程劳务合同：未采用建设部示范文本，合同工作内容包含了上游改线河道和老堤开挖、改堤河线填筑、倒虹吸基础开挖、拆除工程、混凝土、装饰、草皮、堤顶道路等，并全面负责质量安全等，并包含了全部内容的费用，合同费用为工程量清单单价和工程量计算，按2%的安全生产费。合同包含了土方大型机械等，柴油为甲控。","建设管理部、合同管理部"]
[10,"安全生产及文明施工（20分）","1、安全生产管理体系和保证措施的建立情况；2、安全生产专项方案的编制情况；3、专职安全员的配备情况；4、安全生产经费和保障措施的落实情况；5、文明施工的计划与落实情况；6、施工企业与建设、监理、设计单位的协作情况。以上如有不满足规范和有关要求的，按1~4分/条扣分，最多扣20分；出现安全事故的，直接扣20分。",20,12,"1.部分脚手架搭设不符合规范要求；\n2.临边防护存在不到位现象；\n3.消防安全、文明施工管理存在不到位现象；\n4.临时用电存在一闸多机现象；\n5.个别人员、设备报备手续不及时。",17,null,"质量安全管理部"]

{"sheet":"Y003","index":10,"n_rows":15,"n_cols":9,"rows_kept":15,"hidden":true,"merged":[[1,0,1,7],[2,0,2,7],[4,0,4,2],[7,1,8,1],[9,1,11,1]]}
[null,"附件2："]
["安徽省水利工程建设施工合同履行评价评分表"]
["合同名称：施工Y003标（引江济巢段）  合同单位：安徽水利开发股份有限公司"]
["序号","评价指标","参考标准","满分","建管处一、二季度打分最低项统计","建管处扣分依据","集团公司半年度打分","集团公司扣分依据","打分部门"]
["得分合计",null,null,100,{"$f":"SUM(E6:E15)","v":87.5},null,{"$f":"SUM(G6:G15)","v":88.34}]
[1,"管理人员到位（10分）","项目经理或技术负责人未按投标承诺或合同约定到位的，扣10分；其他管理人员未按投标承诺或合同约定到位的，按每人扣1分，最多扣5分。",10,7,"部分合同人员考勤不满足",9,"范德生（指纹打卡无法识别）；2、4月考勤记录多人雷同。","合同管理部"]
[2,"机械设备到位（10分）","因施工机械、设备不到位影响工期或工程质量的，扣0~10分。",10,10,null,10,null,"建设管理部"]
[3,"工程进度管理（15分）","进度管理（5分）：进度计划报批手续不齐全或施工进度管理不到位的，扣0~5分。",5,5,null,5,null,"建设管理部"]
[4,null,"实际进度（10分）:因施工企业原因，造成工期延误的，扣0~10分；因施工企业原因，造成阶段目标和总体进度严重滞后的，扣10分。",10,10,null,9.84,"进度完成率98.4%","建设管理部"]
[5,"工程质量管理（20分）","质量管理体系（5分）：1、设立专门的质量管理机构或建立健全质量保证体系；2、配备质量管理人员；3、制定并落实质量管理制度。\n以上如有不满足的，按2分/条扣分，最多扣5分。",5,5,null,5,"根据集团公司2020年1-6月份检查、巡查反应，该标段质量管理体系基本健全。","质量安全管理部"]
[6,null,"工程质量行为（9分）：1、按照设计图纸和施工技术标准施工；2、原材料、中间产品、构配件等按规定检验及报验；3、涉及工程结构安全的试块、试件及有关材料按规定见证取样和送检；4、单元工程及工序质量检验和报验，隐蔽工程和关键部位的验收符合要求；5、试验仪器及设备按规定和合同到位，满足施工要求；6、制定并落实计划，按规范进行工艺试验确定施工参数，满足施工要求。以上如有不满足的，按1.5分/条扣分，最多扣9分。",9,6,"1.部分填筑完成的改性土防护措施存在不到位现象；\n2.梁钢筋及波纹管防护措施存在不到位现象。\n",7.5,"根据集团公司2020年1-6月份检查、巡查反应，该标段质量管理行为存在单元工程工序检验报验不及时等问题。","质量安全管理部"]
[7,null,"质量管理效果（6分）：\n1、分部工程及单位工程验收情况；2、历次质量检查和抽检情况；3、工程外观质量情况；4、过程及竣工检测等各类检测。\n以上如有不满足规范和设计要求的，按1.5分/条扣分，最多扣6分。",6,4.5,"个别管桩预制挂板存在破损现象。",3,"根据集团公司2020年1-6月份检查、巡查反应，该标段检查中发现该标段存在钢筋制安、混凝土浇筑等质量问题。","质量安全管理部"]
[8,"施工技术管理（15分）","1、单项工程施工组织设计和分部工程、单位工程施工组织方案齐全并具有针对性；2、及时履行各类报验手续；3、施工记录完整；4、及时回复监理工程师通知；5、工程签证齐全、签字手续完备；6、归档资料及时、真实、规范、完整。以上如有不满足的，按1~3分/条扣分，最多扣15分。",15,13,"1.施工记录不规范；\n2.资料归档不及时、不规范。",13,"1.施工记录不规范；\n2.资料归档不及时、不规范。","建设管理部"]
[9,"劳务分包管理及农民工工资拖欠情况（10分）","未按规定签订劳务分包协议、未与农民工签订合法劳务合同的，扣3分；因施工企业原因，发生农民工向项目法人单位讨要拖欠工资的，每次扣3分，最多扣10分；因施工企业原因，发生农民工向政府部门讨要拖欠工资或因拖欠民工工资引发群体性事件的，直接扣10分。",10,10,null,7,"合同专项抽查，抽查了Y003渠道衬砌工程四标段劳务分包合同：未采用建设部示范文本，合同工作内容包含了坡面修整、预制块生态护坡、瓜子片垫层、C20砼压顶、基脚、格埂、排水沟、坡顶截水沟等，合同费用为工程量清单单价和工程量计算，包含了人工、材料（主材为甲供）、机械费用、管理费、措施费、税金、保险等，付款按月支付；土方施工含自带机械设备。抽查了水泥改性土工程工程劳务合同：未采用建设部示范文本，合同工作内容包含了水泥改性土拌合、土料破碎等，不含碾压等质量内容，合同费用为工程量清单单价和工程量计算，包含了顶截水沟等，合同费用为工程量清单单价和工程量计算，包含了人工、材料（不含水泥材料费）、机械费用、管理费、措施费、税金、保险等，付款按月支付。","建设管理部、合同管理部"]
[10,"安全生产及文明施工（20分）","1、安全生产管理体系和保证措施的建立情况；2、安全生产专项方案的编制情况；3、专职安全员的配备情况；4、安全生产经费和保障措施的落实情况；5、文明施工的计划与落实情况；6、施工企业与建设、监理、设计单位的协作情况。以上如有不满足规范和有关要求的，按1~4分/条扣分，最多扣20分；出现安全事故的，直接扣20分。",20,17,"1.钢筋加工厂临时用电管理不到位，存在私拉乱接、接线不规范的现象；\n2.预制场龙门吊停用期间夹轨器未全部安装到位。",19,null,"质量安全管理部"]

{"sheet":"J001-2","index":11,"n_rows":15,"n_cols":9,"rows_kept":15,"hidden":true,"merged":[[1,0,1,7],[2,0,2,7],[4,0,4,2],[7,1,8,1],[9,1,11,1]]}
[null,"附件2："]
["安徽省水利工程建设施工合同履行评价评分表"]
["合同名称：施工J001-2标（江淮沟通段）  合同单位：安徽水安建设集团股份有限公司"]
["序号","评价指标","参考标准","满分","建管处一、二季度打分最低项统计","建管处扣分依据","集团公司半年度打分","集团公司扣分依据","打分部门"]
["得分合计",null,null,100,{"$f":"SUM(E6:E15)","v":88.5},null,{"$f":"SUM(G6:G15)","v":82.13}]
[1,"管理人员到位（10分）","项目经理或技术负责人未按投标承诺或合同约定到位的，扣10分；其他管理人员未按投标承诺或合同约定到位的，按每人扣1分，最多扣5分。",10,7,"部分合同人员1月份钉钉考勤不满足合同要求",5,"抽查到岗管理人员3、4月多人缺勤（3月杨欢、张磊、张黎明各缺勤18天，4月阮流涛缺勤17天、杨欢缺勤18天、张磊缺勤17天、张黎明缺勤17天）；3、4月无请销假记录，考勤记录多人雷同。","合同管理部"]
[2,"机械设备到位（10分）","因施工机械、设备不到位影响工期或工程质量的，扣0~10分。",10,10,null,10,null,"建设管理部"]
[3,"工程进度管理（15分）","进度管理（5分）：进度计划报批手续不齐全或施工进度管理不到位的，扣0~5分。",5,5,null,5,null,"建设管理部"]
[4,null,"实际进度（10分）:因施工企业原因，造成工期延误的，扣0~10分；因施工企业原因，造成阶段目标和总体进度严重滞后的，扣10分。",10,10,null,8.63,"进度完成率86.3%","建设管理部"]
[5,"工程质量管理（20分）","质量管理体系（5分）：1、设立专门的质量管理机构或建立健全质量保证体系；2、配备质量管理人员；3、制定并落实质量管理制度。\n以上如有不满足的，按2分/条扣分，最多扣5分。",5,5,null,5,"根据集团公司2020年1-6月份检查、巡查反应，该标段质量管理体系基本健全。","质量安全管理部"]
[6,null,"工程质量行为（9分）：1、按照设计图纸和施工技术标准施工；2、原材料、中间产品、构配件等按规定检验及报验；3、涉及工程结构安全的试块、试件及有关材料按规定见证取样和送检；4、单元工程及工序质量检验和报验，隐蔽工程和关键部位的验收符合要求；5、试验仪器及设备按规定和合同到位，满足施工要求；6、制定并落实计划，按规范进行工艺试验确定施工参数，满足施工要求。以上如有不满足的，按1.5分/条扣分，最多扣9分。",9,6,"\n1.进水闸底坎埋件现场保护不到位，被水泥等杂物污染，且未见管理编号；\n2.《土方填筑碾压试验总结》结论部分未能总结出指导施工的工艺参数；",6,"根据集团公司2020年1-6月份检查、巡查反应，该标段质量管理行为存在单元工程工序检验报验不及时等、工艺试验总结不及时等问题。","质量安全管理部"]
[7,null,"质量管理效果（6分）：\n1、分部工程及单位工程验收情况；2、历次质量检查和抽检情况；3、工程外观质量情况；4、过程及竣工检测等各类检测。\n以上如有不满足规范和设计要求的，按1.5分/条扣分，最多扣6分。",6,4.5,"混凝土冬季施工养护措施落实不到位；",4.5,"根据集团公司2020年1-6月份检查、巡查反应，该标段检查中发现该标段存在钢筋制安、混凝土浇筑等质量问题。","质量安全管理部"]
[8,"施工技术管理（15分）","1、单项工程施工组织设计和分部工程、单位工程施工组织方案齐全并具有针对性；2、及时履行各类报验手续；3、施工记录完整；4、及时回复监理工程师通知；5、工程签证齐全、签字手续完备；6、归档资料及时、真实、规范、完整。以上如有不满足的，按1~3分/条扣分，最多扣15分。",15,14,"部分施工记录未记录现场质量安全检查相关内容，资料归档不及时、不规范。",14,"部分施工记录未记录现场质量安全检查相关内容，资料归档不及时、不规范。","建设管理部"]
[9,"劳务分包管理及农民工工资拖欠情况（10分）","未按规定签订劳务分包协议、未与农民工签订合法劳务合同的，扣3分；因施工企业原因，发生农民工向项目法人单位讨要拖欠工资的，每次扣3分，最多扣10分；因施工企业原因，发生农民工向政府部门讨要拖欠工资或因拖欠民工工资引发群体性事件的，直接扣10分。",10,10,null,7,"根据合同专项检查和建管处结合水利部稽查进行全面排查，抽查了4标模板专业分包合同：采用建设部劳务示范文本，合同额1277.1万元，合同费用为工程量清单单价和工程量计算，按月支付，合同价包含了模板主材费。","建设管理部、合同管理部"]
[10,"安全生产及文明施工（20分）","1、安全生产管理体系和保证措施的建立情况；2、安全生产专项方案的编制情况；3、专职安全员的配备情况；4、安全生产经费和保障措施的落实情况；5、文明施工的计划与落实情况；6、施工企业与建设、监理、设计单位的协作情况。以上如有不满足规范和有关要求的，按1~4分/条扣分，最多扣20分；出现安全事故的，直接扣20分。",20,17,"1.脚手架搭设存在搭设不规范现象；\n2.临时用电、安全防护、消防安全存在管理不到位现象；\n3.特种设备应急专项预案演练未及时开展。",17,null,"质量安全管理部"]

{"sheet":"J002-1","index":12,"n_rows":15,"n_cols":9,"rows_kept":15,"hidden":true,"merged":[[1,0,1,7],[2,0,2,7],[4,0,4,2],[7,1,8,1],[9,1,11,1]]}
[null,"附件2："]
["安徽省水利工程建设施工合同履行评价评分表"]
["合同名称：引江济淮工程（安徽段）江淮沟通段施工J002-1（河渠）标                 合同单位：中国水电建设集团十五工程局有限公司"]
["序号","评价指标","参考标准","满分","建管处一、二季度打分最低项统计","建管处扣分依据","集团公司半年度打分","集团公司扣分依据","打分部门"]
["得分合计",null,null,100,{"$f":"SUM(E6:E15)","v":82},null,{"$f":"SUM(G6:G15)","v":81}]
[1,"管理人员到位（10分）","项目经理或技术负责人未按投标承诺或合同约定到位的，扣10分；其他管理人员未按投标承诺或合同约定到位的，按每人扣1分，最多扣5分。",10,6,"部分合同人员一月份和二季度考勤不满足合同要求，请假手续不齐全。",5,"1.投标人员赵兵、姜虎、石峰按计划应进场但实际未到岗；\n2.3月7人存在缺勤，解释为疫情影响分批进场；但李建英、杨琪琦3月3日已进场后期多日旷工；缺审批的复工分批进场计划；4月3人缺勤，未履行请销假手续；","合同管理部"]
[2,"机械设备到位（10分）","因施工机械、设备不到位影响工期或工程质量的，扣0~10分。",10,10,null,10,null,"建设管理部"]
[3,"工程进度管理（15分）","进度管理（5分）：进度计划报批手续不齐全或施工进度管理不到位的，扣0~5分。",5,5,null,5,null,"建设管理部"]
[4,null,"实际进度（10分）:因施工企业原因，造成工期延误的，扣0~10分；因施工企业原因，造成阶段目标和总体进度严重滞后的，扣10分。",10,10,null,7,"进度完成率67.8%","建设管理部"]
[5,"工程质量管理（20分）","质量管理体系（5分）：1、设立专门的质量管理机构或建立健全质量保证体系；2、配备质量管理人员；3、制定并落实质量管理制度。以上如有不满足的，按2分/条扣分，最多扣5分。",5,5,null,5,"根据集团公司2020年1-6月份检查、巡查反应，该标段质量管理体系基本健全。","质量安全管理部"]
[6,null,"工程质量行为（9分）：1、按照设计图纸和施工技术标准施工；2、原材料、中间产品、构配件等按规定检验及报验；3、涉及工程结构安全的试块、试件及有关材料按规定见证取样和送检；4、单元工程及工序质量检验和报验，隐蔽工程和关键部位的验收符合要求；5、试验仪器及设备按规定和合同到位，满足施工要求；6、制定并落实计划，按规范进行工艺试验确定施工参数，满足施工要求。以上如有不满足的，按1.5分/条扣分，最多扣9分。",9,4.5,"1.部分橡胶止水带安装存在不规范现象；\n2.个别填筑土料粒径不满足要求；\n3.局部钢筋保护层不满足规范要求。",7.5,"根据集团公司2020年1-6月份检查、巡查反应，该标段质量管理行为存在单元工程工序检验报验不及时等问题。","质量安全管理部"]
[7,null,"质量管理效果（6分）：\n1、分部工程及单位工程验收情况；2、历次质量检查和抽检情况；3、工程外观质量情况；4、过程及竣工检测等各类检测。\n以上如有不满足规范和设计要求的，按1.5分/条扣分，最多扣6分。",6,4.5,"部分填筑土方含水率不满足要求。",4.5,"根据集团公司2020年1-6月份检查、巡查反应，该标段检查中多次发现该标段存在堤防填筑、钢筋制安、混凝土浇筑、止水安装等质量问题。","质量安全管理部"]
[8,"施工技术管理（15分）","1、单项工程施工组织设计和分部工程、单位工程施工组织方案齐全并具有针对性；2、及时履行各类报验手续；3、施工记录完整；4、及时回复监理工程师通知；5、工程签证齐全、签字手续完备；6、归档资料及时、真实、规范、完整。以上如有不满足的，按1~3分/条扣分，最多扣15分。",15,13,"1.施工日志记录不全；\n2.监理通知006号未及时回复、闭合。",13,"1.施工日志记录不全；\n2.监理通知006号未及时回复、闭合。","建设管理部"]
[9,"劳务分包管理及农民工工资拖欠情况（10分）","未按规定签订劳务分包协议、未与农民工签订合法劳务合同的，扣3分；因施工企业原因，发生农民工向项目法人单位讨要拖欠工资的，每次扣3分，最多扣10分；因施工企业原因，发生农民工向政府部门讨要拖欠工资或因拖欠民工工资引发群体性事件的，直接扣10分。",10,10,null,7,"7月24日，洒水车驾驶员郭伟电话讨薪","建设管理部、合同管理部"]
[10,"安全生产及文明施工（20分）","1、安全生产管理体系和保证措施的建立情况；2、安全生产专项方案的编制情况；3、专职安全员的配备情况；4、安全生产经费和保障措施的落实情况；5、文明施工的计划与落实情况；6、施工企业与建设、监理、设计单位的协作情况。以上如有不满足规范和有关要求的，按1~4分/条扣分，最多扣20分；出现安全事故的，直接扣20分。",20,14,"1.脚手架搭设存在不规范现象； \n2.部分危大工程施工方案未见对专家论证意见回复记录\n3.临边防护措施存在落实不到位现象；\n4.安全生产目标管理存在不规范现象。\n",17,null,"质量安全管理部"]

{"sheet":"J002-2","index":13,"n_rows":15,"n_cols":9,"rows_kept":15,"hidden":true,"merged":[[1,0,1,7],[2,0,2,7],[4,0,4,2],[7,1,8,1],[9,1,11,1]]}
[null,"附件2："]
["安徽省水利工程建设施工合同履行评价评分表"]
["合同名称：施工J002-2标（江淮沟通段）  合同单位：中国葛洲坝集团股份有限公司"]
["序号","评价指标","参考标准","满分","建管处一、二季度打分最低项统计","建管处扣分依据","集团公司半年度打分","集团公司扣分依据","打分部门"]
["得分合计",null,null,100,{"$f":"SUM(E6:E15)","v":83},null,{"$f":"SUM(G6:G15)","v":82.96}]
[1,"管理人员到位（10分）","项目经理或技术负责人未按投标承诺或合同约定到位的，扣10分；其他管理人员未按投标承诺或合同约定到位的，按每人扣1分，最多扣5分。",10,6,"部分合同人员1月份钉钉考勤不满足合同要求",6,null,"合同管理部"]
[2,"机械设备到位（10分）","因施工机械、设备不到位影响工期或工程质量的，扣0~10分。",10,10,null,10,null,"建设管理部"]
[3,"工程进度管理（15分）","进度管理（5分）：进度计划报批手续不齐全或施工进度管理不到位的，扣0~5分。",5,5,null,5,null,"建设管理部"]
[4,null,"实际进度（10分）:因施工企业原因，造成工期延误的，扣0~10分；因施工企业原因，造成阶段目标和总体进度严重滞后的，扣10分。",10,10,null,7.96,"进度完成率79.6%","建设管理部"]
[5,"工程质量管理（20分）","质量管理体系（5分）：1、设立专门的质量管理机构或建立健全质量保证体系；2、配备质量管理人员；3、制定并落实质量管理制度。以上如有不满足的，按2分/条扣分，最多扣5分。",5,5,null,5,"根据集团公司2020年1-6月份检查、巡查反应，该标段质量管理体系基本健全。","质量安全管理部"]
[6,null,"工程质量行为（9分）：1、按照设计图纸和施工技术标准施工；2、原材料、中间产品、构配件等按规定检验及报验；3、涉及工程结构安全的试块、试件及有关材料按规定见证取样和送检；4、单元工程及工序质量检验和报验，隐蔽工程和关键部位的验收符合要求；5、试验仪器及设备按规定和合同到位，满足施工要求；6、制定并落实计划，按规范进行工艺试验确定施工参数，满足施工要求。以上如有不满足的，按1.5分/条扣分，最多扣9分。",9,6,"1.局部混凝土存在麻面现象；\n2.拌合站砂、石原材料管理不规范",7.5,"根据集团公司2020年1-6月份检查、巡查反应，该标段质量管理行为存在单元工程工序检验报验不及时等问题。","质量安全管理部"]
[7,null,"质量管理效果（6分）：\n1、分部工程及单位工程验收情况；2、历次质量检查和抽检情况；3、工程外观质量情况；4、过程及竣工检测等各类检测。\n以上如有不满足规范和设计要求的，按1.5分/条扣分，最多扣6分。",6,6,null,4.5,"根据集团公司2020年1-6月份检查、巡查反应，该标段检查中发现该标段存在钢筋制安、混凝土浇筑等质量问题。","质量安全管理部"]
[8,"施工技术管理（15分）","1、单项工程施工组织设计和分部工程、单位工程施工组织方案齐全并具有针对性；2、及时履行各类报验手续；3、施工记录完整；4、及时回复监理工程师通知；5、工程签证齐全、签字手续完备；6、归档资料及时、真实、规范、完整。以上如有不满足的，按1~3分/条扣分，最多扣15分。",15,12,"1.施工记录填写不规范；\n2.资料归档不及时。",12,"1.施工记录填写不规范；\n2.资料归档不及时。","建设管理部"]
[9,"劳务分包管理及农民工工资拖欠情况（10分）","未按规定签订劳务分包协议、未与农民工签订合法劳务合同的，扣3分；因施工企业原因，发生农民工向项目法人单位讨要拖欠工资的，每次扣3分，最多扣10分；因施工企业原因，发生农民工向政府部门讨要拖欠工资或因拖欠民工工资引发群体性事件的，直接扣10分。",10,7,"发生一起劳务纠纷。",7,"发生一起劳务纠纷。","建设管理部、合同管理部"]
[10,"安全生产及文明施工（20分）","1、安全生产管理体系和保证措施的建立情况；2、安全生产专项方案的编制情况；3、专职安全员的配备情况；4、安全生产经费和保障措施的落实情况；5、文明施工的计划与落实情况；6、施工企业与建设、监理、设计单位的协作情况。以上如有不满足规范和有关要求的，按1~4分/条扣分，最多扣20分；出现安全事故的，直接扣20分。",20,16,"1.部分安全防护措施落实不到位；\n2.工人宿舍防火措施落实不到位；\n3.车辆管理不到位。",18,null,"质量安全管理部"]

{"sheet":"J005-1","index":14,"n_rows":15,"n_cols":9,"rows_kept":15,"hidden":true,"merged":[[1,0,1,7],[2,0,2,7],[4,0,4,2],[7,1,8,1],[9,1,11,1]]}
[null,"附件2："]
["安徽省水利工程建设施工合同履行评价评分表"]
["合同名称：引江济淮工程（安徽段）江淮沟通段施工J005-1标      合同单位：中国水利水电第五工程局有限公司"]
["序号","评价指标","参考标准","满分","建管处一、二季度打分最低项统计","建管处扣分依据","集团公司半年度打分","集团公司扣分依据","打分部门"]
["得分合计",null,null,100,{"$f":"SUM(E6:E15)","v":86},null,{"$f":"SUM(G6:G15)","v":85.72}]
[1,"管理人员到位（10分）","项目经理或技术负责人未按投标承诺或合同约定到位的，扣10分；其他管理人员未按投标承诺或合同约定到位的，按每人扣1分，最多扣5分。",10,9,"存在缺勤现象",8,"汪小雷（指纹机打卡报名李辉）；朱海亚4月请销假手续不完备。","合同管理部"]
[2,"机械设备到位（10分）","因施工机械、设备不到位影响工期或工程质量的，扣0~10分。",10,10,null,10,null,"建设管理部"]
[3,"工程进度管理（15分）","进度管理（5分）：进度计划报批手续不齐全或施工进度管理不到位的，扣0~5分。",5,4,null,4,null,"建设管理部"]
[4,null,"实际进度（10分）:因施工企业原因，造成工期延误的，扣0~10分；因施工企业原因，造成阶段目标和总体进度严重滞后的，扣10分。",10,6,"实际进度滞后",8.72,"进度完成率87.2%","建设管理部"]
[5,"工程质量管理（20分）","质量管理体系（5分）：1、设立专门的质量管理机构或建立健全质量保证体系；2、配备质量管理人员；3、制定并落实质量管理制度。\n以上如有不满足的，按2分/条扣分，最多扣5分。",5,5,null,5,"根据集团公司2020年1-6月份检查、巡查反应，该标段质量管理体系基本健全。","质量安全管理部"]
[6,null,"工程质量行为（9分）：1、按照设计图纸和施工技术标准施工；2、原材料、中间产品、构配件等按规定检验及报验；3、涉及工程结构安全的试块、试件及有关材料按规定见证取样和送检；4、单元工程及工序质量检验和报验，隐蔽工程和关键部位的验收符合要求；5、试验仪器及设备按规定和合同到位，满足施工要求；6、制定并落实计划，按规范进行工艺试验确定施工参数，满足施工要求。以上如有不满足的，按1.5分/条扣分，最多扣9分。",9,7.5,"未制定进水渠一级护坡锚杆接头检测计划，未进行焊接工艺试验",7.5,"根据集团公司2020年1-6月份检查、巡查反应，该标段质量管理行为存在单元工程工序检验报验不及时、工艺试验开展总结不及时等问题。","质量安全管理部"]
[7,null,"质量管理效果（6分）：\n1、分部工程及单位工程验收情况；2、历次质量检查和抽检情况；3、工程外观质量情况；4、过程及竣工检测等各类检测。\n以上如有不满足规范和设计要求的，按1.5分/条扣分，最多扣6分。",6,4.5,"前池23号底板混凝土分缝处闭孔泡沫板歪斜，存在约3cm错台；14号右侧混凝土挡墙走模，墙体向内侧突出约5cm。",4.5,"根据集团公司2020年1-6月份检查、巡查反应，该标段检查中发现该标段存在钢筋制安、混凝土浇筑等质量问题。","质量安全管理部"]
[8,"施工技术管理（15分）","1、单项工程施工组织设计和分部工程、单位工程施工组织方案齐全并具有针对性；2、及时履行各类报验手续；3、施工记录完整；4、及时回复监理工程师通知；5、工程签证齐全、签字手续完备；6、归档资料及时、真实、规范、完整。以上如有不满足的，按1~3分/条扣分，最多扣15分。",15,14,"归档资料不及时",14,"归档资料不及时","建设管理部"]
[9,"劳务分包管理及农民工工资拖欠情况（10分）","未按规定签订劳务分包协议、未与农民工签订合法劳务合同的，扣3分；因施工企业原因，发生农民工向项目法人单位讨要拖欠工资的，每次扣3分，最多扣10分；因施工企业原因，发生农民工向政府部门讨要拖欠工资或因拖欠民工工资引发群体性事件的，直接扣10分。",10,10,null,7,"水利部稽查发现分包不合规","建设管理部、合同管理部"]
[10,"安全生产及文明施工（20分）","1、安全生产管理体系和保证措施的建立情况；2、安全生产专项方案的编制情况；3、专职安全员的配备情况；4、安全生产经费和保障措施的落实情况；5、文明施工的计划与落实情况；6、施工企业与建设、监理、设计单位的协作情况。以上如有不满足规范和有关要求的，按1~4分/条扣分，最多扣20分；出现安全事故的，直接扣20分。",20,16,"现场安全防护不到位",17,null,"质量安全管理部"]

{"sheet":"J005-2","index":15,"n_rows":15,"n_cols":9,"rows_kept":15,"hidden":true,"merged":[[1,0,1,7],[2,0,2,7],[4,0,4,2],[7,1,8,1],[9,1,11,1]]}
[null,"附件2："]
["安徽省水利工程建设施工合同履行评价评分表"]
["合同名称：引江济淮工程（安徽段）江淮沟通施工J005-2标  合同单位： 安徽水利开发股份有限公司"]
["序号","评价指标","参考标准","满分","建管处一、二季度打分最低项统计","建管处扣分依据","集团公司半年度打分","集团公司扣分依据","打分部门"]
["得分合计",null,null,100,{"$f":"SUM(E6:E15)","v":89.5},null,{"$f":"SUM(G6:G15)","v":91.5}]
[1,"管理人员到位（10分）","项目经理或技术负责人未按投标承诺或合同约定到位的，扣10分；其他管理人员未按投标承诺或合同约定到位的，按每人扣1分，最多扣5分。",10,10,null,10,"打卡记录雷同","合同管理部"]
[2,"机械设备到位（10分）","因施工机械、设备不到位影响工期或工程质量的，扣0~10分。",10,10,null,10,null,"建设管理部"]
[3,"工程进度管理（15分）","进度管理（5分）：进度计划报批手续不齐全或施工进度管理不到位的，扣0~5分。",5,5,null,5,null,"建设管理部"]
[4,null,"实际进度（10分）:因施工企业原因，造成工期延误的，扣0~10分；因施工企业原因，造成阶段目标和总体进度严重滞后的，扣10分。",10,10,null,10,null,"建设管理部"]
[5,"工程质量管理（20分）","质量管理体系（5分）：1、设立专门的质量管理机构或建立健全质量保证体系；2、配备质量管理人员；3、制定并落实质量管理制度。\n以上如有不满足的，按2分/条扣分，最多扣5分。",5,5,null,5,"根据集团公司2020年1-6月份检查、巡查反应，该标段质量管理体系基本健全。","质量安全管理部"]
[6,null,"工程质量行为（9分）：1、按照设计图纸和施工技术标准施工；2、原材料、中间产品、构配件等按规定检验及报验；3、涉及工程结构安全的试块、试件及有关材料按规定见证取样和送检；4、单元工程及工序质量检验和报验，隐蔽工程和关键部位的验收符合要求；5、试验仪器及设备按规定和合同到位，满足施工要求；6、制定并落实计划，按规范进行工艺试验确定施工参数，满足施工要求。以上如有不满足的，按1.5分/条扣分，最多扣9分。",9,7.5,null,7.5,"根据集团公司2020年1-6月份检查、巡查反应，该标段质量管理行为存在单元工程工序检验报验不及时等问题。","质量安全管理部"]
[7,null,"质量管理效果（6分）：\n1、分部工程及单位工程验收情况；2、历次质量检查和抽检情况；3、工程外观质量情况；4、过程及竣工检测等各类检测。\n以上如有不满足规范和设计要求的，按1.5分/条扣分，最多扣6分。",6,3,"1、杨大郢跌水涵右侧空箱岸墙底板底部垫块安装错误，设计为50mm，实测垫块为35mm；直螺纹部分端头未打磨平整，保护帽存在脱落；出水口处底板止水橡皮未采取保护措施，模板钢管压在止水橡皮上；出水口空箱岸墙与涵洞止水交接处及空箱岸墙底板部分钢筋下料长度不足；现场钢筋堆放混乱，部分钢筋垫高不足，放在水中2、问题重复出现",3,"根据集团公司2020年1-6月份检查、巡查反应，该标段检查中发现该标段存在钢筋制安、混凝土浇筑、止水安装等质量问题。","质量安全管理部"]
[8,"施工技术管理（15分）","1、单项工程施工组织设计和分部工程、单位工程施工组织方案齐全并具有针对性；2、及时履行各类报验手续；3、施工记录完整；4、及时回复监理工程师通知；5、工程签证齐全、签字手续完备；6、归档资料及时、真实、规范、完整。以上如有不满足的，按1~3分/条扣分，最多扣15分。",15,14,null,14,null,"建设管理部"]
[9,"劳务分包管理及农民工工资拖欠情况（10分）","未按规定签订劳务分包协议、未与农民工签订合法劳务合同的，扣3分；因施工企业原因，发生农民工向项目法人单位讨要拖欠工资的，每次扣3分，最多扣10分；因施工企业原因，发生农民工向政府部门讨要拖欠工资或因拖欠民工工资引发群体性事件的，直接扣10分。",10,9,null,10,null,"建设管理部、合同管理部"]
[10,"安全生产及文明施工（20分）","1、安全生产管理体系和保证措施的建立情况；2、安全生产专项方案的编制情况；3、专职安全员的配备情况；4、安全生产经费和保障措施的落实情况；5、文明施工的计划与落实情况；6、施工企业与建设、监理、设计单位的协作情况。以上如有不满足规范和有关要求的，按1~4分/条扣分，最多扣20分；出现安全事故的，直接扣20分。",20,16,"1、二季度未开展平安工地自评2、杨大郢跌水涵洞身第2段左右外侧脚手架EL.23.4m层脚手板未满铺，密目网局部缺失；3、杨大郢跌水涵现场作业平台2处配电箱存在一闸多接现象4、杨大郢跌水涵现场库房内煤气罐等材料堆放混乱，未配备消防器材。",17,null,"质量安全管理部"]

{"sheet":"J006-1","index":16,"n_rows":15,"n_cols":9,"rows_kept":15,"hidden":true,"merged":[[1,0,1,7],[2,0,2,7],[4,0,4,2],[7,1,8,1],[9,1,11,1]]}
[null,"附件2："]
["安徽省水利工程建设施工合同履行评价评分表"]
["合同名称：引江济淮工程（安徽段）江淮沟通施工J006-1标  合同单位： 中国电建市政建设集团有限公司"]
["序号","评价指标","参考标准","满分","建管处一、二季度打分最低项统计","建管处扣分依据","集团公司半年度打分","集团公司扣分依据","打分部门"]
["得分合计",null,null,100,{"$f":"SUM(E6:E15)","v":90.5},null,{"$f":"SUM(G6:G15)","v":93.61}]
[1,"管理人员到位（10分）","项目经理或技术负责人未按投标承诺或合同约定到位的，扣10分；其他管理人员未按投标承诺或合同约定到位的，按每人扣1分，最多扣5分。",10,9,"有缺勤现象",10,"打卡记录雷同","合同管理部"]
[2,"机械设备到位（10分）","因施工机械、设备不到位影响工期或工程质量的，扣0~10分。",10,10,null,10,null,"建设管理部"]
[3,"工程进度管理（15分）","进度管理（5分）：进度计划报批手续不齐全或施工进度管理不到位的，扣0~5分。",5,5,null,5,null,"建设管理部"]
[4,null,"实际进度（10分）:因施工企业原因，造成工期延误的，扣0~10分；因施工企业原因，造成阶段目标和总体进度严重滞后的，扣10分。",10,9,"实际进度滞后",9.61,"进度完成率96.1%","建设管理部"]
[5,"工程质量管理（20分）","质量管理体系（5分）：1、设立专门的质量管理机构或建立健全质量保证体系；2、配备质量管理人员；3、制定并落实质量管理制度。\n以上如有不满足的，按2分/条扣分，最多扣5分。",5,5,null,5,"根据集团公司2020年1-6月份检查、巡查反应，该标段质量管理体系基本健全。","质量安全管理部"]
[6,null,"工程质量行为（9分）：1、按照设计图纸和施工技术标准施工；2、原材料、中间产品、构配件等按规定检验及报验；3、涉及工程结构安全的试块、试件及有关材料按规定见证取样和送检；4、单元工程及工序质量检验和报验，隐蔽工程和关键部位的验收符合要求；5、试验仪器及设备按规定和合同到位，满足施工要求；6、制定并落实计划，按规范进行工艺试验确定施工参数，满足施工要求。以上如有不满足的，按1.5分/条扣分，最多扣9分。",9,9,null,7.5,"根据集团公司2020年1-6月份检查、巡查反应，该标段质量管理行为存在单元工程工序检验报验不及时等问题。","质量安全管理部"]
[7,null,"质量管理效果（6分）：\n1、分部工程及单位工程验收情况；2、历次质量检查和抽检情况；3、工程外观质量情况；4、过程及竣工检测等各类检测。\n以上如有不满足规范和设计要求的，按1.5分/条扣分，最多扣6分。",6,4.5,"堰滩跌水二级跌水左侧挡墙局部由于拆模过早造成混凝土表面麻面，底板靠近止水橡皮处钢筋保护层厚度过小，",4.5,"根据集团公司2020年1-6月份检查、巡查反应，该标段检查中发现该标段存在钢筋制安、混凝土浇筑、止水安装等质量问题。","质量安全管理部"]
[8,"施工技术管理（15分）","1、单项工程施工组织设计和分部工程、单位工程施工组织方案齐全并具有针对性；2、及时履行各类报验手续；3、施工记录完整；4、及时回复监理工程师通知；5、工程签证齐全、签字手续完备；6、归档资料及时、真实、规范、完整。以上如有不满足的，按1~3分/条扣分，最多扣15分。",15,13,"归档资料不规范",13,"归档资料不规范","建设管理部"]
[9,"劳务分包管理及农民工工资拖欠情况（10分）","未按规定签订劳务分包协议、未与农民工签订合法劳务合同的，扣3分；因施工企业原因，发生农民工向项目法人单位讨要拖欠工资的，每次扣3分，最多扣10分；因施工企业原因，发生农民工向政府部门讨要拖欠工资或因拖欠民工工资引发群体性事件的，直接扣10分。",10,9,null,10,null,"建设管理部、合同管理部"]
[10,"安全生产及文明施工（20分）","1、安全生产管理体系和保证措施的建立情况；2、安全生产专项方案的编制情况；3、专职安全员的配备情况；4、安全生产经费和保障措施的落实情况；5、文明施工的计划与落实情况；6、施工企业与建设、监理、设计单位的协作情况。以上如有不满足规范和有关要求的，按1~4分/条扣分，最多扣20分；出现安全事故的，直接扣20分。",20,17,"1、开口型脚手架两端无横向斜撑，未见脚手架验收记录；2、堰滩跌水现场一配电箱位置设置不合理，操作空间不足3、未开展生产安全事故应急救援预案演练，未按季度、年度统计和分析安全隐患排查治理情况，未向从业人员公示事故隐患排查治理情况。",19,null,"质量安全管理部"]

{"sheet":"J007-1","index":17,"n_rows":15,"n_cols":9,"rows_kept":15,"hidden":true,"merged":[[1,0,1,7],[2,0,2,7],[4,0,4,2],[7,1,8,1],[9,1,11,1]]}
[null,"附件2："]
["安徽省水利工程建设施工合同履行评价评分表"]
["合同名称：引江济淮工程（安徽段）江淮沟通施工J007-1标  合同单位： 中铁五局集团有限公司"]
["序号","评价指标","参考标准","满分","建管处一、二季度打分最低项统计","建管处扣分依据","集团公司半年度打分","集团公司扣分依据","打分部门"]
["得分合计",null,null,100,{"$f":"SUM(E6:E15)","v":89.5},null,{"$f":"SUM(G6:G15)","v":89.95}]
[1,"管理人员到位（10分）","项目经理或技术负责人未按投标承诺或合同约定到位的，扣10分；其他管理人员未按投标承诺或合同约定到位的，按每人扣1分，最多扣5分。",10,10,null,10,"打卡记录雷同","合同管理部"]
[2,"机械设备到位（10分）","因施工机械、设备不到位影响工期或工程质量的，扣0~10分。",10,10,null,10,null,"建设管理部"]
[3,"工程进度管理（15分）","进度管理（5分）：进度计划报批手续不齐全或施工进度管理不到位的，扣0~5分。",5,5,null,5,null,"建设管理部"]
[4,null,"实际进度（10分）:因施工企业原因，造成工期延误的，扣0~10分；因施工企业原因，造成阶段目标和总体进度严重滞后的，扣10分。",10,9,"实际进度滞后",8.95,"进度完成率89.5%","建设管理部"]
[5,"工程质量管理（20分）","质量管理体系（5分）：1、设立专门的质量管理机构或建立健全质量保证体系；2、配备质量管理人员；3、制定并落实质量管理制度。\n以上如有不满足的，按2分/条扣分，最多扣5分。",5,5,null,5,"根据集团公司2020年1-6月份检查、巡查反应，该标段质量管理体系基本健全。","质量安全管理部"]
[6,null,"工程质量行为（9分）：1、按照设计图纸和施工技术标准施工；2、原材料、中间产品、构配件等按规定检验及报验；3、涉及工程结构安全的试块、试件及有关材料按规定见证取样和送检；4、单元工程及工序质量检验和报验，隐蔽工程和关键部位的验收符合要求；5、试验仪器及设备按规定和合同到位，满足施工要求；6、制定并落实计划，按规范进行工艺试验确定施工参数，满足施工要求。以上如有不满足的，按1.5分/条扣分，最多扣9分。",9,7.5,"自检、报检工作不及时",7.5,"根据集团公司2020年1-6月份检查、巡查反应，该标段质量管理行为存在单元工程工序检验报验不及时等问题。","质量安全管理部"]
[7,null,"质量管理效果（6分）：\n1、分部工程及单位工程验收情况；2、历次质量检查和抽检情况；3、工程外观质量情况；4、过程及竣工检测等各类检测。\n以上如有不满足规范和设计要求的，按1.5分/条扣分，最多扣6分。",6,3,"现场杆件存放保护措施不到位",1.5,"根据集团公司2020年1-6月份检查、巡查反应，该标段检查中发现该标段存在钢筋制安、混凝土浇筑、钢结构桥梁制作安装等质量问题。","质量安全管理部"]
[8,"施工技术管理（15分）","1、单项工程施工组织设计和分部工程、单位工程施工组织方案齐全并具有针对性；2、及时履行各类报验手续；3、施工记录完整；4、及时回复监理工程师通知；5、工程签证齐全、签字手续完备；6、归档资料及时、真实、规范、完整。以上如有不满足的，按1~3分/条扣分，最多扣15分。",15,14,"归档资料不规范。",14,"归档资料不规范。","建设管理部"]
[9,"劳务分包管理及农民工工资拖欠情况（10分）","未按规定签订劳务分包协议、未与农民工签订合法劳务合同的，扣3分；因施工企业原因，发生农民工向项目法人单位讨要拖欠工资的，每次扣3分，最多扣10分；因施工企业原因，发生农民工向政府部门讨要拖欠工资或因拖欠民工工资引发群体性事件的，直接扣10分。",10,10,null,10,null,"建设管理部、合同管理部"]
[10,"安全生产及文明施工（20分）","1、安全生产管理体系和保证措施的建立情况；2、安全生产专项方案的编制情况；3、专职安全员的配备情况；4、安全生产经费和保障措施的落实情况；5、文明施工的计划与落实情况；6、施工企业与建设、监理、设计单位的协作情况。以上如有不满足规范和有关要求的，按1~4分/条扣分，最多扣20分；出现安全事故的，直接扣20分。",20,16,"1、合六叶公路桥4#桥-0#桥台临边防护设施滞后，下部焊接通道采用单跳板，端头未固定，临边未防护2、合六叶公路桥下部焊接通道采用单跳板，端头未固定，临边未防；3、0#桥台端原道路开挖后形成高边坡临边防护滞后，无警示标牌4、钢结构桥面部分氧气、丙烷气瓶仪表损坏失效",18,null,"质量安全管理部"]

{"sheet":"J007-2 ","index":18,"n_rows":15,"n_cols":9,"rows_kept":15,"hidden":true,"merged":[[1,0,1,7],[2,0,2,7],[4,0,4,2],[7,1,8,1],[9,1,11,1]]}
[null,"附件2："]
["安徽省水利工程建设施工合同履行评价评分表"]
["合同名称：引江济淮工程（安徽段）江淮沟通施工J007-2标  合同单位： 浙江省围海建设集团股份有限公司"]
["序号","评价指标","参考标准","满分","建管处一、二季度打分最低项统计","建管处扣分依据","集团公司半年度打分","集团公司扣分依据","打分部门"]
["得分合计",null,null,100,{"$f":"SUM(E6:E15)","v":93.5},null,{"$f":"SUM(G6:G15)","v":93.5}]
[1,"管理人员到位（10分）","项目经理或技术负责人未按投标承诺或合同约定到位的，扣10分；其他管理人员未按投标承诺或合同约定到位的，按每人扣1分，最多扣5分。",10,10,null,10,null,"合同管理部"]
[2,"机械设备到位（10分）","因施工机械、设备不到位影响工期或工程质量的，扣0~10分。",10,10,null,10,null,"建设管理部"]
[3,"工程进度管理（15分）","进度管理（5分）：进度计划报批手续不齐全或施工进度管理不到位的，扣0~5分。",5,5,null,5,null,"建设管理部"]
[4,null,"实际进度（10分）:因施工企业原因，造成工期延误的，扣0~10分；因施工企业原因，造成阶段目标和总体进度严重滞后的，扣10分。",10,10,null,10,null,"建设管理部"]
[5,"工程质量管理（20分）","质量管理体系（5分）：1、设立专门的质量管理机构或建立健全质量保证体系；2、配备质量管理人员；3、制定并落实质量管理制度。\n以上如有不满足的，按2分/条扣分，最多扣5分。",5,5,null,5,"根据集团公司2020年1-6月份检查、巡查反应，该标段质量管理体系基本健全。","质量安全管理部"]
[6,null,"工程质量行为（9分）：1、按照设计图纸和施工技术标准施工；2、原材料、中间产品、构配件等按规定检验及报验；3、涉及工程结构安全的试块、试件及有关材料按规定见证取样和送检；4、单元工程及工序质量检验和报验，隐蔽工程和关键部位的验收符合要求；5、试验仪器及设备按规定和合同到位，满足施工要求；6、制定并落实计划，按规范进行工艺试验确定施工参数，满足施工要求。以上如有不满足的，按1.5分/条扣分，最多扣9分。",9,7.5,"右岸（44+400~45+200）五级坡以上河渠工程六级平台（44+700~44+800）水泥改性土换填（第3层）工序施工未经监理签字已进入下一道工序",7.5,"根据集团公司2020年1-6月份检查、巡查反应，该标段质量管理行为存在单元工程工序检验报验不及时等问题。","质量安全管理部"]
[7,null,"质量管理效果（6分）：\n1、分部工程及单位工程验收情况；2、历次质量检查和抽检情况；3、工程外观质量情况；4、过程及竣工检测等各类检测。\n以上如有不满足规范和设计要求的，按1.5分/条扣分，最多扣6分。",6,6,null,5,"根据集团公司2020年1-6月份检查、巡查反应，该标段检查中发现该标段存在钢筋制安、混凝土浇筑等质量问题。","质量安全管理部"]
[8,"施工技术管理（15分）","1、单项工程施工组织设计和分部工程、单位工程施工组织方案齐全并具有针对性；2、及时履行各类报验手续；3、施工记录完整；4、及时回复监理工程师通知；5、工程签证齐全、签字手续完备；6、归档资料及时、真实、规范、完整。以上如有不满足的，按1~3分/条扣分，最多扣15分。",15,13,"归档资料不规范",13,"归档资料不规范","建设管理部"]
[9,"劳务分包管理及农民工工资拖欠情况（10分）","未按规定签订劳务分包协议、未与农民工签订合法劳务合同的，扣3分；因施工企业原因，发生农民工向项目法人单位讨要拖欠工资的，每次扣3分，最多扣10分；因施工企业原因，发生农民工向政府部门讨要拖欠工资或因拖欠民工工资引发群体性事件的，直接扣10分。",10,10,null,10,null,"建设管理部、合同管理部"]
[10,"安全生产及文明施工（20分）","1、安全生产管理体系和保证措施的建立情况；2、安全生产专项方案的编制情况；3、专职安全员的配备情况；4、安全生产经费和保障措施的落实情况；5、文明施工的计划与落实情况；6、施工企业与建设、监理、设计单位的协作情况。以上如有不满足规范和有关要求的，按1~4分/条扣分，最多扣20分；出现安全事故的，直接扣20分。",20,17,"1、改性土拌和站柴油发电机周边隔离未封闭，无警示标牌，无消防设施2、改性土拌和站现场餐厅内有2个煤气罐，未单独存放；3、发电机旁仓库内存放柴油，无消防设施",18,null,"质量安全管理部"]

{"sheet":"J008-1","index":19,"n_rows":15,"n_cols":9,"rows_kept":15,"hidden":true,"merged":[[1,0,1,7],[2,0,2,7],[4,0,4,2],[7,1,8,1],[9,1,11,1]]}
[null,"附件2："]
["安徽省水利工程建设施工合同履行评价评分表"]
["合同名称：引江济淮工程（安徽段）江淮沟通段施工J008-1标         合同单位："]
["序号","评价指标","参考标准","满分","建管处一、二季度打分最低项统计","建管处扣分依据","集团公司半年度打分","集团公司扣分依据","打分部门"]
["得分合计",null,null,100,{"$f":"SUM(E6:E15)","v":89},null,{"$f":"SUM(G6:G15)","v":88.5}]
[1,"管理人员到位（10分）","项目经理或技术负责人未按投标承诺或合同约定到位的，扣10分；其他管理人员未按投标承诺或合同约定到位的，按每人扣1分，最多扣5分。",10,10,null,10,null,"合同管理部"]
[2,"机械设备到位（10分）","因施工机械、设备不到位影响工期或工程质量的，扣0~10分。",10,10,null,10,null,"建设管理部"]
[3,"工程进度管理（15分）","进度管理（5分）：进度计划报批手续不齐全或施工进度管理不到位的，扣0~5分。",5,5,null,5,null,"建设管理部"]
[4,null,"实际进度（10分）:因施工企业原因，造成工期延误的，扣0~10分；因施工企业原因，造成阶段目标和总体进度严重滞后的，扣10分。",10,10,null,10,null,"建设管理部"]
[5,"工程质量管理（20分）","质量管理体系（5分）：1、设立专门的质量管理机构或建立健全质量保证体系；2、配备质量管理人员；3、制定并落实质量管理制度。\n以上如有不满足的，按2分/条扣分，最多扣5分。",5,5,null,5,"根据集团公司2020年1-6月份检查、巡查反应，该标段质量管理体系基本健全。","质量安全管理部"]
[6,null,"工程质量行为（9分）：1、按照设计图纸和施工技术标准施工；2、原材料、中间产品、构配件等按规定检验及报验；3、涉及工程结构安全的试块、试件及有关材料按规定见证取样和送检；4、单元工程及工序质量检验和报验，隐蔽工程和关键部位的验收符合要求；5、试验仪器及设备按规定和合同到位，满足施工要求；6、制定并落实计划，按规范进行工艺试验确定施工参数，满足施工要求。以上如有不满足的，按1.5分/条扣分，最多扣9分。",9,9,null,7.5,"根据集团公司2020年1-6月份检查、巡查反应，该标段质量管理行为存在单元工程工序检验报验不及时等问题。","质量安全管理部"]
[7,null,"质量管理效果（6分）：\n1、分部工程及单位工程验收情况；2、历次质量检查和抽检情况；3、工程外观质量情况；4、过程及竣工检测等各类检测。\n以上如有不满足规范和设计要求的，按1.5分/条扣分，最多扣6分。",6,3,"1、槽身临水面不锈钢板面安装过程中出现点、线、面状锈蚀情况2、现场涂层破损后未及时除锈补涂",3,"根据集团公司2020年1-6月份检查、巡查反应，该标段检查中发现该标段存在钢结构桥梁制作安装等质量问题。","质量安全管理部"]
[8,"施工技术管理（15分）","1、单项工程施工组织设计和分部工程、单位工程施工组织方案齐全并具有针对性；2、及时履行各类报验手续；3、施工记录完整；4、及时回复监理工程师通知；5、工程签证齐全、签字手续完备；6、归档资料及时、真实、规范、完整。以上如有不满足的，按1~3分/条扣分，最多扣15分。",15,13,"归档资料不及时",13,null,"建设管理部"]
[9,"劳务分包管理及农民工工资拖欠情况（10分）","未按规定签订劳务分包协议、未与农民工签订合法劳务合同的，扣3分；因施工企业原因，发生农民工向项目法人单位讨要拖欠工资的，每次扣3分，最多扣10分；因施工企业原因，发生农民工向政府部门讨要拖欠工资或因拖欠民工工资引发群体性事件的，直接扣10分。",10,7,"有讨薪现象",7,"6月11日，电焊工陈彬彬电话上访讨薪","建设管理部、合同管理部"]
[10,"安全生产及文明施工（20分）","1、安全生产管理体系和保证措施的建立情况；2、安全生产专项方案的编制情况；3、专职安全员的配备情况；4、安全生产经费和保障措施的落实情况；5、文明施工的计划与落实情况；6、施工企业与建设、监理、设计单位的协作情况。以上如有不满足规范和有关要求的，按1~4分/条扣分，最多扣20分；出现安全事故的，直接扣20分。",20,17,"1、1#桥台端部局部临边防护、1#、4#桥台高处临边悬挑焊接平台不符合规范要求，四周无防护栏杆2、1#桥台施工现场一处开关箱一闸多机；3、作业人员高处临边未系安全带。",18,null,"质量安全管理部"]

{"sheet":"J008-2","index":20,"n_rows":15,"n_cols":9,"rows_kept":15,"hidden":true,"merged":[[1,0,1,7],[2,0,2,7],[4,0,4,2],[7,1,8,1],[9,1,11,1]]}
[null,"附件2："]
["安徽省水利工程建设施工合同履行评价评分表"]
["合同名称：引江济淮工程（安徽段）江淮沟通段施工J008-2土建及安装标         合同单位：中国铁建大桥工程局集团有限公司"]
["序号","评价指标","参考标准","满分","建管处一、二季度打分最低项统计","建管处扣分依据","集团公司半年度打分","集团公司扣分依据","打分部门"]
["得分合计",null,null,100,{"$f":"SUM(E6:E15)","v":94.5},null,{"$f":"SUM(G6:G15)","v":89.5}]
[1,"管理人员到位（10分）","项目经理或技术负责人未按投标承诺或合同约定到位的，扣10分；其他管理人员未按投标承诺或合同约定到位的，按每人扣1分，最多扣5分。",10,10,null,10,"打卡记录雷同","合同管理部"]
[2,"机械设备到位（10分）","因施工机械、设备不到位影响工期或工程质量的，扣0~10分。",10,10,null,10,null,"建设管理部"]
[3,"工程进度管理（15分）","进度管理（5分）：进度计划报批手续不齐全或施工进度管理不到位的，扣0~5分。",5,5,null,5,null,"建设管理部"]
[4,null,"实际进度（10分）:因施工企业原因，造成工期延误的，扣0~10分；因施工企业原因，造成阶段目标和总体进度严重滞后的，扣10分。",10,10,null,10,null,"建设管理部"]
[5,"工程质量管理（20分）","质量管理体系（5分）：1、设立专门的质量管理机构或建立健全质量保证体系；2、配备质量管理人员；3、制定并落实质量管理制度。\n以上如有不满足的，按2分/条扣分，最多扣5分。",5,5,null,5,"根据集团公司2020年1-6月份检查、巡查反应，该标段质量管理体系基本健全。","质量安全管理部"]
[6,null,"工程质量行为（9分）：1、按照设计图纸和施工技术标准施工；2、原材料、中间产品、构配件等按规定检验及报验；3、涉及工程结构安全的试块、试件及有关材料按规定见证取样和送检；4、单元工程及工序质量检验和报验，隐蔽工程和关键部位的验收符合要求；5、试验仪器及设备按规定和合同到位，满足施工要求；6、制定并落实计划，按规范进行工艺试验确定施工参数，满足施工要求。以上如有不满足的，按1.5分/条扣分，最多扣9分。",9,9,null,7.5,"根据集团公司2020年1-6月份检查、巡查反应，该标段质量管理行为存在单元工程工序检验报验不及时等问题。","质量安全管理部"]
[7,null,"质量管理效果（6分）：\n1、分部工程及单位工程验收情况；2、历次质量检查和抽检情况；3、工程外观质量情况；4、过程及竣工检测等各类检测。\n以上如有不满足规范和设计要求的，按1.5分/条扣分，最多扣6分。",6,4.5,"光荣坝渠下涵下游翼墙分布钢筋接头焊接不规范，焊渣未清理，钢筋未弯折钢筋不在一条直线上",3,"根据集团公司2020年1-6月份检查、巡查反应，该标段检查中发现该标段存在钢筋制安、混凝土浇筑、钢结构桥梁制作安装等质量问题。","质量安全管理部"]
[8,"施工技术管理（15分）","1、单项工程施工组织设计和分部工程、单位工程施工组织方案齐全并具有针对性；2、及时履行各类报验手续；3、施工记录完整；4、及时回复监理工程师通知；5、工程签证齐全、签字手续完备；6、归档资料及时、真实、规范、完整。以上如有不满足的，按1~3分/条扣分，最多扣15分。",15,13,"归档资料不及时",13,null,"建设管理部"]
[9,"劳务分包管理及农民工工资拖欠情况（10分）","未按规定签订劳务分包协议、未与农民工签订合法劳务合同的，扣3分；因施工企业原因，发生农民工向项目法人单位讨要拖欠工资的，每次扣3分，最多扣10分；因施工企业原因，发生农民工向政府部门讨要拖欠工资或因拖欠民工工资引发群体性事件的，直接扣10分。",10,10,null,7,"合同专项抽查和建管处结合水利部稽查，抽查了J008-2桥涵劳务分包合同：未采用建设部示范文本，未备案；劳务分包合同内容包含测量费、分包管理费，清单工程量计价。","建设管理部、合同管理部"]
[10,"安全生产及文明施工（20分）","1、安全生产管理体系和保证措施的建立情况；2、安全生产专项方案的编制情况；3、专职安全员的配备情况；4、安全生产经费和保障措施的落实情况；5、文明施工的计划与落实情况；6、施工企业与建设、监理、设计单位的协作情况。以上如有不满足规范和有关要求的，按1~4分/条扣分，最多扣20分；出现安全事故的，直接扣20分。",20,18,"1、4#桥台高处临边脚手架平台搭设不规范，无水平防护栏杆2、施工现场吊装钢模板，未拉设缆风绳。",19,null,"质量安全管理部"]

{"sheet":"J009-1","index":21,"n_rows":15,"n_cols":9,"rows_kept":15,"hidden":true,"merged":[[1,0,1,7],[2,0,2,7],[4,0,4,2],[7,1,8,1],[9,1,11,1]]}
[null,"附件2："]
["安徽省水利工程建设施工合同履行评价评分表"]
["合同名称：引江济淮工程（安徽段）江淮沟通段施工J009-1标         合同单位："]
["序号","评价指标","参考标准","满分","建管处一、二季度打分最低项统计","建管处扣分依据","集团公司半年度打分","集团公司扣分依据","打分部门"]
["得分合计",null,null,100,{"$f":"SUM(E6:E15)","v":89.5},null,{"$f":"SUM(G6:G15)","v":86.5}]
[1,"管理人员到位（10分）","项目经理或技术负责人未按投标承诺或合同约定到位的，扣10分；其他管理人员未按投标承诺或合同约定到位的，按每人扣1分，最多扣5分。",10,8,"考勤不全，部分人员不到岗",6,"现场抽查4人指纹无法识别，分别为王富坤、安克文、赵腾飞、董毅。3月12人因疫情原因考勤异常说明未报监理和建管处审批，1人（邓全全）应进场未进场说明未报监理和建管处审批。项目经理刘湘军3月缺勤2天，手续未报建管处审批。4月请假17天，已报建管处批准。\n技术负责人李海东3、4月因疫情原因考勤异常说明未报监理和建管处审批。","合同管理部"]
[2,"机械设备到位（10分）","因施工机械、设备不到位影响工期或工程质量的，扣0~10分。",10,10,null,10,null,"建设管理部"]
[3,"工程进度管理（15分）","进度管理（5分）：进度计划报批手续不齐全或施工进度管理不到位的，扣0~5分。",5,5,null,5,null,"建设管理部"]
[4,null,"实际进度（10分）:因施工企业原因，造成工期延误的，扣0~10分；因施工企业原因，造成阶段目标和总体进度严重滞后的，扣10分。",10,10,null,10,null,"建设管理部"]
[5,"工程质量管理（20分）","质量管理体系（5分）：1、设立专门的质量管理机构或建立健全质量保证体系；2、配备质量管理人员；3、制定并落实质量管理制度。\n以上如有不满足的，按2分/条扣分，最多扣5分。",5,5,null,5,"根据集团公司2020年1-6月份检查、巡查反应，该标段质量管理体系基本健全。","质量安全管理部"]
[6,null,"工程质量行为（9分）：1、按照设计图纸和施工技术标准施工；2、原材料、中间产品、构配件等按规定检验及报验；3、涉及工程结构安全的试块、试件及有关材料按规定见证取样和送检；4、单元工程及工序质量检验和报验，隐蔽工程和关键部位的验收符合要求；5、试验仪器及设备按规定和合同到位，满足施工要求；6、制定并落实计划，按规范进行工艺试验确定施工参数，满足施工要求。以上如有不满足的，按1.5分/条扣分，最多扣9分。",9,7.5,"部分施工工序质量检验评定资料未经监理机构复核已进行下一道工序，例如管护道路水泥改性土工序评定、老河道填筑工序评定",7.5,"根据集团公司2020年1-6月份检查、巡查反应，该标段质量管理行为存在单元工程工序检验报验不及时等问题。","质量安全管理部"]
[7,null,"质量管理效果（6分）：\n1、分部工程及单位工程验收情况；2、历次质量检查和抽检情况；3、工程外观质量情况；4、过程及竣工检测等各类检测。\n以上如有不满足规范和设计要求的，按1.5分/条扣分，最多扣6分。",6,6,null,6,"根据集团公司2020年1-6月份检查、巡查反应，该标段质量管理效果基本能满足设计及规范要求。","质量安全管理部"]
[8,"施工技术管理（15分）","1、单项工程施工组织设计和分部工程、单位工程施工组织方案齐全并具有针对性；2、及时履行各类报验手续；3、施工记录完整；4、及时回复监理工程师通知；5、工程签证齐全、签字手续完备；6、归档资料及时、真实、规范、完整。以上如有不满足的，按1~3分/条扣分，最多扣15分。",15,12,"归档资料不及时",12,null,"建设管理部"]
[9,"劳务分包管理及农民工工资拖欠情况（10分）","未按规定签订劳务分包协议、未与农民工签订合法劳务合同的，扣3分；因施工企业原因，发生农民工向项目法人单位讨要拖欠工资的，每次扣3分，最多扣10分；因施工企业原因，发生农民工向政府部门讨要拖欠工资或因拖欠民工工资引发群体性事件的，直接扣10分。",10,10,null,7,"合同专项检查，抽查了第2标段劳务分包合同：采用承包人内部统一文本，合同额1983.817559万元（含暂估甲供材费用13029.100642元），合同服务包含工程维修责任、完整的原始技术经济资料、配合承包人办理交工验收等，合同费用为工程量清单单价和工程量计算，实际发生约2%的安全生产费为按实报销，分包人承担。与水利部（2016）420文要求有出入。","建设管理部、合同管理部"]
[10,"安全生产及文明施工（20分）","1、安全生产管理体系和保证措施的建立情况；2、安全生产专项方案的编制情况；3、专职安全员的配备情况；4、安全生产经费和保障措施的落实情况；5、文明施工的计划与落实情况；6、施工企业与建设、监理、设计单位的协作情况。以上如有不满足规范和有关要求的，按1~4分/条扣分，最多扣20分；出现安全事故的，直接扣20分。",20,16,"1、河渠右岸高长路断路后，形成导流明渠临边防护缺失，缺失警示标识2、临时用电：项目部外墙未设置安全防护栏杆；3、深基坑：河渠基坑开挖后，未按批复方案（水电十局【2019】技案020号）中观测频率要求进行检测，特别是近期基坑积水后，未见监测数据4、已组织开展防汛、消防等专项应急救援预案演练，还未开展安全生产事故应急救援综合预案演练；未按季度、年度进行隐患排查治理情况统计分析；未向从业人员通报或公示事故隐患排查治理情况。",18,null,"质量安全管理部"]

{"sheet":"J009-2","index":22,"n_rows":15,"n_cols":9,"rows_kept":15,"hidden":true,"merged":[[1,0,1,7],[2,0,2,7],[4,0,4,2],[7,1,8,1],[9,1,11,1]]}
[null,"附件2："]
["安徽省水利工程建设施工合同履行评价评分表"]
["合同名称：引江济淮工程（安徽段）江淮沟通段施工J009-2土建及安装标         合同单位："]
["序号","评价指标","参考标准","满分","建管处一、二季度打分最低项统计","建管处扣分依据","集团公司半年度打分","集团公司扣分依据","打分部门"]
["得分合计",null,null,100,{"$f":"SUM(E6:E15)","v":92.5},null,{"$f":"SUM(G6:G15)","v":82.5}]
[1,"管理人员到位（10分）","项目经理或技术负责人未按投标承诺或合同约定到位的，扣10分；其他管理人员未按投标承诺或合同约定到位的，按每人扣1分，最多扣5分。",10,10,null,8,"1、合同人员3月石元伟请假31天、王阳波请假11天，未报建管处。","合同管理部"]
[2,"机械设备到位（10分）","因施工机械、设备不到位影响工期或工程质量的，扣0~10分。",10,10,null,10,null,"建设管理部"]
[3,"工程进度管理（15分）","进度管理（5分）：进度计划报批手续不齐全或施工进度管理不到位的，扣0~5分。",5,5,null,5,null,"建设管理部"]
[4,null,"实际进度（10分）:因施工企业原因，造成工期延误的，扣0~10分；因施工企业原因，造成阶段目标和总体进度严重滞后的，扣10分。",10,10,null,10,null,"建设管理部"]
[5,"工程质量管理（20分）","质量管理体系（5分）：1、设立专门的质量管理机构或建立健全质量保证体系；2、配备质量管理人员；3、制定并落实质量管理制度。\n以上如有不满足的，按2分/条扣分，最多扣5分。",5,5,null,5,null,"质量安全管理部"]
[6,null,"工程质量行为（9分）：1、按照设计图纸和施工技术标准施工；2、原材料、中间产品、构配件等按规定检验及报验；3、涉及工程结构安全的试块、试件及有关材料按规定见证取样和送检；4、单元工程及工序质量检验和报验，隐蔽工程和关键部位的验收符合要求；5、试验仪器及设备按规定和合同到位，满足施工要求；6、制定并落实计划，按规范进行工艺试验确定施工参数，满足施工要求。以上如有不满足的，按1.5分/条扣分，最多扣9分。",9,9,null,9,null,"质量安全管理部"]
[7,null,"质量管理效果（6分）：\n1、分部工程及单位工程验收情况；2、历次质量检查和抽检情况；3、工程外观质量情况；4、过程及竣工检测等各类检测。\n以上如有不满足规范和设计要求的，按1.5分/条扣分，最多扣6分。",6,4.5,"王松颗跌水箱涵沉降缝处、施工缝处局部存在漏浆、泛砂、骨料外露现象，包箍箍筋绑扎不牢",4.5,"根据集团公司2020年1-6月份检查、巡查反应，该标段检查中发现该标段存在钢筋制安、混凝土浇筑等质量问题。","质量安全管理部"]
[8,"施工技术管理（15分）","1、单项工程施工组织设计和分部工程、单位工程施工组织方案齐全并具有针对性；2、及时履行各类报验手续；3、施工记录完整；4、及时回复监理工程师通知；5、工程签证齐全、签字手续完备；6、归档资料及时、真实、规范、完整。以上如有不满足的，按1~3分/条扣分，最多扣15分。",15,13,"工程签证不全",13,null,"建设管理部"]
[9,"劳务分包管理及农民工工资拖欠情况（10分）","未按规定签订劳务分包协议、未与农民工签订合法劳务合同的，扣3分；因施工企业原因，发生农民工向项目法人单位讨要拖欠工资的，每次扣3分，最多扣10分；因施工企业原因，发生农民工向政府部门讨要拖欠工资或因拖欠民工工资引发群体性事件的，直接扣10分。",10,10,null,0,"1、劳务人员向省信访局进行上访，经查证情况属实，集团公司给予通报；\n2、合同专项检查，抽查了第5标段劳务分包合同：采用承包人内部统一文本，合同额21164.3130元（含暂估甲供材费用13029.100642元），合同服务包含工程维修责任、完整的原始技术经济资料、配合承包人办理交工验收等，合同费用为工程量清单单价和工程量计算，合同价包含了2%的安全生产费，4%水泥改性土含场拌、摊铺、压实等，部分清单含土工布采购和安装等，与水利部（2016）420文要求有出入。","建设管理部、合同管理部"]
[10,"安全生产及文明施工（20分）","1、安全生产管理体系和保证措施的建立情况；2、安全生产专项方案的编制情况；3、专职安全员的配备情况；4、安全生产经费和保障措施的落实情况；5、文明施工的计划与落实情况；6、施工企业与建设、监理、设计单位的协作情况。以上如有不满足规范和有关要求的，按1~4分/条扣分，最多扣20分；出现安全事故的，直接扣20分。",20,16,"1、混凝土拌合站水泥罐爬梯护笼垂直条设置不满足规范要求，护笼顶部与上部护栏不齐平2、防洪度汛：河渠基坑积水后，沿线深水临边警示、警戒标识牌较少，现场存在地方村民在基坑边活动；3、已组织开展防汛、消防、防暑降温等专项应急救援预案演练，还未开展生产安全事故应急救援综合预案演练、未按季度、年度进行隐患排查治理情况统计分析；未向从业人员通报或公示事故隐患排查治理情况4、河渠基坑开挖后，未按已批复方案（中国水电四局【2019】技案022号）中要求开展基坑边坡监测方案，特别是近期基坑积水后，应加强现场边坡稳定性定期监测。",18,null,"质量安全管理部"]

{"sheet":"J010-1","index":23,"n_rows":15,"n_cols":9,"rows_kept":15,"hidden":true,"merged":[[1,0,1,7],[2,0,2,7],[4,0,4,2],[7,1,8,1],[9,1,11,1]]}
[null,"附件2："]
["安徽省水利工程建设施工合同履行评价评分表"]
["合同名称：引江济淮工程（安徽段）江淮沟通段施工J010-1标    合同单位： 安徽水安建设集团股份有限公司"]
["序号","评价指标","参考标准","满分","建管处一、二季度打分最低项统计","建管处扣分依据","集团公司半年度打分","集团公司扣分依据","打分部门"]
["得分合计",null,null,100,{"$f":"E6+E7+E8+E9+E10+E11+E12+E13+E14+E15","v":81.5},null,{"$f":"G6+G7+G8+G9+G10+G11+G12+G13+G14+G15","v":81.5}]
[1,"管理人员到位（10分）","项目经理或技术负责人未按投标承诺或合同约定到位的，扣10分；其他管理人员未按投标承诺或合同约定到位的，按每人扣1分，最多扣5分。",10,10,null,5,"3月卞显菊、杨梦、秦伏龙、江桐桐、李凯、周胜男6人缺勤或未到岗，其中卞显菊产假期间工作交接人、周胜男（冯媛媛变更后对应人员）和秦伏龙考勤不足，请销假手续缺，其余3人请假。4月3人缺勤或未到岗，分别为卞显菊产假期间工作交接人、周胜男和秦伏龙。","合同管理部"]
[2,"机械设备到位（10分）","因施工机械、设备不到位影响工期或工程质量的，扣0~10分。",10,10,null,10,null,"建设管理部"]
[3,"工程进度管理（15分）","进度管理（5分）：进度计划报批手续不齐全或施工进度管理不到位的，扣0~5分。",5,4,"进度管理不到位",4,null,"建设管理部"]
[4,null,"实际进度（10分）:因施工企业原因，造成工期延误的，扣0~10分；因施工企业原因，造成阶段目标和总体进度严重滞后的，扣10分。",10,10,null,10,null,"建设管理部"]
[5,"工程质量管理（20分）","质量管理体系（5分）：1、设立专门的质量管理机构或建立健全质量保证体系；2、配备质量管理人员；3、制定并落实质量管理制度。\n以上如有不满足的，按2分/条扣分，最多扣5分。",5,3,"质量管理制度落实不到位。",3,"根据集团公司2020年1-6月份检查、巡查反应，该标段质量管理体系基本健全，但部分质量管理制度落实不到位。","质量安全管理部"]
[6,null,"工程质量行为（9分）：1、按照设计图纸和施工技术标准施工；2、原材料、中间产品、构配件等按规定检验及报验；3、涉及工程结构安全的试块、试件及有关材料按规定见证取样和送检；4、单元工程及工序质量检验和报验，隐蔽工程和关键部位的验收符合要求；5、试验仪器及设备按规定和合同到位，满足施工要求；6、制定并落实计划，按规范进行工艺试验确定施工参数，满足施工要求。以上如有不满足的，按1.5分/条扣分，最多扣9分。",9,6,"现场个别小型结构物未按施工技术标准施工；隐蔽工程验收资料签字不齐全。",7.5,"根据集团公司2020年1-6月份检查、巡查反应，该标段质量管理行为存在单元工程工序检验报验不及时等问题。","质量安全管理部"]
[7,null,"质量管理效果（6分）：\n1、分部工程及单位工程验收情况；2、历次质量检查和抽检情况；3、工程外观质量情况；4、过程及竣工检测等各类检测。\n以上如有不满足规范和设计要求的，按1.5分/条扣分，最多扣6分。",6,3,"历次质量检查存在问题。",6,"根据集团公司2020年1-6月份检查、巡查反应，该标段检查中发现该标段存在钢筋制安、混凝土浇筑、止水安装等质量问题。","质量安全管理部"]
[8,"施工技术管理（15分）","1、单项工程施工组织设计和分部工程、单位工程施工组织方案齐全并具有针对性；2、及时履行各类报验手续；3、施工记录完整；4、及时回复监理工程师通知；5、工程签证齐全、签字手续完备；6、归档资料及时、真实、规范、完整。以上如有不满足的，按1~3分/条扣分，最多扣15分。",15,13,"资料归档不及时",13,null,"建设管理部"]
[9,"劳务分包管理及农民工工资拖欠情况（10分）","未按规定签订劳务分包协议、未与农民工签订合法劳务合同的，扣3分；因施工企业原因，发生农民工向项目法人单位讨要拖欠工资的，每次扣3分，最多扣10分；因施工企业原因，发生农民工向政府部门讨要拖欠工资或因拖欠民工工资引发群体性事件的，直接扣10分。",10,7,"部分劳务分包单位与农名劳动合同签订不全。",7,"合同专项检查和建管处结合水利部稽查，抽查了J010-1一工区劳务分包合同：未采用建设部示范文本，劳务分包合同内容包含了措施费（基坑排水、便道修建）、油料等，合同费用为工程量清单单价和工程量计算，包含了人工、材料、机械费用、管理费、措施费、税金、保险等，付款按月支付；土方施工含自带机械设备。","建设管理部、合同管理部"]
[10,"安全生产及文明施工（20分）","1、安全生产管理体系和保证措施的建立情况；2、安全生产专项方案的编制情况；3、专职安全员的配备情况；4、安全生产经费和保障措施的落实情况；5、文明施工的计划与落实情况；6、施工企业与建设、监理、设计单位的协作情况。以上如有不满足规范和有关要求的，按1~4分/条扣分，最多扣20分；出现安全事故的，直接扣20分。",20,15.5,"编制的安全生产专项方案少；施工便道雨天积水晴天扬尘。",16,null,"质量安全管理部"]

{"sheet":"J010-2","index":24,"n_rows":15,"n_cols":9,"rows_kept":15,"hidden":true,"merged":[[1,0,1,7],[2,0,2,7],[4,0,4,2],[7,1,8,1],[9,1,11,1]]}
[null,"附件2："]
["安徽省水利工程建设施工合同履行评价评分表"]
["合同名称：引江济淮工程（安徽段）江淮沟通段施工J010-2标    合同单位： 中国水利水电第四工程局有限公司"]
["序号","评价指标","参考标准","满分","建管处一、二季度打分最低项统计","建管处扣分依据","集团公司半年度打分","集团公司扣分依据","打分部门"]
["得分合计",null,null,100,{"$f":"E6+E7+E8+E9+E10+E11+E12+E13+E14+E15","v":83.5},null,{"$f":"G6+G7+G8+G9+G10+G11+G12+G13+G14+G15","v":89.52}]
[1,"管理人员到位（10分）","项目经理或技术负责人未按投标承诺或合同约定到位的，扣10分；其他管理人员未按投标承诺或合同约定到位的，按每人扣1分，最多扣5分。",10,8,"管理人员无故缺勤",10,"考勤记录雷同","合同管理部"]
[2,"机械设备到位（10分）","因施工机械、设备不到位影响工期或工程质量的，扣0~10分。",10,10,null,10,null,"建设管理部"]
[3,"工程进度管理（15分）","进度管理（5分）：进度计划报批手续不齐全或施工进度管理不到位的，扣0~5分。",5,4,"进度管理不到位",4,null,"建设管理部"]
[4,null,"实际进度（10分）:因施工企业原因，造成工期延误的，扣0~10分；因施工企业原因，造成阶段目标和总体进度严重滞后的，扣10分。",10,9,"阶段目标滞后",9.02,null,"建设管理部"]
[5,"工程质量管理（20分）","质量管理体系（5分）：1、设立专门的质量管理机构或建立健全质量保证体系；2、配备质量管理人员；3、制定并落实质量管理制度。\n以上如有不满足的，按2分/条扣分，最多扣5分。",5,5,null,5,"根据集团公司2020年1-6月份检查、巡查反应，该标段质量管理体系基本健全。","质量安全管理部"]
[6,null,"工程质量行为（9分）：1、按照设计图纸和施工技术标准施工；2、原材料、中间产品、构配件等按规定检验及报验；3、涉及工程结构安全的试块、试件及有关材料按规定见证取样和送检；4、单元工程及工序质量检验和报验，隐蔽工程和关键部位的验收符合要求；5、试验仪器及设备按规定和合同到位，满足施工要求；6、制定并落实计划，按规范进行工艺试验确定施工参数，满足施工要求。以上如有不满足的，按1.5分/条扣分，最多扣9分。",9,6,"现场个别小型结构物未按施工技术标准施工；隐蔽工程验收资料签字不齐全。",7.5,"根据集团公司2020年1-6月份检查、巡查反应，该标段质量管理行为存在单元工程工序检验报验不及时等问题。","质量安全管理部"]
[7,null,"质量管理效果（6分）：\n1、分部工程及单位工程验收情况；2、历次质量检查和抽检情况；3、工程外观质量情况；4、过程及竣工检测等各类检测。\n以上如有不满足规范和设计要求的，按1.5分/条扣分，最多扣6分。",6,1.5,"历次质量检查存在问题；现场个别小型结构物工程外观质量差。",6,"根据集团公司2020年1-6月份检查、巡查反应，该标段检查中发现该标段存在钢筋制安、混凝土浇筑、止水安装等质量问题。","质量安全管理部"]
[8,"施工技术管理（15分）","1、单项工程施工组织设计和分部工程、单位工程施工组织方案齐全并具有针对性；2、及时履行各类报验手续；3、施工记录完整；4、及时回复监理工程师通知；5、工程签证齐全、签字手续完备；6、归档资料及时、真实、规范、完整。以上如有不满足的，按1~3分/条扣分，最多扣15分。",15,13,"资料归档不及时",13,null,"建设管理部"]
[9,"劳务分包管理及农民工工资拖欠情况（10分）","未按规定签订劳务分包协议、未与农民工签订合法劳务合同的，扣3分；因施工企业原因，发生农民工向项目法人单位讨要拖欠工资的，每次扣3分，最多扣10分；因施工企业原因，发生农民工向政府部门讨要拖欠工资或因拖欠民工工资引发群体性事件的，直接扣10分。",10,10,null,7,"合同专项检查和建管处结合水利部稽查，抽查了J010-2河渠劳务分包合同：未采用建设部示范文本，劳务分包合同内容包含土方开挖、土方填筑、排水、钢筋混凝土浇筑、措施项目等，合同费用为工程量清单单价和工程量计算，包含了人工、机械费用、材料费、运输费、进出场费用、税金等，另有2%安全生产费，付款按月支付。","建设管理部、合同管理部"]
[10,"安全生产及文明施工（20分）","1、安全生产管理体系和保证措施的建立情况；2、安全生产专项方案的编制情况；3、专职安全员的配备情况；4、安全生产经费和保障措施的落实情况；5、文明施工的计划与落实情况；6、施工企业与建设、监理、设计单位的协作情况。以上如有不满足规范和有关要求的，按1~4分/条扣分，最多扣20分；出现安全事故的，直接扣20分。",20,17,"现场文明施工落实情况差。",18,null,"质量安全管理部"]

{"sheet":"J011-2","index":25,"n_rows":15,"n_cols":9,"rows_kept":15,"hidden":true,"merged":[[1,0,1,7],[2,0,2,7],[4,0,4,2],[7,1,8,1],[9,1,11,1]]}
[null,"附件2："]
["安徽省水利工程建设施工合同履行评价评分表"]
["合同名称：引江济淮工程（安徽段）江淮沟通段施工J011-2标    合同单位：中国葛洲坝集团股份有限公司司"]
["序号","评价指标","参考标准","满分","建管处一、二季度打分最低项统计","建管处扣分依据","集团公司半年度打分","集团公司扣分依据","打分部门"]
["得分合计",null,null,100,{"$f":"E6+E7+E8+E9+E10+E11+E12+E13+E14+E15","v":94},null,{"$f":"G6+G7+G8+G9+G10+G11+G12+G13+G14+G15","v":93}]
[1,"管理人员到位（10分）","项目经理或技术负责人未按投标承诺或合同约定到位的，扣10分；其他管理人员未按投标承诺或合同约定到位的，按每人扣1分，最多扣5分。",10,10,null,8,"1-4月全员采用纸质考勤表监理签认，未报建管处审核签字，未就具体人员履约受疫情影响情况报建管处批复。","合同管理部"]
[2,"机械设备到位（10分）","因施工机械、设备不到位影响工期或工程质量的，扣0~10分。",10,10,null,10,null,"建设管理部"]
[3,"工程进度管理（15分）","进度管理（5分）：进度计划报批手续不齐全或施工进度管理不到位的，扣0~5分。",5,5,null,5,null,"建设管理部"]
[4,null,"实际进度（10分）:因施工企业原因，造成工期延误的，扣0~10分；因施工企业原因，造成阶段目标和总体进度严重滞后的，扣10分。",10,10,null,10,null,"建设管理部"]
[5,"工程质量管理（20分）","质量管理体系（5分）：1、设立专门的质量管理机构或建立健全质量保证体系；2、配备质量管理人员；3、制定并落实质量管理制度。\n以上如有不满足的，按2分/条扣分，最多扣5分。",5,5,null,5,"根据集团公司2020年1-6月份检查、巡查反应，该标段质量管理体系基本健全。","质量安全管理部"]
[6,null,"工程质量行为（9分）：1、按照设计图纸和施工技术标准施工；2、原材料、中间产品、构配件等按规定检验及报验；3、涉及工程结构安全的试块、试件及有关材料按规定见证取样和送检；4、单元工程及工序质量检验和报验，隐蔽工程和关键部位的验收符合要求；5、试验仪器及设备按规定和合同到位，满足施工要求；6、制定并落实计划，按规范进行工艺试验确定施工参数，满足施工要求。以上如有不满足的，按1.5分/条扣分，最多扣9分。",9,9,null,9,"根据集团公司2020年1-6月份检查、巡查反应，该标段质量管理行为基本满足合同和规范要求。","质量安全管理部"]
[7,null,"质量管理效果（6分）：\n1、分部工程及单位工程验收情况；2、历次质量检查和抽检情况；3、工程外观质量情况；4、过程及竣工检测等各类检测。\n以上如有不满足规范和设计要求的，按1.5分/条扣分，最多扣6分。",6,6,null,6,"根据集团公司2020年1-6月份检查、巡查反应，该标段质量管理效果基本能满足设计及规范要求。","质量安全管理部"]
[8,"施工技术管理（15分）","1、单项工程施工组织设计和分部工程、单位工程施工组织方案齐全并具有针对性；2、及时履行各类报验手续；3、施工记录完整；4、及时回复监理工程师通知；5、工程签证齐全、签字手续完备；6、归档资料及时、真实、规范、完整。以上如有不满足的，按1~3分/条扣分，最多扣15分。",15,15,null,15,null,"建设管理部"]
[9,"劳务分包管理及农民工工资拖欠情况（10分）","未按规定签订劳务分包协议、未与农民工签订合法劳务合同的，扣3分；因施工企业原因，发生农民工向项目法人单位讨要拖欠工资的，每次扣3分，最多扣10分；因施工企业原因，发生农民工向政府部门讨要拖欠工资或因拖欠民工工资引发群体性事件的，直接扣10分。",10,10,null,7,"合同专项检查，抽查1-5#排泥区疏浚及土石方工程劳务分包合同：采用建设部示范文本，未见核验劳务分包人与所用劳务人员的劳动用工合同记录，合同费用为工程量清单单价和工程量计算，安全生产协议未附。","建设管理部、合同管理部"]
[10,"安全生产及文明施工（20分）","1、安全生产管理体系和保证措施的建立情况；2、安全生产专项方案的编制情况；3、专职安全员的配备情况；4、安全生产经费和保障措施的落实情况；5、文明施工的计划与落实情况；6、施工企业与建设、监理、设计单位的协作情况。以上如有不满足规范和有关要求的，按1~4分/条扣分，最多扣20分；出现安全事故的，直接扣20分。",20,14,null,18,null,"质量安全管理部"]

{"sheet":"H001","index":26,"n_rows":15,"n_cols":9,"rows_kept":15,"hidden":true,"merged":[[1,0,1,7],[2,0,2,7],[4,0,4,2],[7,1,8,1],[9,1,11,1]]}
[null,"附件2："]
["安徽省水利工程建设施工合同履行评价评分表"]
["合同名称：施工H001标（江水北送段）  合同单位：中国水利水电第十一工程局有限公司"]
["序号","评价指标","参考标准","满分","建管处一、二季度打分最低项统计","建管处扣分依据","集团公司半年度打分","集团公司扣分依据","打分部门"]
["得分合计",null,null,100,{"$f":"SUM(E6:E15)","v":83},null,{"$f":"SUM(G6:G15)","v":81.35}]
[1,"管理人员到位（10分）","项目经理或技术负责人未按投标承诺或合同约定到位的，扣10分；其他管理人员未按投标承诺或合同约定到位的，按每人扣1分，最多扣5分。",10,9,null,3,"现场抽查5人，孙泉喜（项目部 正常）、赵建刚（未在岗）、王一鸣（未在岗）、周利涛（未在岗）、赵江学（未在岗）。投标人员36人，第一批进场合同人员8人，合同外人员13人；涉及广域网考勤项目经理张明海、技术负责人高满库、质检员王一鸣、安全员张桂林3-5月无记录；涉及钉钉考勤孙泉喜3月缺勤3天、赵建刚5月缺勤22天、4月缺勤14天、3月缺勤16天，赵江学4月缺勤2天，周利涛5月缺勤15天，3月缺勤6天，现场表示无请销假；另有一份监理签认纸质考勤记录，但未经建管处确认。广域网考勤项目经理张明海、技术负责人高满库、3-5月无记录","合同管理部"]
[2,"机械设备到位（10分）","因施工机械、设备不到位影响工期或工程质量的，扣0~10分。",10,9,null,9,null,"建设管理部"]
[3,"工程进度管理（15分）","进度管理（5分）：进度计划报批手续不齐全或施工进度管理不到位的，扣0~5分。",5,4,null,4,null,"建设管理部"]
[4,null,"实际进度（10分）:因施工企业原因，造成工期延误的，扣0~10分；因施工企业原因，造成阶段目标和总体进度严重滞后的，扣10分。",10,8,null,9.35,null,"建设管理部"]
[5,"工程质量管理（20分）","质量管理体系（5分）：1、设立专门的质量管理机构或建立健全质量保证体系；2、配备质量管理人员；3、制定并落实质量管理制度。\n以上如有不满足的，按2分/条扣分，最多扣5分。",5,5,null,5,"根据集团公司2020年1-6月份检查、巡查反应，该标段质量管理体系基本健全。","质量安全管理部"]
[6,null,"工程质量行为（9分）：1、按照设计图纸和施工技术标准施工；2、原材料、中间产品、构配件等按规定检验及报验；3、涉及工程结构安全的试块、试件及有关材料按规定见证取样和送检；4、单元工程及工序质量检验和报验，隐蔽工程和关键部位的验收符合要求；5、试验仪器及设备按规定和合同到位，满足施工要求；6、制定并落实计划，按规范进行工艺试验确定施工参数，满足施工要求。以上如有不满足的，按1.5分/条扣分，最多扣9分。",9,7,null,7.5,"根据集团公司2020年1-6月份检查、巡查反应，该标段质量管理行为存在单元工程工序检验报验不及时等问题。","质量安全管理部"]
[7,null,"质量管理效果（6分）：\n1、分部工程及单位工程验收情况；2、历次质量检查和抽检情况；3、工程外观质量情况；4、过程及竣工检测等各类检测。\n以上如有不满足规范和设计要求的，按1.5分/条扣分，最多扣6分。",6,5,null,4.5,"根据集团公司2020年1-6月份检查、巡查反应，该标段检查中发现该标段存在钢筋制安、混凝土浇筑等质量问题。","质量安全管理部"]
[8,"施工技术管理（15分）","1、单项工程施工组织设计和分部工程、单位工程施工组织方案齐全并具有针对性；2、及时履行各类报验手续；3、施工记录完整；4、及时回复监理工程师通知；5、工程签证齐全、签字手续完备；6、归档资料及时、真实、规范、完整。以上如有不满足的，按1~3分/条扣分，最多扣15分。",15,13,null,13,null,"建设管理部"]
[9,"劳务分包管理及农民工工资拖欠情况（10分）","未按规定签订劳务分包协议、未与农民工签订合法劳务合同的，扣3分；因施工企业原因，发生农民工向项目法人单位讨要拖欠工资的，每次扣3分，最多扣10分；因施工企业原因，发生农民工向政府部门讨要拖欠工资或因拖欠民工工资引发群体性事件的，直接扣10分。",10,9,null,7,"专项合同检查，抽查了北站泵站钢筋、模板、混凝土浇筑合同：合同价格包含了施工水电油、基坑排水、村民阻工补偿、技术措施、综合管理、安全文明、扬尘降噪、临时设施、相关施工及许可证办理、协调外部关系等费用；要求分包提供原始、竣工验收资料等全部资料；要求分包解决施工用水及水源、施工用电从二级配电、未采用建设部示范文本，采用承包人内部统一文本。","建设管理部、合同管理部"]
[10,"安全生产及文明施工（20分）","1、安全生产管理体系和保证措施的建立情况；2、安全生产专项方案的编制情况；3、专职安全员的配备情况；4、安全生产经费和保障措施的落实情况；5、文明施工的计划与落实情况；6、施工企业与建设、监理、设计单位的协作情况。以上如有不满足规范和有关要求的，按1~4分/条扣分，最多扣20分；出现安全事故的，直接扣20分。",20,14,null,19,null,"质量安全管理部"]

{"sheet":"H002-1","index":27,"n_rows":15,"n_cols":9,"rows_kept":15,"hidden":true,"merged":[[1,0,1,7],[2,0,2,7],[4,0,4,2],[7,1,8,1],[9,1,11,1]]}
[null,"附件2："]
["安徽省水利工程建设施工合同履行评价评分表"]
["合同名称：施工H002-1标（江水北送段）  合同单位：上海市水利工程集团有限公司"]
["序号","评价指标","参考标准","满分","建管处一、二季度打分最低项统计","建管处扣分依据","集团公司半年度打分","集团公司扣分依据","打分部门"]
["得分合计",null,null,100,{"$f":"SUM(E6:E15)","v":84},null,{"$f":"SUM(G6:G15)","v":78.71}]
[1,"管理人员到位（10分）","项目经理或技术负责人未按投标承诺或合同约定到位的，扣10分；其他管理人员未按投标承诺或合同约定到位的，按每人扣1分，最多扣5分。",10,9,null,4,"广域网考勤部分，2020年5月技术负责人、质检员、安全员出勤均不足22天，4月质检员、技术负责人出勤不足22天。钉钉部分，5月陈建峰缺勤19天，4月陈建峰缺勤22天、李国海缺勤9天，3、4、5月均无请销假手续。项目部表示采用人工考勤，未报监理、建管处批准。2020年5月技术负责人出勤不足22天，4月技术负责人出勤不满足22天。现场抽查人员5人，朱涛、陈建峰、凌瑞君、王新建、李晓均不在岗","合同管理部"]
[2,"机械设备到位（10分）","因施工机械、设备不到位影响工期或工程质量的，扣0~10分。",10,8,null,8,null,"建设管理部"]
[3,"工程进度管理（15分）","进度管理（5分）：进度计划报批手续不齐全或施工进度管理不到位的，扣0~5分。",5,4,null,4,null,"建设管理部"]
[4,null,"实际进度（10分）:因施工企业原因，造成工期延误的，扣0~10分；因施工企业原因，造成阶段目标和总体进度严重滞后的，扣10分。",10,9,null,7.21,null,"建设管理部"]
[5,"工程质量管理（20分）","质量管理体系（5分）：1、设立专门的质量管理机构或建立健全质量保证体系；2、配备质量管理人员；3、制定并落实质量管理制度。\n以上如有不满足的，按2分/条扣分，最多扣5分。",5,5,null,5,"根据集团公司2020年1-6月份检查、巡查反应，该标段质量管理体系基本健全。","质量安全管理部"]
[6,null,"工程质量行为（9分）：1、按照设计图纸和施工技术标准施工；2、原材料、中间产品、构配件等按规定检验及报验；3、涉及工程结构安全的试块、试件及有关材料按规定见证取样和送检；4、单元工程及工序质量检验和报验，隐蔽工程和关键部位的验收符合要求；5、试验仪器及设备按规定和合同到位，满足施工要求；6、制定并落实计划，按规范进行工艺试验确定施工参数，满足施工要求。以上如有不满足的，按1.5分/条扣分，最多扣9分。",9,7.5,null,7.5,"根据集团公司2020年1-6月份检查、巡查反应，该标段质量管理行为存在单元工程工序检验报验不及时等问题。","质量安全管理部"]
[7,null,"质量管理效果（6分）：\n1、分部工程及单位工程验收情况；2、历次质量检查和抽检情况；3、工程外观质量情况；4、过程及竣工检测等各类检测。\n以上如有不满足规范和设计要求的，按1.5分/条扣分，最多扣6分。",6,3,null,3,"根据集团公司2020年1-6月份检查、巡查反应，该标段检查中发现该标段存在钢筋制安、混凝土浇筑等质量问题。","质量安全管理部"]
[8,"施工技术管理（15分）","1、单项工程施工组织设计和分部工程、单位工程施工组织方案齐全并具有针对性；2、及时履行各类报验手续；3、施工记录完整；4、及时回复监理工程师通知；5、工程签证齐全、签字手续完备；6、归档资料及时、真实、规范、完整。以上如有不满足的，按1~3分/条扣分，最多扣15分。",15,13,null,13,null,"建设管理部"]
[9,"劳务分包管理及农民工工资拖欠情况（10分）","未按规定签订劳务分包协议、未与农民工签订合法劳务合同的，扣3分；因施工企业原因，发生农民工向项目法人单位讨要拖欠工资的，每次扣3分，最多扣10分；因施工企业原因，发生农民工向政府部门讨要拖欠工资或因拖欠民工工资引发群体性事件的，直接扣10分。",10,10,null,10,null,"建设管理部、合同管理部"]
[10,"安全生产及文明施工（20分）","1、安全生产管理体系和保证措施的建立情况；2、安全生产专项方案的编制情况；3、专职安全员的配备情况；4、安全生产经费和保障措施的落实情况；5、文明施工的计划与落实情况；6、施工企业与建设、监理、设计单位的协作情况。以上如有不满足规范和有关要求的，按1~4分/条扣分，最多扣20分；出现安全事故的，直接扣20分。",20,15.5,null,17,null,"质量安全管理部"]

{"sheet":"H002-2","index":28,"n_rows":15,"n_cols":10,"rows_kept":15,"hidden":true,"merged":[[1,0,1,7],[2,0,2,7],[4,0,4,2],[7,1,8,1],[9,1,11,1]]}
[null,"附件2："]
["安徽省水利工程建设施工合同履行评价评分表"]
["合同名称：施工H002-2标（江水北送段）  合同单位：中国水利水电第十一工程局有限公司"]
["序号","评价指标","参考标准","满分","建管处一、二季度打分最低项统计","建管处扣分依据","集团公司半年度打分","集团公司扣分依据","打分部门"]
["得分合计",null,null,100,{"$f":"SUM(E6:E15)","v":83.5},null,{"$f":"SUM(G6:G15)","v":74.48}]
[1,"管理人员到位（10分）","项目经理或技术负责人未按投标承诺或合同约定到位的，扣10分；其他管理人员未按投标承诺或合同约定到位的，按每人扣1分，最多扣5分。",10,10,null,null,"人员无考勤已退场","合同管理部","未打分"]
[2,"机械设备到位（10分）","因施工机械、设备不到位影响工期或工程质量的，扣0~10分。",10,9,null,9,null,"建设管理部"]
[3,"工程进度管理（15分）","进度管理（5分）：进度计划报批手续不齐全或施工进度管理不到位的，扣0~5分。",5,5,null,5,null,"建设管理部"]
[4,null,"实际进度（10分）:因施工企业原因，造成工期延误的，扣0~10分；因施工企业原因，造成阶段目标和总体进度严重滞后的，扣10分。",10,9,null,9.98,null,"建设管理部"]
[5,"工程质量管理（20分）","质量管理体系（5分）：1、设立专门的质量管理机构或建立健全质量保证体系；2、配备质量管理人员；3、制定并落实质量管理制度。\n以上如有不满足的，按2分/条扣分，最多扣5分。",5,5,null,5,"根据集团公司2020年1-6月份检查、巡查反应，该标段质量管理体系基本健全。","质量安全管理部"]
[6,null,"工程质量行为（9分）：1、按照设计图纸和施工技术标准施工；2、原材料、中间产品、构配件等按规定检验及报验；3、涉及工程结构安全的试块、试件及有关材料按规定见证取样和送检；4、单元工程及工序质量检验和报验，隐蔽工程和关键部位的验收符合要求；5、试验仪器及设备按规定和合同到位，满足施工要求；6、制定并落实计划，按规范进行工艺试验确定施工参数，满足施工要求。以上如有不满足的，按1.5分/条扣分，最多扣9分。",9,6,null,6,"根据集团公司2020年1-6月份检查、巡查反应，该标段质量管理行为存在单元工程工序检验报验不及时等问题。","质量安全管理部"]
[7,null,"质量管理效果（6分）：\n1、分部工程及单位工程验收情况；2、历次质量检查和抽检情况；3、工程外观质量情况；4、过程及竣工检测等各类检测。\n以上如有不满足规范和设计要求的，按1.5分/条扣分，最多扣6分。",6,4,null,3,"根据集团公司2020年1-6月份检查、巡查反应，该标段检查中发现该标段存在钢筋制安、混凝土浇筑、护坡施工等质量问题。","质量安全管理部"]
[8,"施工技术管理（15分）","1、单项工程施工组织设计和分部工程、单位工程施工组织方案齐全并具有针对性；2、及时履行各类报验手续；3、施工记录完整；4、及时回复监理工程师通知；5、工程签证齐全、签字手续完备；6、归档资料及时、真实、规范、完整。以上如有不满足的，按1~3分/条扣分，最多扣15分。",15,12.5,null,12.5,null,"建设管理部"]
[9,"劳务分包管理及农民工工资拖欠情况（10分）","未按规定签订劳务分包协议、未与农民工签订合法劳务合同的，扣3分；因施工企业原因，发生农民工向项目法人单位讨要拖欠工资的，每次扣3分，最多扣10分；因施工企业原因，发生农民工向政府部门讨要拖欠工资或因拖欠民工工资引发群体性事件的，直接扣10分。",10,7,null,7,null,"建设管理部、合同管理部"]
[10,"安全生产及文明施工（20分）","1、安全生产管理体系和保证措施的建立情况；2、安全生产专项方案的编制情况；3、专职安全员的配备情况；4、安全生产经费和保障措施的落实情况；5、文明施工的计划与落实情况；6、施工企业与建设、监理、设计单位的协作情况。以上如有不满足规范和有关要求的，按1~4分/条扣分，最多扣20分；出现安全事故的，直接扣20分。",20,16,null,17,null,"质量安全管理部"]

{"sheet":"H003-1","index":29,"n_rows":15,"n_cols":9,"rows_kept":15,"hidden":true,"merged":[[1,0,1,7],[2,0,2,7],[4,0,4,2],[7,1,8,1],[9,1,11,1]]}
[null,"附件2："]
["安徽省水利工程建设施工合同履行评价评分表"]
["合同名称：施工H003-1标（江水北送段）  合同单位：中国电建市政建设集团有限公司"]
["序号","评价指标","参考标准","满分","建管处一、二季度打分最低项统计","建管处扣分依据","集团公司半年度打分","集团公司扣分依据","打分部门"]
["得分合计",null,null,100,{"$f":"SUM(E6:E15)","v":86},null,{"$f":"SUM(G6:G15)","v":86.93}]
[1,"管理人员到位（10分）","项目经理或技术负责人未按投标承诺或合同约定到位的，扣10分；其他管理人员未按投标承诺或合同约定到位的，按每人扣1分，最多扣5分。",10,8,null,7,"首次履约材料、造价、公路专业管理人员均未进场。","合同管理部"]
[2,"机械设备到位（10分）","因施工机械、设备不到位影响工期或工程质量的，扣0~10分。",10,9,null,9,null,"建设管理部"]
[3,"工程进度管理（15分）","进度管理（5分）：进度计划报批手续不齐全或施工进度管理不到位的，扣0~5分。",5,4,null,4,null,"建设管理部"]
[4,null,"实际进度（10分）:因施工企业原因，造成工期延误的，扣0~10分；因施工企业原因，造成阶段目标和总体进度严重滞后的，扣10分。",10,7,null,9.93,null,"建设管理部"]
[5,"工程质量管理（20分）","质量管理体系（5分）：1、设立专门的质量管理机构或建立健全质量保证体系；2、配备质量管理人员；3、制定并落实质量管理制度。\n以上如有不满足的，按2分/条扣分，最多扣5分。",5,5,null,5,"根据集团公司2020年1-6月份检查、巡查反应，该标段质量管理体系基本健全。","质量安全管理部"]
[6,null,"工程质量行为（9分）：1、按照设计图纸和施工技术标准施工；2、原材料、中间产品、构配件等按规定检验及报验；3、涉及工程结构安全的试块、试件及有关材料按规定见证取样和送检；4、单元工程及工序质量检验和报验，隐蔽工程和关键部位的验收符合要求；5、试验仪器及设备按规定和合同到位，满足施工要求；6、制定并落实计划，按规范进行工艺试验确定施工参数，满足施工要求。以上如有不满足的，按1.5分/条扣分，最多扣9分。",9,7,null,7.5,"根据集团公司2020年1-6月份检查、巡查反应，该标段质量管理行为存在单元工程工序检验报验不及时等问题。","质量安全管理部"]
[7,null,"质量管理效果（6分）：\n1、分部工程及单位工程验收情况；2、历次质量检查和抽检情况；3、工程外观质量情况；4、过程及竣工检测等各类检测。\n以上如有不满足规范和设计要求的，按1.5分/条扣分，最多扣6分。",6,6,null,4.5,"根据集团公司2020年1-6月份检查、巡查反应，该标段检查中发现该标段存在钢筋制安、混凝土浇筑等质量问题。","质量安全管理部"]
[8,"施工技术管理（15分）","1、单项工程施工组织设计和分部工程、单位工程施工组织方案齐全并具有针对性；2、及时履行各类报验手续；3、施工记录完整；4、及时回复监理工程师通知；5、工程签证齐全、签字手续完备；6、归档资料及时、真实、规范、完整。以上如有不满足的，按1~3分/条扣分，最多扣15分。",15,12,null,12,null,"建设管理部"]
[9,"劳务分包管理及农民工工资拖欠情况（10分）","未按规定签订劳务分包协议、未与农民工签订合法劳务合同的，扣3分；因施工企业原因，发生农民工向项目法人单位讨要拖欠工资的，每次扣3分，最多扣10分；因施工企业原因，发生农民工向政府部门讨要拖欠工资或因拖欠民工工资引发群体性事件的，直接扣10分。",10,10,null,10,null,"建设管理部、合同管理部"]
[10,"安全生产及文明施工（20分）","1、安全生产管理体系和保证措施的建立情况；2、安全生产专项方案的编制情况；3、专职安全员的配备情况；4、安全生产经费和保障措施的落实情况；5、文明施工的计划与落实情况；6、施工企业与建设、监理、设计单位的协作情况。以上如有不满足规范和有关要求的，按1~4分/条扣分，最多扣20分；出现安全事故的，直接扣20分。",20,18,null,18,null,"质量安全管理部"]

{"sheet":"H004","index":30,"n_rows":15,"n_cols":9,"rows_kept":15,"hidden":true,"merged":[[1,0,1,7],[2,0,2,7],[4,0,4,2],[7,1,8,1],[9,1,11,1]]}
[null,"附件2："]
["安徽省水利工程建设施工合同履行评价评分表"]
["合同名称：施工H004标（江水北送段）  合同单位：中国水利水电第五工程局有限公司"]
["序号","评价指标","参考标准","满分","建管处一、二季度打分最低项统计","建管处扣分依据","集团公司半年度打分","集团公司扣分依据","打分部门"]
["得分合计",null,null,100,{"$f":"SUM(E6:E15)","v":84},null,{"$f":"SUM(G6:G15)","v":83.5}]
[1,"管理人员到位（10分）","项目经理或技术负责人未按投标承诺或合同约定到位的，扣10分；其他管理人员未按投标承诺或合同约定到位的，按每人扣1分，最多扣5分。",10,9,null,8,"技术负责人樊明忠4月14日至5月8日请假建管处未批，人员未考勤。6月1日当日项目经理出差去合肥，暂无手续。其他人员钉钉考勤记录打卡时间存在雷同。","合同管理部"]
[2,"机械设备到位（10分）","因施工机械、设备不到位影响工期或工程质量的，扣0~10分。",10,10,null,10,null,"建设管理部"]
[3,"工程进度管理（15分）","进度管理（5分）：进度计划报批手续不齐全或施工进度管理不到位的，扣0~5分。",5,4,null,4,null,"建设管理部"]
[4,null,"实际进度（10分）:因施工企业原因，造成工期延误的，扣0~10分；因施工企业原因，造成阶段目标和总体进度严重滞后的，扣10分。",10,9,null,10,null,"建设管理部"]
[5,"工程质量管理（20分）","质量管理体系（5分）：1、设立专门的质量管理机构或建立健全质量保证体系；2、配备质量管理人员；3、制定并落实质量管理制度。\n以上如有不满足的，按2分/条扣分，最多扣5分。",5,5,null,5,"根据集团公司2020年1-6月份检查、巡查反应，该标段质量管理体系基本健全。","质量安全管理部"]
[6,null,"工程质量行为（9分）：1、按照设计图纸和施工技术标准施工；2、原材料、中间产品、构配件等按规定检验及报验；3、涉及工程结构安全的试块、试件及有关材料按规定见证取样和送检；4、单元工程及工序质量检验和报验，隐蔽工程和关键部位的验收符合要求；5、试验仪器及设备按规定和合同到位，满足施工要求；6、制定并落实计划，按规范进行工艺试验确定施工参数，满足施工要求。以上如有不满足的，按1.5分/条扣分，最多扣9分。",9,7.5,null,7.5,"根据集团公司2020年1-6月份检查、巡查反应，该标段质量管理行为存在单元工程工序检验报验不及时等问题。","质量安全管理部"]
[7,null,"质量管理效果（6分）：\n1、分部工程及单位工程验收情况；2、历次质量检查和抽检情况；3、工程外观质量情况；4、过程及竣工检测等各类检测。\n以上如有不满足规范和设计要求的，按1.5分/条扣分，最多扣6分。",6,3,null,3,"根据集团公司2020年1-6月份检查、巡查反应，该标段检查中发现该标段存在钢筋制安、混凝土浇筑、止水安装等质量问题。","质量安全管理部"]
[8,"施工技术管理（15分）","1、单项工程施工组织设计和分部工程、单位工程施工组织方案齐全并具有针对性；2、及时履行各类报验手续；3、施工记录完整；4、及时回复监理工程师通知；5、工程签证齐全、签字手续完备；6、归档资料及时、真实、规范、完整。以上如有不满足的，按1~3分/条扣分，最多扣15分。",15,13,null,13,null,"建设管理部"]
[9,"劳务分包管理及农民工工资拖欠情况（10分）","未按规定签订劳务分包协议、未与农民工签订合法劳务合同的，扣3分；因施工企业原因，发生农民工向项目法人单位讨要拖欠工资的，每次扣3分，最多扣10分；因施工企业原因，发生农民工向政府部门讨要拖欠工资或因拖欠民工工资引发群体性事件的，直接扣10分。",10,10,null,7,"专用合同检查，抽查了调蓄水库工程及弃土消纳工程劳务分包合同：合同为水电五局集团与江西建工第三建筑有限责任公司签订，未采用建设部示范文本，采用承包人内部统一文本，合同额1648.14705万元，合同签订时间为2018年12月15日，合同服务包含工程资料编制（质量检验、评定资料、工程量签证等资料）、配置人员（项目经理、技术负责人、质检负责人、安全负责人、合同管理、现场管理、劳动人员）、配合承包人办理交工验收等，合同费用为工程量清单单价和工程量计算。与水利部（2016）420文要求有出入。","建设管理部、合同管理部"]
[10,"安全生产及文明施工（20分）","1、安全生产管理体系和保证措施的建立情况；2、安全生产专项方案的编制情况；3、专职安全员的配备情况；4、安全生产经费和保障措施的落实情况；5、文明施工的计划与落实情况；6、施工企业与建设、监理、设计单位的协作情况。以上如有不满足规范和有关要求的，按1~4分/条扣分，最多扣20分；出现安全事故的，直接扣20分。",20,13.5,null,16,null,"质量安全管理部"]

{"sheet":"H005","index":31,"n_rows":15,"n_cols":9,"rows_kept":15,"hidden":true,"merged":[[1,0,1,7],[2,0,2,7],[4,0,4,2],[7,1,8,1],[9,1,11,1]]}
[null,"附件2："]
["安徽省水利工程建设施工合同履行评价评分表"]
["合同名称：施工H005标（江水北送段）  合同单位：中国电建市政建设集团有限公司"]
["序号","评价指标","参考标准","满分","建管处一、二季度打分最低项统计","建管处扣分依据","集团公司半年度打分","集团公司扣分依据","打分部门"]
["得分合计",null,null,100,{"$f":"SUM(E6:E15)","v":85.5},null,{"$f":"SUM(G6:G15)","v":79.47}]
[1,"管理人员到位（10分）","项目经理或技术负责人未按投标承诺或合同约定到位的，扣10分；其他管理人员未按投标承诺或合同约定到位的，按每人扣1分，最多扣5分。",10,9,null,3,"钉钉考勤：刘晶伟、于龙、赵顺3月缺勤7天，4月缺勤3天；袁洋、张维琛广域网考勤3月缺勤6天；考勤记录部分雷同；退场3人（建管处未批）；项目经理、技术负责人广域网考勤3月缺勤6天。","合同管理部"]
[2,"机械设备到位（10分）","因施工机械、设备不到位影响工期或工程质量的，扣0~10分。",10,10,null,10,null,"建设管理部"]
[3,"工程进度管理（15分）","进度管理（5分）：进度计划报批手续不齐全或施工进度管理不到位的，扣0~5分。",5,4,null,4,null,"建设管理部"]
[4,null,"实际进度（10分）:因施工企业原因，造成工期延误的，扣0~10分；因施工企业原因，造成阶段目标和总体进度严重滞后的，扣10分。",10,8,null,8.97,null,"建设管理部"]
[5,"工程质量管理（20分）","质量管理体系（5分）：1、设立专门的质量管理机构或建立健全质量保证体系；2、配备质量管理人员；3、制定并落实质量管理制度。\n以上如有不满足的，按2分/条扣分，最多扣5分。",5,5,null,5,"根据集团公司2020年1-6月份检查、巡查反应，该标段质量管理体系基本健全。","质量安全管理部"]
[6,null,"工程质量行为（9分）：1、按照设计图纸和施工技术标准施工；2、原材料、中间产品、构配件等按规定检验及报验；3、涉及工程结构安全的试块、试件及有关材料按规定见证取样和送检；4、单元工程及工序质量检验和报验，隐蔽工程和关键部位的验收符合要求；5、试验仪器及设备按规定和合同到位，满足施工要求；6、制定并落实计划，按规范进行工艺试验确定施工参数，满足施工要求。以上如有不满足的，按1.5分/条扣分，最多扣9分。",9,7.5,null,7.5,"根据集团公司2020年1-6月份检查、巡查反应，该标段质量管理行为存在单元工程工序检验报验不及时等问题。","质量安全管理部"]
[7,null,"质量管理效果（6分）：\n1、分部工程及单位工程验收情况；2、历次质量检查和抽检情况；3、工程外观质量情况；4、过程及竣工检测等各类检测。\n以上如有不满足规范和设计要求的，按1.5分/条扣分，最多扣6分。",6,4,null,3,"根据集团公司2020年1-6月份检查、巡查反应，该标段检查中发现该标段存在钢筋制安、混凝土浇筑、止水安装等质量问题。","质量安全管理部"]
[8,"施工技术管理（15分）","1、单项工程施工组织设计和分部工程、单位工程施工组织方案齐全并具有针对性；2、及时履行各类报验手续；3、施工记录完整；4、及时回复监理工程师通知；5、工程签证齐全、签字手续完备；6、归档资料及时、真实、规范、完整。以上如有不满足的，按1~3分/条扣分，最多扣15分。",15,13,null,13,null,"建设管理部"]
[9,"劳务分包管理及农民工工资拖欠情况（10分）","未按规定签订劳务分包协议、未与农民工签订合法劳务合同的，扣3分；因施工企业原因，发生农民工向项目法人单位讨要拖欠工资的，每次扣3分，最多扣10分；因施工企业原因，发生农民工向政府部门讨要拖欠工资或因拖欠民工工资引发群体性事件的，直接扣10分。",10,10,null,7,"合同专用检查，1、抽查了插花站钢筋混凝土工程施工分包合同：合同费用为工程量清单单价和工程量计算，合同为承包人项目部和故城县兴安建筑劳务分包有限公司签订，未采用建设部示范文本，采用承包人内部统一文本，合同额863.794236万元；合同服务包含人工费、机械费（含进出场费）、辅助材料费、管理费、利润、税金等一切费用；合同内容还包括向承包人提供施工技术方案、施工报表、施工原始资料、竣工验收资料等相关资料，还包括施工测量工作、质检资料归集整理工作（包括按规定填报资料）；合同费用包含2%安全生产费用；分包合同未报监理及发包人审核；未核验劳务分包人与所用劳务人员的劳动用工合同，与水利部（2016）420文要求有出入。","建设管理部、合同管理部"]
[10,"安全生产及文明施工（20分）","1、安全生产管理体系和保证措施的建立情况；2、安全生产专项方案的编制情况；3、专职安全员的配备情况；4、安全生产经费和保障措施的落实情况；5、文明施工的计划与落实情况；6、施工企业与建设、监理、设计单位的协作情况。以上如有不满足规范和有关要求的，按1~4分/条扣分，最多扣20分；出现安全事故的，直接扣20分。",20,15,null,18,null,"质量安全管理部"]